{"text_format":"1","workbook":"xlsx","n_sheets":12,"sheets":["Portada","Instrucciones","IdentificacionOrganizacion","Plantilla","CondicionesLaborales","GestionPersonas","ActividadDimension","Opinion","OpinionImprimir","Indicadores","Graficos","datos"],"not_rendered":{"charts":26,"images":21,"macros":1,"external_links":0,"defined_names":10,"comments":0,"pivot_tables":0},"unopened":[],"bounds":{"document_bytes":16777216,"sheet_cells":100000,"rows_first":2000,"rows_last":500,"rows_between":2000,"halvings":0,"cell_chars":16384,"cell_head_chars":4096},"cells_cut":0,"cells_raw":0,"read":"whole","date_system":"1900"}

{"sheet":"Portada","index":0,"n_rows":9,"n_cols":2,"rows_kept":9,"cut":false,"hidden":false,"merged":[[8,1,10,12]]}
[]
[]
[]
[]
[]
[]
[]
[]
[null,"ERAKUNDE PUBLIKO ETA PRIBATUETAKO BERDINTASUNERAKO KUDEAKETA. «DIAGNOSTIKOA. GENERO-ADIERAZLEAK.» TRESNA"]

{"sheet":"Instrucciones","index":1,"n_rows":30,"n_cols":5,"rows_kept":30,"cut":false,"hidden":true,"merged":[[14,1,14,6],[15,1,15,2],[15,4,15,6],[9,1,9,6],[10,1,10,6],[11,1,11,6],[12,1,12,6],[13,1,13,6],[4,1,4,6],[5,1,5,6],[6,1,6,6],[7,1,7,6],[8,1,8,6],[27,1,27,6],[16,1,16,6],[18,1,18,6],[25,1,25,6],[26,1,26,6],[17,4,17,6],[17,1,17,2],[19,4,24,6],[39,1,39,6],[28,1,28,6],[29,1,29,6],[30,1,30,6],[31,1,31,6],[32,1,32,6],[33,1,33,6],[34,1,34,6],[35,1,35,6],[36,1,36,6],[37,1,37,6],[38,1,38,6],[51,1,51,6],[40,1,40,6],[41,1,41,6],[42,1,42,6],[43,1,43,6],[44,1,44,6],[45,1,45,6],[46,1,46,6],[47,1,47,6],[48,1,48,6],[49,1,49,6],[50,1,50,6],[63,1,63,6],[52,1,52,6],[53,1,53,6],[54,1,54,6],[55,1,55,6],[56,1,56,6],[57,1,57,6],[58,1,58,6],[59,1,59,6],[60,1,60,6],[61,1,61,6],[62,1,62,6],[75,1,75,6],[64,1,64,6],[65,1,65,6],[66,1,66,6],[67,1,67,6],[68,1,68,6],[69,1,69,6],[70,1,70,6],[71,1,71,6],[72,1,72,6],[73,1,73,6],[74,1,74,6],[82,1,82,6],[76,1,76,6],[77,1,77,6],[78,1,78,6],[79,1,79,6],[80,1,80,6],[81,1,81,6]]}
[]
[]
[]
[]
[]
[]
[]
[null,"Tresna hau Office 2013-n garatu da. Bateragarritasun-arazoak egon daitezke beste batzuekin "]
[null,"kalkulu-orriaren bertsioak edo programak."]
[]
[null,"Horrelako kasuetarako, makrorik gabeko bertso bat badago."]
[]
[]
[null,"Orriaren koloretako legenda:"]
[]
[null,null,null,null,"Datuak sartzeko lauki editagarriak"]
[]
[null,null,null,null," Errore-adierazlea"]
[]
[null,null,null,null,"Adibidez: bulegoko emakumeen banaketa ez dator bat langileetan guztira dagoen emakume kopuruarekin. Lauki hauek ere editatu daitezke."]
[]
[]
[]
[]
[]
[null,"Langileak. Antolaketaren atalean hainbat aukera daude (sailak, proiektuak, negozio-unitateak, bulegoak). Erakundera hobekien egokitzen direnak bete behar dira."]
[]
[null,"Plantillako langileen kopuruaren kalkulua.\nIkuskapena egindako egunean enpresaren lantoki guztietan kontratu mugagabea duten langileak zenbatuko dira, horiek lanaldi osoa edo partziala izan, bai eta urtebete baino gehiagoko kontratua duten pertsonak eta aldizkako kontratu finkoak dituztenak ere; azken horiek plantillako langile finko modura zenbatuko dira.\n\nUrtebetera arteko kontratua dutenak, aldiz, ikuskapenaren aurreko hamabi hilabeteetan lanean egindako egunen arabera zenbatuko dira. Lanean berrehun egun edo horren zatiki bat eginez gero, langile bat gehiago zenbatuko da. Aurreko lerrokadetan aurreikusitako 200 lanegun horiek zenbatzeko orduan, benetan lan egindako egunak zein asteko atseden-egunak, jaiegunak eta urteko oporraldia zenbatuko dira."]
[]
[null,"Iritzi-inkesta. Orri batean inprimatzeko bertsioa eta, beste batean, lortutako emaitzak deskargatzeko taula jaso dira."]

{"sheet":"IdentificacionOrganizacion","index":2,"n_rows":116,"n_cols":11,"rows_kept":116,"cut":false,"hidden":true,"merged":[[115,1,115,5],[106,1,106,6],[107,1,107,6],[109,1,109,5],[110,1,110,5],[111,1,111,5],[112,1,112,5],[103,2,103,5],[108,1,108,6],[113,1,113,5],[114,1,114,5],[82,2,82,5],[98,1,98,6],[100,1,100,5],[101,1,101,5],[102,1,102,5],[104,1,104,5],[105,1,105,5],[91,1,91,6],[93,3,93,4],[93,5,93,6],[94,3,94,4],[94,5,94,6],[95,3,95,4],[96,3,96,4],[95,5,95,6],[96,5,96,6],[94,1,94,2],[95,1,95,2],[96,1,96,2],[83,1,83,6],[84,1,84,5],[85,1,86,1],[85,2,85,5],[86,2,86,5],[7,1,7,2],[8,1,8,2],[9,1,9,2],[2,1,2,6],[21,1,21,6],[4,1,4,6],[16,3,16,6],[17,3,17,6],[15,1,15,2],[16,1,16,2],[17,1,17,2],[6,3,6,6],[7,3,7,6],[8,3,8,6],[9,3,9,6],[14,1,14,6],[11,3,11,6],[12,3,12,6],[13,3,13,6],[11,1,11,2],[10,1,10,6],[6,1,6,2],[12,1,12,2],[13,1,13,2],[30,3,30,6],[31,3,31,6],[35,1,35,2],[26,1,26,2],[27,1,27,2],[35,3,35,6],[26,3,26,6],[18,3,18,6],[33,1,33,6],[23,1,23,6],[28,1,28,6],[27,3,27,6],[24,3,24,6],[25,3,25,6],[32,1,32,2],[25,1,25,2],[24,1,24,2],[31,1,31,2],[15,3,15,6],[47,2,47,3],[51,2,51,3],[45,2,45,5],[46,2,46,5],[47,4,47,6],[48,2,48,5],[50,2,50,5],[39,2,39,5],[40,2,40,5],[41,2,41,5],[42,2,42,5],[43,2,43,5],[44,2,44,5],[36,1,36,6],[37,3,37,6],[37,1,37,2],[51,4,51,6],[49,4,49,6],[39,1,51,1],[49,2,49,3],[18,1,18,2],[29,3,29,6],[29,1,29,2],[53,4,53,6],[55,1,55,6],[54,1,54,6],[57,1,57,5],[59,1,59,5],[56,1,56,6],[53,2,53,3],[58,3,58,6],[58,1,58,2],[74,2,74,5],[75,2,75,5],[72,2,72,5],[60,1,60,5],[61,3,61,6],[63,2,63,5],[64,2,64,5],[65,2,65,4],[65,5,65,6],[87,1,87,5],[88,1,89,1],[88,2,88,5],[89,2,89,5],[81,2,81,5],[78,1,82,1],[52,1,52,5],[61,1,61,2],[62,1,62,5],[70,2,70,5],[67,1,68,1],[63,1,65,1],[76,2,76,5],[77,2,77,5],[78,2,78,5],[79,2,79,5],[80,2,80,5],[66,1,66,5],[67,2,67,5],[68,2,68,5],[69,1,69,5],[71,1,77,1],[71,2,71,5],[73,2,73,5]]}
[]
[]
[null,"ERAKUNDEAIDENTIFIKATZEKO DATUAK"]
[]
[null,"HARREMANETARAKO DATUAK"]
[]
[null,"Sozietatearen izena"]
[null,"IFK"]
[null,"Helbidea"]
[null,"Telefonoa"]
[null,"PERTSONA ARDURADUNA"]
[null,"Izena"]
[null,"Kargua"]
[null,"Helbide elektronikoa"]
[null,"BERDINTASUN-GAIEN ARDURADUNA"]
[null,"Izena"]
[null,"Kargua"]
[null,"Telefonoa"]
[null,"Helbide elektronikoa"]
[]
[]
[null,"ENPRESAREN EZAUGARRIAK"]
[]
[null,"FORMA JURIDIKOA"]
[null,"Merkataritza-sozietate bat"]
[null,"Mota"]
[null,"Irabazi-asmorik gabeko erakundea",null,"Irabazi-asmorik gabeko elkartea"]
[null,"Erakunde publikoa"]
[null,"JARDUERA"]
[null,"Sektorea"]
[null,"EJSN nagusia (4 digitu)"]
[null,"Jardueraren deskribapena"]
[null,"Merkatua"]
[null,"DIMENTSIOA"]
[null,"Langileak"]
[null,"Urteko fakturazioa (€) / Urteko aurrekontua (€), irabazi-asmorik gabeko erakundeentzat"]
[null,"HISTORIA"]
[null,"Fundazio-urtea"]
[null,null,null,null,null,null,"%"]
[null,"Jabetza","Emakumezko bazkide langileak eta/edo kudeaketan dihardutenak",null,null,null,0]
[null,null,"Gizonezko bazkide langileak eta/edo kudeaketan dihardutenak",null,null,null,0]
[null,null,"Bazkide kooperatibistak (emakumeak)",null,null,null,0]
[null,null,"Bazkide kooperatibistak",null,null,null,0]
[null,null,"Bazkide kapitalistak (emakumeak)",null,null,null,0]
[null,null,"Bazkide kapitalistak (gizonak)",null,null,null,0]
[null,null,"Kapital publikoa",null,null,null,0]
[null,null,"Beste erakunde bat 1",null,null,null,0]
[null,null,"1. erakundearen izena"]
[null,null,"Beste erakunde bat 2",null,null,null,0]
[null,null,"2. erakundearen izena",null,null,null,null,null,"Jabetza-kontrola"]
[null,null,"Beste erakunde bat 3",null,null,null,0,null,{"$f":"SUM(G40:G47,G49,G51)","v":0}]
[null,null,"3. erakundearen izena"]
[null,"Familia-enpresa bat da"]
[null,null,"Bai; zer belaunaldi den:"]
[null,"Azken 5 urteotako bat-egiteak, erosketak edo zatiketak (deskribatu)"]
[]
[null,"PERTSONEN KUDEAKETA ETA ANTOLAMENDUA"]
[null,"Aplikatzeko akordioak eta hitzarmenak"]
[null,"Hitzarmenaren izena"]
[null,"Pertsonak kudeatzeko prozesuak sistematizatuta daude"]
[null,"Lortutako egiaztagiriak edo aitormenak (kalitatea, Enpresaren Erantzukizun Soziala -EES-…)"]
[null,"Deskribatu"]
[null,"Ordezkaritza sindikala"]
[null,null,"Emakumeen kopurua",null,null,null,null,null,null,null,{"$f":"G64/(G65+G64)","v":{"$error":"#DIV/0!"}}]
[null,null,"Gizonen kopurua"]
[null,null,"Ordezkaturiko sindikatuak"]
[null,"Laneko Segurtasun eta Osasun Batzordea"]
[null,null,"Emakumeen kopurua"]
[null,null,"Gizonen kopurua"]
[]
[null,null,"Indarraldia"]
[null,"Beste plan batzuk","Estrategikoa"]
[null,null,"Indarraldia"]
[null,null,"Kontziliazioa"]
[null,null,"Gizarte-erantzukizuna"]
[null,null,"Laneko arriskuen prebentzioa"]
[null,null,"Segurtasuna eta higienea"]
[null,null,"Hizkuntza-normalizazioa"]
[null,"Kudeaketa-sistemak","Kudeaketako sistema integrala"]
[null,null,"Kalitatearen kudeaketa"]
[null,null,"Aniztasunaren kudeaketa"]
[null,null,"Adina kudeatzea"]
[null,null,"Ezagutzaren kudeaketa"]
[null,"ORDEZKARITZA-ORGANOAK"]
[null,"Administrazio-organoak"]
[null,null,"Emakumeen kopurua",null,null,null,null,null,null,null,{"$f":"G86/(G86+G87)","v":{"$error":"#DIV/0!"}}]
[null,null,"Gizonen kopurua"]
[null,"Izendapen askeko postuak"]
[null,null,"Emakumeen kopurua",null,null,null,null,null,null,null,{"$f":"G89/(G89+G90)","v":{"$error":"#DIV/0!"}}]
[null,null,"Gizonen kopurua"]
[]
[null,"BERDINTASUN-TALDEAREN OSAERA"]
[]
[null,null,null,"Izena",null,"Lanpostua"]
[null,"Helbidea"]
[null,"Ordezkaritza sindikala"]
[null,"Gainerako langileak"]
[]
[null,"BERDINTASUNAREN ARLOKO JARDUNBIDEA"]
[]
[null,"Berdintasuna jaso al da erakundearen misioan, ikuspegian eta balioetan? "]
[null,"Berdintasunerako neurriak "]
[null,"Berdintasunerako plana "]
[null,null,"Berdintasunerako ezarritako azken planaren zenbakia"]
[null,"Sexu-jazarpenaren eta sexu-arrazoiengatiko jazarpenaren aurkako protokoloa "]
[null,"Berdintasunera bideratutako aurrekontua"]
[null,"Berdintasunaren arloan jasotako errekonozimenduak"]
[]
[null,"Berrikusi edo egin al dira genero-ikuspegitik honako hauek?:"]
[null,"pertsonak kudeatzeko prozesuak?"]
[null,"laneko arriskuen prebentzio-politika?"]
[null,"produktuen eta zerbitzuen diseinua?"]
[null,"produktuen edo zerbitzuen prestazio eta/edo salmenta?"]
[null,"komunikazio-politika?"]
[null,"Gehitu al da berdintasunerako klausularik enpresen kontratazioan? "]
[null,"Egiten al da hizkuntzaren eta irudiaren erabilera ez-sexistarik, barruko zein kanpoko komunikazioetan? "]

{"sheet":"Plantilla","index":3,"n_rows":149,"n_cols":24,"rows_kept":149,"cut":false,"hidden":true,"merged":[[9,1,9,3],[10,1,10,3],[11,1,11,3],[13,1,13,3],[14,1,14,3],[9,21,19,21],[2,1,2,7],[6,4,6,5],[6,6,6,7],[4,1,4,7],[7,1,7,3],[8,1,8,7],[12,1,12,7],[15,1,15,3],[8,11,8,14],[6,11,6,12],[6,13,6,14],[32,1,32,7],[34,4,34,5],[34,6,34,7],[36,1,36,7],[37,1,37,3],[38,1,38,3],[16,1,16,3],[17,1,17,3],[18,1,18,3],[19,1,19,3],[27,1,27,3],[28,1,28,3],[29,1,29,3],[30,1,30,3],[20,1,20,7],[21,1,21,3],[22,1,22,3],[23,1,23,3],[24,1,24,3],[25,1,25,3],[26,1,26,3],[45,1,45,3],[46,1,46,3],[47,1,47,3],[48,1,48,3],[49,1,49,3],[50,1,50,3],[39,1,39,3],[40,1,40,3],[41,1,41,3],[42,1,42,3],[43,1,43,3],[44,1,44,7],[57,1,57,3],[58,1,58,3],[59,1,59,3],[60,1,60,3],[62,1,62,3],[61,1,61,7],[51,1,51,3],[52,1,52,3],[53,1,53,7],[54,1,54,3],[55,1,55,3],[56,1,56,3],[90,1,90,5],[86,1,86,7],[75,1,75,5],[76,1,76,5],[77,1,77,5],[78,1,78,5],[79,1,79,5],[80,1,80,5],[81,1,81,5],[82,1,82,5],[83,1,83,5],[84,1,84,5],[71,1,71,7],[73,6,73,7],[63,1,63,3],[64,1,64,3],[65,1,65,3],[66,1,66,3],[67,1,67,3],[68,1,68,3],[89,1,89,5],[148,1,148,3],[140,4,140,5],[140,6,140,7],[142,1,142,3],[143,1,143,3],[125,1,125,3],[133,1,133,3],[138,1,138,7],[120,1,120,3],[121,1,121,3],[122,1,122,7],[123,1,123,3],[124,1,124,3],[126,1,132,2],[146,4,146,5],[146,6,146,7],[142,18,143,18],[12,11,12,18],[20,11,20,18],[91,12,94,12],[102,15,103,15],[102,16,103,16],[140,11,140,12],[140,15,140,16],[100,18,100,19],[35,19,35,20],[9,19,19,19],[9,20,19,20],[100,11,100,12],[100,13,100,14],[105,11,105,12],[105,13,105,14],[35,11,35,12],[35,13,35,14],[76,14,77,14],[78,14,80,14],[81,14,84,14],[142,13,143,13],[142,17,143,17],[142,14,143,14],[112,1,112,3],[102,1,102,3],[103,1,103,3],[104,1,104,3],[107,1,107,7],[109,1,109,7],[144,1,144,3],[110,1,110,3],[111,1,111,3],[113,1,119,2],[91,8,94,8],[100,4,100,5],[100,6,100,7],[91,3,91,5],[92,3,92,5],[93,3,93,5],[94,3,94,5],[95,1,95,5],[96,1,96,5],[97,1,97,5],[91,1,94,2],[98,1,98,7]]}
[]
[]
[null,"LANGILEAK"]
[]
[null,"MAILAK ETA LANPOSTUAK"]
[]
[null,null,null,null,"Gaur",null,"Orain 4 urte",null,null,null,null,"Gaur",null,"Orain 4 urte"]
[null,null,null,null,"Emakumeak","Gizonak","Emakumeak","Gizonak",null,null,null,"Emakumeak","Gizonak","Emakumeak","Gizonak"]
[null,"MAILA ESTRATEGIKOA",null,null,null,null,null,null,null,null,null,"MAILA ESTRATEGIKOA",null,null,null,null,null,null,null,"emakumeak","gizonak","konbinatua"]
[null,"Kudeaketa",null,null,null,null,null,null,null,null,null,{"$f":"E10/(E10+F10)","v":{"$error":"#DIV/0!"}},{"$f":"F10/(F10+E10)","v":{"$error":"#DIV/0!"}},{"$f":"G10/(G10+H10)","v":{"$error":"#DIV/0!"}},{"$f":"H10/(H10+G10)","v":{"$error":"#DIV/0!"}},{"$f":"IF($X10,\"\",E10/$E$30)","v":""},{"$f":"G10/$G$12","v":{"$error":"#DIV/0!"}},{"$f":"ROUND(100*((L10-N10)),0)","v":{"$error":"#DIV/0!"}},{"$f":"((E10/(E10+F10))-(G10/(G10+H10)))","v":{"$error":"#DIV/0!"}},{"$f":"((E12+E20)/E30)/((F12+F20)/F30)","v":{"$error":"#DIV/0!"}},{"$f":"((G12+G20)/G30)/((H12+H20)/H30)","v":{"$error":"#DIV/0!"}},{"$f":"T10-U10","v":{"$error":"#DIV/0!"}},{"$f":"IF($X10,\"\",E10/$E$30)","v":""},{"$f":"ISERROR(L10)","v":true}]
[null,"Zuzendaritza-postuak",null,null,null,null,null,null,null,null,null,{"$f":"E11/(E11+F11)","v":{"$error":"#DIV/0!"}},{"$f":"F11/(F11+E11)","v":{"$error":"#DIV/0!"}},{"$f":"G11/(G11+H11)","v":{"$error":"#DIV/0!"}},{"$f":"H11/(H11+G11)","v":{"$error":"#DIV/0!"}},{"$f":"IF($X11,\"\",E11/$E$30)","v":""},{"$f":"G11/$G$12","v":{"$error":"#DIV/0!"}},{"$f":"ROUND(100*((L11-N11)),0)","v":{"$error":"#DIV/0!"}},{"$error":"#DIV/0!"},null,null,null,{"$f":"IF($X11,\"\",E11/$E$30)","v":""},{"$f":"ISERROR(L11)","v":true}]
[null,"Maila estrategikoaren guztizko partziala",null,null,{"$f":"SUM(E10:E11)","v":0},{"$f":"SUM(F10:F11)","v":0},0,0,null,null,null,{"$f":"E12/(E12+F12)","v":{"$error":"#DIV/0!"}},{"$f":"F12/(F12+E12)","v":{"$error":"#DIV/0!"}},{"$error":"#DIV/0!"},{"$error":"#DIV/0!"},"",null,{"$f":"ROUND(100*((L12-N12)),0)","v":{"$error":"#DIV/0!"}},{"$error":"#DIV/0!"},null,null,null,"",true]
[null,"MAILA TAKTIKOA",null,null,null,null,null,null,null,null,null,"MAILA TAKTIKOA",null,null,null,null,null,null,null,null,null,null,{"$error":"#DIV/0!"},false]
[null,"Tarteko arduradunak – 1. maila",null,null,null,null,null,null,null,null,null,{"$error":"#DIV/0!"},{"$f":"F14/(F14+E14)","v":{"$error":"#DIV/0!"}},{"$error":"#DIV/0!"},{"$error":"#DIV/0!"},{"$f":"IF($X14,\"\",E14/$E$30)","v":""},{"$f":"G14/$G$20","v":{"$error":"#DIV/0!"}},{"$f":"ROUND(100*((L14-N14)),0)","v":{"$error":"#DIV/0!"}},{"$error":"#DIV/0!"},null,null,null,"",true]
[null,"Tarteko arduradunak – 2. maila",null,null,null,null,null,null,null,null,null,{"$error":"#DIV/0!"},{"$error":"#DIV/0!"},{"$error":"#DIV/0!"},{"$error":"#DIV/0!"},{"$f":"IF($X15,\"\",E15/$E$30)","v":""},{"$error":"#DIV/0!"},{"$error":"#DIV/0!"},{"$error":"#DIV/0!"},null,null,null,"",true]
[null,null,null,null,null,null,null,null,null,null,null,{"$error":"#DIV/0!"},{"$error":"#DIV/0!"},{"$error":"#DIV/0!"},{"$error":"#DIV/0!"},"",{"$error":"#DIV/0!"},{"$error":"#DIV/0!"},{"$error":"#DIV/0!"},null,null,null,"",true]
[null,null,null,null,null,null,null,null,null,null,null,{"$error":"#DIV/0!"},{"$error":"#DIV/0!"},{"$error":"#DIV/0!"},{"$error":"#DIV/0!"},"",{"$error":"#DIV/0!"},{"$error":"#DIV/0!"},{"$error":"#DIV/0!"},null,null,null,"",true]
[null,null,null,null,null,null,null,null,null,null,null,{"$error":"#DIV/0!"},{"$error":"#DIV/0!"},{"$error":"#DIV/0!"},{"$error":"#DIV/0!"},"",{"$error":"#DIV/0!"},{"$error":"#DIV/0!"},{"$error":"#DIV/0!"},null,null,null,"",true]
[null,null,null,null,null,null,null,null,null,null,null,{"$error":"#DIV/0!"},{"$error":"#DIV/0!"},{"$error":"#DIV/0!"},{"$error":"#DIV/0!"},"",{"$error":"#DIV/0!"},{"$error":"#DIV/0!"},{"$error":"#DIV/0!"},null,null,null,"",true]
[null,"Maila taktikoaren guztizko partziala",null,null,{"$f":"SUM(E14:E19)","v":0},{"$f":"SUM(F14:F19)","v":0},0,0,null,null,null,{"$f":"E20/(E20+F20)","v":{"$error":"#DIV/0!"}},{"$f":"F20/(F20+E20)","v":{"$error":"#DIV/0!"}},{"$error":"#DIV/0!"},{"$error":"#DIV/0!"},"",null,{"$error":"#DIV/0!"},{"$f":"((E20/(E20+F20))-(G20/(G20+H20)))","v":{"$error":"#DIV/0!"}},null,null,null,"",true]
[null,"MAILA OPERATIBOA",null,null,null,null,null,null,null,null,null,"MAILA OPERATIBOA",null,null,null,null,null,null,null,null,null,null,null,false]
[null,"Teknikariak",null,null,null,null,null,null,null,null,null,{"$error":"#DIV/0!"},{"$error":"#DIV/0!"},{"$error":"#DIV/0!"},{"$error":"#DIV/0!"},{"$f":"IF($X22,\"\",E22/$E$30)","v":""},{"$f":"G22/$G$29","v":{"$error":"#DIV/0!"}},{"$f":"ROUND(100*((L22-N22)),0)","v":{"$error":"#DIV/0!"}},{"$f":"((E22/(E22+F22))-(G22/(G22+H22)))","v":{"$error":"#DIV/0!"}},null,null,null,"",true]
[null,"Administrazioko langileak",null,null,null,null,null,null,null,null,null,{"$error":"#DIV/0!"},{"$error":"#DIV/0!"},{"$error":"#DIV/0!"},{"$error":"#DIV/0!"},{"$f":"IF($X23,\"\",E23/$E$30)","v":""},{"$error":"#DIV/0!"},{"$error":"#DIV/0!"},{"$error":"#DIV/0!"},null,null,null,"",true]
[null,"Langileak",null,null,null,null,null,null,null,null,null,{"$error":"#DIV/0!"},{"$error":"#DIV/0!"},{"$error":"#DIV/0!"},{"$error":"#DIV/0!"},"",{"$error":"#DIV/0!"},{"$error":"#DIV/0!"},{"$error":"#DIV/0!"},null,null,null,"",true]
[null,null,null,null,null,null,null,null,null,null,null,{"$error":"#DIV/0!"},{"$error":"#DIV/0!"},{"$error":"#DIV/0!"},{"$error":"#DIV/0!"},"",{"$error":"#DIV/0!"},{"$error":"#DIV/0!"},{"$error":"#DIV/0!"},null,null,null,"",true]
[null,null,null,null,null,null,null,null,null,null,null,{"$error":"#DIV/0!"},{"$error":"#DIV/0!"},{"$error":"#DIV/0!"},{"$error":"#DIV/0!"},"",{"$error":"#DIV/0!"},{"$error":"#DIV/0!"},{"$error":"#DIV/0!"},null,null,null,"",true]
[null,null,null,null,null,null,null,null,null,null,null,{"$error":"#DIV/0!"},{"$error":"#DIV/0!"},{"$error":"#DIV/0!"},{"$error":"#DIV/0!"},"",{"$error":"#DIV/0!"},{"$error":"#DIV/0!"},{"$error":"#DIV/0!"},null,null,null,"",true]
[null,null,null,null,null,null,null,null,null,null,null,{"$error":"#DIV/0!"},{"$error":"#DIV/0!"},{"$error":"#DIV/0!"},{"$error":"#DIV/0!"},"",{"$error":"#DIV/0!"},{"$error":"#DIV/0!"},{"$error":"#DIV/0!"},null,null,null,"",true]
[null,"Maila operatiboaren guztizko partziala",null,null,{"$f":"SUM(E22:E28)","v":0},{"$f":"SUM(F22:F28)","v":0},0,0,null,null,null,{"$error":"#DIV/0!"},{"$error":"#DIV/0!"},{"$error":"#DIV/0!"},{"$error":"#DIV/0!"},"",{"$f":"G29/$G$30","v":{"$error":"#DIV/0!"}},{"$error":"#DIV/0!"},{"$f":"((E29/(E29+F29))-(G29/(G29+H29)))","v":{"$error":"#DIV/0!"}},null,null,null,"",true]
[null,"Guztira",null,null,{"$f":"E12+E20+E29","v":0},{"$f":"F12+F20+F29","v":0},0,0,null,null,null,{"$f":"E30/(E30+F30)","v":{"$error":"#DIV/0!"}},{"$f":"F30/(F30+E30)","v":{"$error":"#DIV/0!"}},{"$error":"#DIV/0!"},{"$error":"#DIV/0!"},"",null,{"$error":"#DIV/0!"},{"$f":"(E30/(E30+F30))-(G30/(G30+H30))","v":{"$error":"#DIV/0!"}},null,null,null,"",true]
[]
[]
[null,"ANTOLAMENDUA"]
[]
[null,null,null,null,"Gaur",null,"Orain 4 urte"]
[null,null,null,null,"Emakumeak","Gizonak","Emakumeak","Gizonak",null,null,null,"Gaur",null,"Orain 4 urte",null,null,null,null,null,"LANGILEEN %-A, GUZTIRA"]
[null,"BULEGOAK",null,null,null,null,null,null,null,null,null,"Emakumeak","Gizonak","Emakumeak","Gizonak",null,null,"PUNTUAK",null,"Emakumeak","gizonak"]
[null,"A bulegoa",null,null,null,null,null,null,null,null,null,{"$f":"E38/(E38+F38)","v":{"$error":"#DIV/0!"}},{"$f":"F38/(F38+E38)","v":{"$error":"#DIV/0!"}},{"$f":"G38/(G38+H38)","v":{"$error":"#DIV/0!"}},{"$f":"H38/(H38+G38)","v":{"$error":"#DIV/0!"}},{"$f":"E38/SUM($E$38:$E$44)","v":{"$error":"#DIV/0!"}},{"$f":"G38/SUM($G$38:$G$44)","v":{"$error":"#DIV/0!"}},{"$f":"ROUND(100*(L38-N38),0)","v":{"$error":"#DIV/0!"}},{"$f":"(E38/(E38+F38))-(G38/(G38+H38))","v":{"$error":"#DIV/0!"}},{"$f":"E38/$E$30","v":{"$error":"#DIV/0!"}},{"$f":"F38/$F$30","v":{"$error":"#DIV/0!"}}]
[null,"B bulegoa",null,null,null,null,null,null,null,null,null,{"$f":"E39/(E39+F39)","v":{"$error":"#DIV/0!"}},{"$f":"F39/(F39+E39)","v":{"$error":"#DIV/0!"}},{"$f":"G39/(G39+H39)","v":{"$error":"#DIV/0!"}},{"$f":"H39/(H39+G39)","v":{"$error":"#DIV/0!"}},{"$error":"#DIV/0!"},{"$error":"#DIV/0!"},{"$f":"ROUND(100*(L39-N39),0)","v":{"$error":"#DIV/0!"}},{"$f":"(E39/(E39+F39))-(G39/(G39+H39))","v":{"$error":"#DIV/0!"}},{"$f":"E39/$E$30","v":{"$error":"#DIV/0!"}},{"$f":"F39/$F$30","v":{"$error":"#DIV/0!"}}]
[null,"C bulegoa",null,null,null,null,null,null,null,null,null,{"$error":"#DIV/0!"},{"$f":"F40/(F40+E40)","v":{"$error":"#DIV/0!"}},{"$error":"#DIV/0!"},{"$error":"#DIV/0!"},{"$error":"#DIV/0!"},{"$error":"#DIV/0!"},{"$error":"#DIV/0!"},{"$error":"#DIV/0!"},{"$error":"#DIV/0!"},{"$error":"#DIV/0!"}]
[null,"D bulegoa",null,null,null,null,null,null,null,null,null,{"$error":"#DIV/0!"},{"$error":"#DIV/0!"},{"$error":"#DIV/0!"},{"$error":"#DIV/0!"},{"$error":"#DIV/0!"},{"$error":"#DIV/0!"},{"$error":"#DIV/0!"},{"$error":"#DIV/0!"},{"$error":"#DIV/0!"},{"$error":"#DIV/0!"}]
[null,"E bulegoa",null,null,null,null,null,null,null,null,null,{"$error":"#DIV/0!"},{"$error":"#DIV/0!"},{"$error":"#DIV/0!"},{"$error":"#DIV/0!"},{"$error":"#DIV/0!"},{"$error":"#DIV/0!"},{"$error":"#DIV/0!"},{"$error":"#DIV/0!"},{"$error":"#DIV/0!"},{"$error":"#DIV/0!"}]
[null,null,null,null,null,null,null,null,null,null,null,{"$error":"#DIV/0!"},{"$error":"#DIV/0!"},{"$error":"#DIV/0!"},{"$error":"#DIV/0!"},{"$error":"#DIV/0!"},{"$error":"#DIV/0!"},{"$error":"#DIV/0!"},{"$error":"#DIV/0!"},{"$error":"#DIV/0!"},{"$error":"#DIV/0!"}]
[null,null,null,null,null,null,null,null,null,null,null,{"$error":"#DIV/0!"},{"$error":"#DIV/0!"},{"$error":"#DIV/0!"},{"$error":"#DIV/0!"},{"$error":"#DIV/0!"},{"$error":"#DIV/0!"},{"$error":"#DIV/0!"},{"$error":"#DIV/0!"},{"$error":"#DIV/0!"},{"$error":"#DIV/0!"}]
[null,"SAILAK / ARLOAK",null,null,null,null,null,null,null,null,null,{"$f":"SUM(E38:E44)","v":0},{"$f":"SUM(F38:F44)","v":0},{"$f":"SUM(G38:G44)","v":0},{"$f":"SUM(H38:H44)","v":0},null,null,null,null,{"$error":"#DIV/0!"},{"$error":"#DIV/0!"}]
[null,"Zuzendaritza/Kudeatzailetza",null,null,null,null,null,null,null,null,null,{"$error":"#DIV/0!"},{"$error":"#DIV/0!"},{"$error":"#DIV/0!"},{"$error":"#DIV/0!"},{"$f":"E46/SUM($E$46:$E$53)","v":{"$error":"#DIV/0!"}},{"$f":"G46/SUM($G$46:$G$53)","v":{"$error":"#DIV/0!"}},{"$error":"#DIV/0!"},{"$error":"#DIV/0!"},{"$error":"#DIV/0!"},{"$error":"#DIV/0!"}]
[null,"Pertsonen kudeaketa",null,null,null,null,null,null,null,null,null,{"$error":"#DIV/0!"},{"$error":"#DIV/0!"},{"$error":"#DIV/0!"},{"$error":"#DIV/0!"},{"$error":"#DIV/0!"},{"$error":"#DIV/0!"},{"$error":"#DIV/0!"},{"$error":"#DIV/0!"},{"$error":"#DIV/0!"},{"$error":"#DIV/0!"}]
[null,"Administrazioa/Finantzak",null,null,null,null,null,null,null,null,null,{"$error":"#DIV/0!"},{"$error":"#DIV/0!"},{"$error":"#DIV/0!"},{"$error":"#DIV/0!"},{"$error":"#DIV/0!"},{"$error":"#DIV/0!"},{"$error":"#DIV/0!"},{"$error":"#DIV/0!"},{"$error":"#DIV/0!"},{"$error":"#DIV/0!"}]
[null,"Erosketak",null,null,null,null,null,null,null,null,null,{"$error":"#DIV/0!"},{"$error":"#DIV/0!"},{"$error":"#DIV/0!"},{"$error":"#DIV/0!"},{"$error":"#DIV/0!"},{"$error":"#DIV/0!"},{"$error":"#DIV/0!"},{"$error":"#DIV/0!"},{"$error":"#DIV/0!"},{"$error":"#DIV/0!"}]
[null,"Merkataritza/Salmentak",null,null,null,null,null,null,null,null,null,{"$error":"#DIV/0!"},{"$error":"#DIV/0!"},{"$error":"#DIV/0!"},{"$error":"#DIV/0!"},{"$error":"#DIV/0!"},{"$error":"#DIV/0!"},{"$error":"#DIV/0!"},{"$error":"#DIV/0!"},{"$error":"#DIV/0!"},{"$error":"#DIV/0!"}]
[null,"Ekoizpena",null,null,null,null,null,null,null,null,null,{"$error":"#DIV/0!"},{"$error":"#DIV/0!"},{"$error":"#DIV/0!"},{"$error":"#DIV/0!"},{"$error":"#DIV/0!"},{"$error":"#DIV/0!"},{"$error":"#DIV/0!"},{"$error":"#DIV/0!"},{"$error":"#DIV/0!"},{"$error":"#DIV/0!"}]
[null,"Marketina",null,null,null,null,null,null,null,null,null,{"$error":"#DIV/0!"},{"$error":"#DIV/0!"},{"$error":"#DIV/0!"},{"$error":"#DIV/0!"},{"$error":"#DIV/0!"},{"$error":"#DIV/0!"},{"$error":"#DIV/0!"},{"$error":"#DIV/0!"},{"$error":"#DIV/0!"},{"$error":"#DIV/0!"}]
[null,"Bezeroei arreta egitea",null,null,null,null,null,null,null,null,null,{"$error":"#DIV/0!"},{"$error":"#DIV/0!"},{"$error":"#DIV/0!"},{"$error":"#DIV/0!"},{"$error":"#DIV/0!"},{"$error":"#DIV/0!"},{"$error":"#DIV/0!"},{"$error":"#DIV/0!"},{"$error":"#DIV/0!"},{"$error":"#DIV/0!"}]
[null,"PROIEKTUAK",null,null,null,null,null,null,null,null,null,{"$f":"SUM(E46:E53)","v":0},{"$f":"SUM(F46:F53)","v":0},{"$f":"SUM(G46:G53)","v":0},{"$f":"SUM(H46:H53)","v":0},null,null,null,null,{"$error":"#DIV/0!"},{"$error":"#DIV/0!"}]
[null,"Zuzendaritza/Kudeatzailetza",null,null,null,null,null,null,null,null,null,{"$f":"E55/(E55+F55)","v":{"$error":"#DIV/0!"}},{"$f":"F55/(F55+E55)","v":{"$error":"#DIV/0!"}},{"$error":"#DIV/0!"},{"$error":"#DIV/0!"},{"$f":"E55/SUM($E$55:$E$61)","v":{"$error":"#DIV/0!"}},{"$f":"G55/SUM($G$55:$G$61)","v":{"$error":"#DIV/0!"}},{"$error":"#DIV/0!"},{"$f":"(E55/(E55+F55))-(G55/(G55+H55))","v":{"$error":"#DIV/0!"}},{"$f":"E55/$E$30","v":{"$error":"#DIV/0!"}},{"$error":"#DIV/0!"}]
[null,"Zerbitzu orokorrak",null,null,null,null,null,null,null,null,null,{"$f":"E56/(E56+F56)","v":{"$error":"#DIV/0!"}},{"$f":"F56/(F56+E56)","v":{"$error":"#DIV/0!"}},{"$error":"#DIV/0!"},{"$error":"#DIV/0!"},{"$f":"E56/SUM($E$55:$E$61)","v":{"$error":"#DIV/0!"}},{"$error":"#DIV/0!"},{"$error":"#DIV/0!"},{"$f":"(E56/(E56+F56))-(G56/(G56+H56))","v":{"$error":"#DIV/0!"}},{"$f":"E56/$E$30","v":{"$error":"#DIV/0!"}},{"$error":"#DIV/0!"}]
[null,"A proiektua",null,null,null,null,null,null,null,null,null,{"$error":"#DIV/0!"},{"$error":"#DIV/0!"},{"$error":"#DIV/0!"},{"$error":"#DIV/0!"},{"$error":"#DIV/0!"},{"$error":"#DIV/0!"},{"$error":"#DIV/0!"},{"$error":"#DIV/0!"},{"$error":"#DIV/0!"},{"$error":"#DIV/0!"}]
[null,"B proiektua",null,null,null,null,null,null,null,null,null,{"$error":"#DIV/0!"},{"$error":"#DIV/0!"},{"$error":"#DIV/0!"},{"$error":"#DIV/0!"},{"$error":"#DIV/0!"},{"$error":"#DIV/0!"},{"$error":"#DIV/0!"},{"$error":"#DIV/0!"},{"$error":"#DIV/0!"},{"$error":"#DIV/0!"}]
[null,"C proiektua",null,null,null,null,null,null,null,null,null,{"$error":"#DIV/0!"},{"$error":"#DIV/0!"},{"$error":"#DIV/0!"},{"$error":"#DIV/0!"},{"$error":"#DIV/0!"},{"$error":"#DIV/0!"},{"$error":"#DIV/0!"},{"$error":"#DIV/0!"},{"$error":"#DIV/0!"},{"$error":"#DIV/0!"}]
[null,null,null,null,null,null,null,null,null,null,null,{"$error":"#DIV/0!"},{"$error":"#DIV/0!"},{"$error":"#DIV/0!"},{"$error":"#DIV/0!"},{"$error":"#DIV/0!"},{"$error":"#DIV/0!"},{"$error":"#DIV/0!"},{"$error":"#DIV/0!"},{"$error":"#DIV/0!"},{"$error":"#DIV/0!"}]
[null,null,null,null,null,null,null,null,null,null,null,{"$error":"#DIV/0!"},{"$error":"#DIV/0!"},{"$error":"#DIV/0!"},{"$error":"#DIV/0!"},{"$error":"#DIV/0!"},{"$error":"#DIV/0!"},{"$error":"#DIV/0!"},{"$error":"#DIV/0!"},{"$error":"#DIV/0!"},{"$error":"#DIV/0!"}]
[null,"NEGOZIO-UNITATEAK",null,null,null,null,null,null,null,null,null,{"$f":"SUM(E55:E61)","v":0},{"$f":"SUM(F55:F61)","v":0},{"$f":"SUM(G55:G61)","v":0},{"$f":"SUM(H55:H61)","v":0},null,null,null,null,{"$error":"#DIV/0!"},{"$error":"#DIV/0!"}]
[null,"Zuzendaritza/Kudeatzailetza",null,null,null,null,null,null,null,null,null,{"$error":"#DIV/0!"},{"$error":"#DIV/0!"},{"$error":"#DIV/0!"},{"$error":"#DIV/0!"},{"$f":"E63/SUM($E$63:$E$69)","v":{"$error":"#DIV/0!"}},{"$f":"G63/SUM($G$63:$G$69)","v":{"$error":"#DIV/0!"}},{"$error":"#DIV/0!"},{"$error":"#DIV/0!"},{"$error":"#DIV/0!"},{"$error":"#DIV/0!"}]
[null,"Zerbitzu orokorrak",null,null,null,null,null,null,null,null,null,{"$error":"#DIV/0!"},{"$error":"#DIV/0!"},{"$error":"#DIV/0!"},{"$error":"#DIV/0!"},{"$error":"#DIV/0!"},{"$error":"#DIV/0!"},{"$error":"#DIV/0!"},{"$error":"#DIV/0!"},{"$error":"#DIV/0!"},{"$error":"#DIV/0!"}]
[null,"A negozio-unitatea",null,null,null,null,null,null,null,null,null,{"$error":"#DIV/0!"},{"$error":"#DIV/0!"},{"$error":"#DIV/0!"},{"$error":"#DIV/0!"},{"$error":"#DIV/0!"},{"$error":"#DIV/0!"},{"$error":"#DIV/0!"},{"$error":"#DIV/0!"},{"$error":"#DIV/0!"},{"$error":"#DIV/0!"}]
[null,"B negozio-unitatea",null,null,null,null,null,null,null,null,null,{"$error":"#DIV/0!"},{"$error":"#DIV/0!"},{"$error":"#DIV/0!"},{"$error":"#DIV/0!"},{"$error":"#DIV/0!"},{"$error":"#DIV/0!"},{"$error":"#DIV/0!"},{"$error":"#DIV/0!"},{"$error":"#DIV/0!"},{"$error":"#DIV/0!"}]
[null,"C negozio-unitatea",null,null,null,null,null,null,null,null,null,{"$error":"#DIV/0!"},{"$error":"#DIV/0!"},{"$error":"#DIV/0!"},{"$error":"#DIV/0!"},{"$error":"#DIV/0!"},{"$error":"#DIV/0!"},{"$error":"#DIV/0!"},{"$error":"#DIV/0!"},{"$error":"#DIV/0!"},{"$error":"#DIV/0!"}]
[null,null,null,null,null,null,null,null,null,null,null,{"$error":"#DIV/0!"},{"$error":"#DIV/0!"},{"$error":"#DIV/0!"},{"$error":"#DIV/0!"},{"$error":"#DIV/0!"},{"$error":"#DIV/0!"},{"$error":"#DIV/0!"},{"$error":"#DIV/0!"},{"$error":"#DIV/0!"},{"$error":"#DIV/0!"}]
[null,null,null,null,null,null,null,null,null,null,null,{"$error":"#DIV/0!"},{"$error":"#DIV/0!"},{"$error":"#DIV/0!"},{"$error":"#DIV/0!"},{"$error":"#DIV/0!"},{"$error":"#DIV/0!"},{"$error":"#DIV/0!"},{"$error":"#DIV/0!"},{"$error":"#DIV/0!"},{"$error":"#DIV/0!"}]
[null,null,null,null,null,null,null,null,null,null,null,{"$f":"SUM(E63:E69)","v":0},{"$f":"SUM(F63:F69)","v":0},{"$f":"SUM(G63:G69)","v":0},{"$f":"SUM(H63:H69)","v":0}]
[]
[null,"ADINA"]
[]
[null,null,null,null,null,null,"Azken ekitaldiko datuak"]
[null,null,null,null,null,null,"Emakumeak","Gizonak",null,null,null,"Emakumeak","Gizonak",null,"Zatiak","hasiera","amaiera","Batezbestekoa","Emakumeak","Gizonak","tasak"]
[null,"24 urtetik beherakoak",null,null,null,null,null,null,null,null,null,{"$f":"G76/SUM(G76:G85)","v":{"$error":"#DIV/0!"}},{"$f":"H76/SUM(H76:H85)","v":{"$error":"#DIV/0!"}},{"$f":"(G76/(SUM($G$76:$G$85))/(H76/(SUM($H$76:$H$85))))","v":{"$error":"#DIV/0!"}},{"$f":"(SUM(G76)/(SUM($G$76:$G$85)))/(SUM(H76)/(SUM($H$76:$H$85)))","v":{"$error":"#DIV/0!"}},18,24,{"$f":"(P76+Q76)/2","v":21},{"$f":"G76*R76","v":0},{"$f":"H76*R76","v":0},{"$f":"(G76/#REF!/H76/#REF!)*100","v":{"$error":"#REF!"}}]
[null,"25-29 urte",null,null,null,null,null,null,null,null,null,{"$f":"G77/SUM(G76:G85)","v":{"$error":"#DIV/0!"}},{"$f":"H77/SUM(H76:H85)","v":{"$error":"#DIV/0!"}},{"$f":"(G77/(SUM($G$76:$G$85))/(H77/(SUM($H$76:$H$85))))","v":{"$error":"#DIV/0!"}},{"$f":"(SUM(G77:G78)/(SUM($G$76:$G$85)))/(SUM(H77:H78)/(SUM($H$76:$H$85)))","v":{"$error":"#DIV/0!"}},25,29,{"$f":"(P77+Q77)/2","v":27},0,0,{"$f":"(SUM(G77:G79)/#REF!/SUM(H77:H79)/#REF!)*100","v":{"$error":"#REF!"}}]
[null,"30-34 urte",null,null,null,null,null,null,null,null,null,{"$f":"G78/SUM(G76:G85)","v":{"$error":"#DIV/0!"}},{"$f":"H78/SUM(H76:H85)","v":{"$error":"#DIV/0!"}},{"$error":"#DIV/0!"},null,30,34,{"$f":"(P78+Q78)/2","v":32},0,0,{"$f":"(SUM(G80:G85)/#REF!/SUM(H80:H85)/#REF!)*100","v":{"$error":"#REF!"}}]
[null,"35-39 urte",null,null,null,null,null,null,null,null,null,{"$f":"G79/SUM(G76:G85)","v":{"$error":"#DIV/0!"}},{"$f":"H79/SUM(H76:H85)","v":{"$error":"#DIV/0!"}},{"$error":"#DIV/0!"},{"$f":"(SUM(G79:G81)/(SUM($G$76:$G$85)))/(SUM(H79:H81)/(SUM($H$76:$H$85)))","v":{"$error":"#DIV/0!"}},35,39,37,0,0]
[null,"40-44 urte",null,null,null,null,null,null,null,null,null,{"$f":"G80/SUM(G76:G85)","v":{"$error":"#DIV/0!"}},{"$f":"H80/SUM(H76:H85)","v":{"$error":"#DIV/0!"}},{"$error":"#DIV/0!"},null,40,44,42,0,0]
[null,"45-49 urte",null,null,null,null,null,null,null,null,null,{"$f":"G81/SUM(G76:G85)","v":{"$error":"#DIV/0!"}},{"$f":"H81/SUM(H76:H85)","v":{"$error":"#DIV/0!"}},{"$error":"#DIV/0!"},null,45,49,47,0,0]
[null,"50-54 urte",null,null,null,null,null,null,null,null,null,{"$f":"G82/SUM(G76:G85)","v":{"$error":"#DIV/0!"}},{"$f":"H82/SUM(H76:H85)","v":{"$error":"#DIV/0!"}},{"$error":"#DIV/0!"},{"$f":"(SUM(G82:G85)/(SUM($G$76:$G$85)))/(SUM(H82:H85)/(SUM($H$76:$H$85)))","v":{"$error":"#DIV/0!"}},50,54,52,0,0]
[null,"55-59 urte",null,null,null,null,null,null,null,null,null,{"$f":"G83/SUM(G76:G85)","v":{"$error":"#DIV/0!"}},{"$f":"H83/SUM(H76:H85)","v":{"$error":"#DIV/0!"}},{"$error":"#DIV/0!"},null,55,59,57,0,0]
[null,"60-64 urte",null,null,null,null,null,null,null,null,null,{"$f":"G84/SUM(G76:G85)","v":{"$error":"#DIV/0!"}},{"$f":"H84/SUM(H76:H85)","v":{"$error":"#DIV/0!"}},{"$error":"#DIV/0!"},null,60,64,62,0,0]
[null,"65 baino gehiago",null,null,null,null,null,null,null,null,null,{"$f":"G85/SUM(G76:G85)","v":{"$error":"#DIV/0!"}},{"$f":"H85/SUM(H76:H85)","v":{"$error":"#DIV/0!"}},{"$error":"#DIV/0!"},null,65,70,67.5,0,0]
[]
[null,"ZAINTZA-ARDURAK"]
[]
[null,null,null,null,null,null,"Emakumeak","Gizonak",null,null,null,null,null,null,null,null,null,null,null,"tasak"]
[null,"Seme-alaben ardura daukaten pertsonak",null,null,null,null,null,null,null,null,null,{"$f":"(G90/$E$30)/(H90/$F$30)","v":{"$error":"#DIV/0!"}},null,null,null,null,null,null,null,{"$f":"(G90/$E$30)/(H90/$F$30)","v":{"$error":"#DIV/0!"}}]
[null,"Horietatik, zenbat dira guraso bakarrekoak?",null,null,null,null,null,null,null,null,null,{"$error":"#DIV/0!"},null,null,{"$f":"G92+G93","v":0},{"$f":"H92+H93","v":0},null,null,null,{"$error":"#DIV/0!"}]
[null,"Sailkatu seme-alaben ardura duten pertsona guztiak, seme-alaba adingabearen adinaren arabera.",null,"< 3 urte",null,null,null,null,null,null,null,{"$error":"#DIV/0!"},{"$f":"(SUM(G90)/E30)/(SUM(H90)/F30)","v":{"$error":"#DIV/0!"}},null,null,null,null,null,null,{"$error":"#DIV/0!"}]
[null,null,null,"3 eta 11 bitartean",null,null,null,null,null,null,null,{"$error":"#DIV/0!"},null,null,null,null,null,null,null,{"$error":"#DIV/0!"}]
[null,null,null,"12 eta 16 bitartean",null,null,null,null,null,null,null,{"$error":"#DIV/0!"},null,null,null,null,null,null,null,{"$error":"#DIV/0!"}]
[null,null,null,"> 16 urte",null,null,null,null,null,null,null,{"$error":"#DIV/0!"},null,null,null,null,null,null,null,{"$error":"#DIV/0!"}]
[null,"Mendekotasunen bat duten adindunekin batera bizi diren pertsonak",null,null,null,null,null,null,null,null,null,{"$error":"#DIV/0!"},null,null,null,null,null,null,null,{"$error":"#DIV/0!"}]
[]
[]
[null,"ANIZTASUNA"]
[]
[null,null,null,null,"Atzerritarrak",null,"Desgaitasundunak",null,null,null,null,"Atzerritarrak",null,"desgaitasuna",null,null,null,null,"tasak"]
[null,null,null,null,"Emakumeak","Gizonak","Emakumeak","Gizonak",null,null,null,"Emakumeak","Gizonak","Emakumeak","Gizonak","atzerr","desgaitua",null,"Emakumeak","Gizonak"]
[null,"Maila estrategikoa",null,null,null,null,null,null,null,null,null,{"$f":"IF(ISBLANK(E103),\"\",E103/$E$12)","v":""},{"$f":"IF(ISBLANK(F103),\"\",F103/$E$12)","v":""},{"$f":"IF(ISBLANK(G103),\"\",G103/$E$12)","v":""},{"$f":"IF(ISBLANK(H103),\"\",H103/$F$12)","v":""},{"$f":"(SUM(E103:E104)/(E12+E20))/(SUM(F103:F104)/(F12+F20))","v":{"$error":"#DIV/0!"}},{"$f":"(SUM(G103:G104)/(E12+E20))/(SUM(H103:H104)/(F12+F20))","v":{"$error":"#DIV/0!"}},null,{"$f":"(L103/F103/$F$30)*100","v":{"$error":"#VALUE!"}},{"$f":"(M103/H103/$F$30)*100","v":{"$error":"#VALUE!"}}]
[null,"Maila taktikoa",null,null,null,null,null,null,null,null,null,{"$f":"IF(ISBLANK(E104),\"\",E104/$E$20)","v":""},{"$f":"IF(ISBLANK(F104),\"\",F104/$F$20)","v":""},{"$f":"IF(ISBLANK(G104),\"\",G104/$E$20)","v":""},{"$f":"IF(ISBLANK(H104),\"\",H104/$F$20)","v":""},null,null,null,{"$f":"(L104/F104/$F$30)*100","v":{"$error":"#VALUE!"}},{"$f":"(M104/H104/$F$30)*100","v":{"$error":"#VALUE!"}}]
[null,"Maila operatiboa",null,null,null,null,null,null,null,null,null,{"$f":"IF(ISBLANK(E105),\"\",E105/$E$29)","v":""},{"$f":"IF(ISBLANK(F105),\"\",F105/$F$29)","v":""},{"$f":"IF(ISBLANK(G105),\"\",G105/$F$29)","v":""},{"$f":"IF(ISBLANK(H105),\"\",H105/$F$29)","v":""},{"$f":"(SUM(E105)/(E29))/(SUM(F105)/(F29))","v":{"$error":"#DIV/0!"}},{"$f":"(SUM(G105)/(E29))/(SUM(H105)/(F29))","v":{"$error":"#DIV/0!"}},null,{"$f":"(L105/F105/$F$30)*100","v":{"$error":"#VALUE!"}},{"$f":"(M105/H105/$F$30)*100","v":{"$error":"#VALUE!"}}]
[null,null,null,null,null,null,null,null,null,null,null,{"$f":"IF(AND(ISBLANK(E103),ISBLANK(E104),ISBLANK(E105)),\"\",SUM(E103:F105)/SUM($E$30:$F$30))","v":""},null,{"$f":"IF(AND(ISBLANK(E103),ISBLANK(E104),ISBLANK(E105)),\"\",SUM(G103:H105)/SUM($E$30:$F$30))","v":""},null,null,null,null,{"$f":"(L106/SUM(F103:F105)/$F$30)*100","v":{"$error":"#VALUE!"}},{"$f":"(N106/SUM(H103:H105)/$F$30)*100","v":{"$error":"#VALUE!"}}]
[null,null,null,null,null,null,null,null,null,null,null,{"$f":"IF(AND(ISBLANK(E103),ISBLANK(E104),ISBLANK(E105)),\"\",SUM(E103:E105)/SUM($E$30))","v":""},{"$f":"IF(AND(ISBLANK(E103),ISBLANK(E104),ISBLANK(E105)),\"\",SUM(F103:F105)/SUM($F$30))","v":""},{"$f":"IF(AND(ISBLANK(G103),ISBLANK(G104),ISBLANK(G105)),\"\",SUM(G103:G105)/SUM($E$30))","v":""},{"$f":"IF(AND(ISBLANK(E103),ISBLANK(E104),ISBLANK(E105)),\"\",SUM(H103:H105)/SUM($F$30))","v":""}]
[null,"BANAKETA IKASKETA-MAILAREN ARABERA"]
[]
[null,"Emakumeak"]
[null,"Maila eta lanpostua",null,null,"Lehen Hezkuntza","Bigarren Hezkuntza","LH","Unibertsitate-ikasketak",null,null,null,"Lehen Hezkuntza","Bigarren Hezkuntza","LH","Unibertsitate-ikasketak"]
[null,"Maila estrategikoa",null,null,null,null,null,null,null,null,null,{"$f":"E112/(SUM($E112:$H112))","v":{"$error":"#DIV/0!"}},{"$f":"F112/(SUM($E112:$H112))","v":{"$error":"#DIV/0!"}},{"$error":"#DIV/0!"},{"$error":"#DIV/0!"},null,null,{"$f":"(H112/($E$12))/(H125/($F$12))","v":{"$error":"#DIV/0!"}}]
[null,"Maila taktikoa",null,null,null,null,null,null,null,null,null,{"$f":"E113/(SUM($E113:$H113))","v":{"$error":"#DIV/0!"}},{"$f":"F113/(SUM($E113:$H113))","v":{"$error":"#DIV/0!"}},{"$f":"G113/(SUM($E113:$H113))","v":{"$error":"#DIV/0!"}},{"$f":"H113/(SUM($E113:$H113))","v":{"$error":"#DIV/0!"}},null,null,{"$f":"(H113/($E$20))/(H126/($F$20))","v":{"$error":"#DIV/0!"}}]
[null,"Maila operatiboa",null,{"$f":"B22","v":"Teknikariak"},null,null,null,null,null,null,null,{"$error":"#DIV/0!"},{"$error":"#DIV/0!"},{"$error":"#DIV/0!"},{"$error":"#DIV/0!"},null,null,{"$f":"(H114/($E$22))/(H127/($F$22))","v":{"$error":"#DIV/0!"}}]
[null,null,null,{"$f":"B23","v":"Administrazioko langileak"},null,null,null,null,null,null,null,{"$error":"#DIV/0!"},{"$error":"#DIV/0!"},{"$error":"#DIV/0!"},{"$error":"#DIV/0!"},null,null,{"$f":"(H115/($E$23))/(H128/($F$23))","v":{"$error":"#DIV/0!"}}]
[null,null,null,{"$f":"B24","v":"Langileak"}]
[null,null,null,{"$f":"B25","v":0}]
[null,null,null,0]
[null,null,null,0]
[null,null,null,0,null,null,null,null,null,null,null,{"$error":"#DIV/0!"},{"$error":"#DIV/0!"},{"$error":"#DIV/0!"},{"$error":"#DIV/0!"},null,null,{"$f":"(H120/($E$24))/(H133/($F$24))","v":{"$error":"#DIV/0!"}}]
[null,"Maila operatiboa, guztira",null,null,{"$f":"SUM(E114:E120)","v":0},{"$f":"SUM(F114:F120)","v":0},0,0,null,null,null,{"$error":"#DIV/0!"},{"$error":"#DIV/0!"},{"$error":"#DIV/0!"},{"$error":"#DIV/0!"},null,null,{"$f":"(H121/($E$29))/(H134/($F$29))","v":{"$error":"#DIV/0!"}}]
[]
[null,"Gizonak"]
[null,"Maila eta lanpostua",null,null,"Lehen Hezkuntza","Bigarren Hezkuntza","LH","Unibertsitate-ikasketak",null,null,null,"Lehen Hezkuntza","Bigarren Hezkuntza","LH","Unibertsitate-ikasketak"]
[null,"Maila estrategikoa",null,null,null,null,null,null,null,null,null,{"$f":"E125/(SUM($E125:$H125))","v":{"$error":"#DIV/0!"}},{"$f":"F125/(SUM($E125:$H125))","v":{"$error":"#DIV/0!"}},{"$error":"#DIV/0!"},{"$error":"#DIV/0!"}]
[null,"Maila taktikoa",null,null,null,null,null,null,null,null,null,{"$f":"E126/(SUM($E126:$H126))","v":{"$error":"#DIV/0!"}},{"$f":"F126/(SUM($E126:$H126))","v":{"$error":"#DIV/0!"}},{"$f":"G126/(SUM($E126:$H126))","v":{"$error":"#DIV/0!"}},{"$f":"H126/(SUM($E126:$H126))","v":{"$error":"#DIV/0!"}}]
[null,"Maila operatiboa",null,{"$f":"B22","v":"Teknikariak"},null,null,null,null,null,null,null,{"$error":"#DIV/0!"},{"$error":"#DIV/0!"},{"$error":"#DIV/0!"},{"$error":"#DIV/0!"}]
[null,null,null,{"$f":"B23","v":"Administrazioko langileak"},null,null,null,null,null,null,null,{"$error":"#DIV/0!"},{"$error":"#DIV/0!"},{"$error":"#DIV/0!"},{"$error":"#DIV/0!"}]
[null,null,null,{"$f":"B24","v":"Langileak"},null,null,null,null,null,null,null,{"$f":"E129/(SUM($E129:$H129))","v":{"$error":"#DIV/0!"}},{"$f":"F129/(SUM($E129:$H129))","v":{"$error":"#DIV/0!"}},{"$f":"G129/(SUM($E129:$H129))","v":{"$error":"#DIV/0!"}},{"$f":"H129/(SUM($E129:$H129))","v":{"$error":"#DIV/0!"}}]
[null,null,null,{"$f":"B25","v":0},null,null,null,null,null,null,null,{"$error":"#DIV/0!"},{"$error":"#DIV/0!"},{"$error":"#DIV/0!"},{"$error":"#DIV/0!"}]
[null,null,null,0,null,null,null,null,null,null,null,{"$error":"#DIV/0!"},{"$error":"#DIV/0!"},{"$error":"#DIV/0!"},{"$error":"#DIV/0!"}]
[null,null,null,0,null,null,null,null,null,null,null,{"$error":"#DIV/0!"},{"$error":"#DIV/0!"},{"$error":"#DIV/0!"},{"$error":"#DIV/0!"}]
[null,null,null,0,null,null,null,null,null,null,null,{"$error":"#DIV/0!"},{"$error":"#DIV/0!"},{"$error":"#DIV/0!"},{"$error":"#DIV/0!"}]
[null,"Maila operatiboa, guztira",null,null,null,{"$f":"SUM(F127:F133)","v":0},0,0,null,null,null,{"$error":"#DIV/0!"},{"$error":"#DIV/0!"},{"$error":"#DIV/0!"},{"$error":"#DIV/0!"}]
[]
[null,"Bigarren Hezkuntza: Batxilergoa, BBB, UBI, DBH"]
[]
[]
[null,"BERDINTASUNARI BURUZKO PRESTAKUNTZA"]
[]
[null,null,null,null,"Berdintasunari buruzko prestakuntza",null,"Berdintasun-agenteak",null,null,null,null,"Berdintasunari buruzko prestakuntza",null,null,null,"Berdintasun-agenteak"]
[null,null,null,null,"Emakumeak","Gizonak","Emakumeak","Gizonak",null,null,null,"Emakumeak","Gizonak","emakumeak","gizonak","Emakumeak","Gizonak","emakumeak","gizonak"]
[null,"Maila estrategikoa",null,null,null,null,null,null,null,null,null,{"$f":"(E143/(E12))","v":{"$error":"#DIV/0!"}},{"$f":"(F143/(F12))","v":{"$error":"#DIV/0!"}},{"$f":"(SUM(E143:E144)/(E12+E20))","v":{"$error":"#DIV/0!"}},{"$f":"(SUM(F143:F144)/(F12+F20))","v":{"$error":"#DIV/0!"}},{"$f":"(G143/(E12))","v":{"$error":"#DIV/0!"}},{"$f":"(H143/(F12))","v":{"$error":"#DIV/0!"}},{"$f":"(SUM(G143:G144)/(E12+E20))","v":{"$error":"#DIV/0!"}},{"$f":"(SUM(H143:H144)/(F12+F20))","v":{"$error":"#DIV/0!"}}]
[null,"Maila taktikoa",null,null,null,null,null,null,null,null,null,{"$f":"(E144/(E20))","v":{"$error":"#DIV/0!"}},{"$f":"(F144/(F20))","v":{"$error":"#DIV/0!"}},null,null,{"$f":"(G144/(E20))","v":{"$error":"#DIV/0!"}},{"$f":"(H144/(F20))","v":{"$error":"#DIV/0!"}}]
[null,"Maila operatiboa",null,null,null,null,null,null,null,null,null,{"$f":"(E145/(E29))","v":{"$error":"#DIV/0!"}},{"$f":"(F145/(F29))","v":{"$error":"#DIV/0!"}},null,null,{"$f":"(G145/(E29))","v":{"$error":"#DIV/0!"}},{"$f":"(H145/(F29))","v":{"$error":"#DIV/0!"}}]
[]
[null,null,null,null,"Berdintasunari buruzko prestakuntza",null,"Berdintasun-agenteak"]
[null,null,null,null,"Emakumeak","Gizonak","Emakumeak","Gizonak"]
[null,"Ordezkaritza sindikala",null,null,null,null,null,null,null,null,null,{"$f":"(E149/(IdentificacionOrganizacion!G64))","v":{"$error":"#DIV/0!"}},{"$f":"(F149/(IdentificacionOrganizacion!G65))","v":{"$error":"#DIV/0!"}},null,null,{"$f":"(G149/(E30))","v":{"$error":"#DIV/0!"}},{"$f":"(H149/(F30))","v":{"$error":"#DIV/0!"}}]

{"sheet":"CondicionesLaborales","index":4,"n_rows":203,"n_cols":23,"rows_kept":203,"cut":false,"hidden":true,"merged":[[0,12,0,15],[6,12,6,13],[6,14,6,15],[23,12,23,13],[23,14,23,15],[1,12,1,13],[10,2,10,3],[11,2,11,3],[8,1,9,1],[10,1,11,1],[15,1,15,7],[7,2,7,3],[17,4,17,5],[39,14,39,15],[51,14,54,14],[51,11,54,11],[1,14,1,15],[25,2,25,3],[26,2,26,3],[27,1,28,1],[19,1,19,3],[20,1,20,3],[17,6,17,7],[39,12,39,13],[18,1,18,3],[23,4,23,5],[23,6,23,7],[40,2,40,3],[41,1,42,1],[41,2,41,3],[42,2,42,3],[2,1,2,7],[4,1,4,7],[6,4,6,5],[6,6,6,7],[8,2,8,3],[9,2,9,3],[24,2,24,3],[25,1,26,1],[48,1,48,7],[51,1,51,5],[52,1,52,5],[53,1,53,5],[54,1,54,5],[55,1,55,5],[58,1,58,7],[33,4,33,5],[33,6,33,7],[34,1,34,3],[35,1,35,3],[36,1,36,3],[39,4,39,5],[39,6,39,7],[27,2,27,3],[28,2,28,3],[31,1,31,7],[43,1,44,1],[43,2,43,3],[44,2,44,3],[180,1,180,3],[181,1,181,3],[173,4,173,5],[174,1,174,3],[133,1,133,5],[111,1,111,5],[92,1,92,5],[93,1,93,5],[100,1,100,5],[120,1,120,5],[156,1,156,5],[157,1,157,5],[158,1,158,5],[124,1,124,5],[125,1,125,5],[129,1,129,5],[144,1,144,7],[121,1,121,5],[123,1,123,5],[145,1,145,5],[146,1,146,5],[147,1,147,5],[126,1,126,5],[127,1,127,5],[177,2,177,3],[175,1,177,1],[178,1,178,3],[179,1,179,3],[161,1,161,5],[151,1,151,7],[154,1,154,5],[155,1,155,5],[159,1,159,5],[160,1,160,5],[173,1,173,3],[166,1,166,7],[171,1,171,7],[169,1,169,5],[162,1,162,5],[163,1,163,5],[173,6,173,7],[175,2,175,3],[176,2,176,3],[202,1,202,7],[199,1,199,3],[200,1,200,3],[201,1,201,3],[182,1,182,3],[191,1,191,7],[186,1,186,7],[193,1,193,3],[194,1,194,3],[195,1,195,3],[196,1,196,3],[197,1,197,3],[198,1,198,3],[187,1,187,3],[188,1,188,3],[189,1,189,3],[190,1,190,3],[192,1,192,3],[183,1,183,3],[184,1,184,3],[185,1,185,3],[148,1,148,5],[128,1,128,5],[118,1,118,5],[119,1,119,5],[91,1,91,7],[94,1,94,7],[101,1,101,7],[105,1,105,5],[106,1,106,5],[107,1,107,5],[112,1,112,7],[115,1,115,7],[122,1,122,7],[113,1,113,5],[114,1,114,5],[132,1,132,7],[134,1,134,5],[110,1,110,7],[108,1,108,5],[102,1,102,5],[103,1,103,5],[104,1,104,5],[116,1,116,5],[117,1,117,5],[90,1,90,5],[89,1,89,7],[70,1,70,5],[71,1,71,5],[84,1,84,5],[85,1,85,5],[88,1,88,5],[99,1,99,5],[95,1,95,5],[96,1,96,5],[97,1,97,5],[98,1,98,5],[87,1,87,7],[73,1,73,5],[75,1,75,5],[80,1,80,5],[81,1,81,5],[86,1,86,5],[141,1,141,5],[142,1,142,5],[143,1,143,5],[135,1,135,5],[136,1,136,5],[137,1,137,5],[138,1,138,5],[139,1,139,5],[140,1,140,5],[55,14,57,14],[55,11,57,11],[56,1,56,5],[57,1,57,5],[64,1,64,7],[77,1,77,5],[69,1,69,7],[74,1,74,5],[83,1,83,5],[72,1,72,7],[79,1,79,7],[59,14,61,14],[76,1,76,5],[78,1,78,5],[82,1,82,5],[67,1,67,7],[59,11,61,11],[59,1,59,5],[60,1,60,5],[61,1,61,5],[68,1,68,5]]}
[null,null,null,null,null,null,null,null,null,null,null,null,"Langileak, guztira"]
[null,null,null,null,null,null,null,null,null,null,null,null,"gaur",null,"orain 4 urte"]
[null,"LAN-BALDINTZAK",null,null,null,null,null,null,null,null,null,null,"Emakumeak","Gizonak","Emakumeak","Gizonak"]
[null,null,null,null,null,null,null,null,null,null,null,null,{"$f":"Plantilla!E30","v":0},{"$f":"Plantilla!F30","v":0},{"$f":"Plantilla!G30","v":0},{"$f":"Plantilla!H30","v":0}]
[null,"TIPO DE CONTRATO Y JORNADA"]
[]
[null,null,null,null,"Gaur",null,"Orain 4 urte",null,null,null,null,null,"gaur",null,"orain 4 urte"]
[null,"Lanaldia","Kontratua",null,"Emakumeak","Gizonak","Emakumeak","Gizonak",null,null,null,null,"Emakumeak","Gizonak","Emakumeak","Gizonak","Gaur, guztira","Orain 4 urte, guztira",null,{"$f":"Q9+Q11","v":{"$error":"#DIV/0!"}},{"$f":"R9+R11","v":{"$error":"#DIV/0!"}},null,{"$f":"((E10+E12)/M4)/((F10+F12)/(N4))","v":{"$error":"#DIV/0!"}}]
[null,"Osoa","Mugagabea",null,null,null,null,null,null,null,null,"mugagabea",{"$f":"E9/$M$4","v":{"$error":"#DIV/0!"}},{"$f":"F9/$N$4","v":{"$error":"#DIV/0!"}},{"$f":"G9/$O$4","v":{"$error":"#DIV/0!"}},{"$f":"H9/$P$4","v":{"$error":"#DIV/0!"}},{"$f":"SUM(E9:F9)/SUM($M$4:$N$4)","v":{"$error":"#DIV/0!"}},{"$f":"SUM(G9:H9)/SUM($M$4:$N$4)","v":{"$error":"#DIV/0!"}},null,{"$f":"Q10+Q12","v":{"$error":"#DIV/0!"}},{"$f":"R10+R12","v":{"$error":"#DIV/0!"}},null,{"$f":"(SUM(E11:E12)/M4)/(SUM(F11:F12)/N4)","v":{"$error":"#DIV/0!"}}]
[null,null,"Aldi baterakoa",null,null,null,null,null,null,null,null,"aldi baterakoa",{"$f":"E10/$M$4","v":{"$error":"#DIV/0!"}},{"$f":"F10/$N$4","v":{"$error":"#DIV/0!"}},{"$f":"G10/$O$4","v":{"$error":"#DIV/0!"}},{"$f":"H10/$P$4","v":{"$error":"#DIV/0!"}},{"$f":"SUM(E10:F10)/SUM($M$4:$N$4)","v":{"$error":"#DIV/0!"}},{"$f":"SUM(G10:H10)/SUM($M$4:$N$4)","v":{"$error":"#DIV/0!"}},null,{"$f":"SUM(T8:T9)","v":{"$error":"#DIV/0!"}},{"$f":"SUM(U8:U9)","v":{"$error":"#DIV/0!"}},null,{"$f":"((E9+E11+F9+F11)/(M4+N4))-((G9+H9+G11+H11)/(O4+P4))","v":{"$error":"#DIV/0!"}}]
[null,"Partziala*","Mugagabea",null,null,null,null,null,null,null,null,"mugagabea",{"$f":"E11/$M$4","v":{"$error":"#DIV/0!"}},{"$f":"F11/$N$4","v":{"$error":"#DIV/0!"}},{"$f":"G11/$O$4","v":{"$error":"#DIV/0!"}},{"$f":"H11/$P$4","v":{"$error":"#DIV/0!"}},{"$f":"SUM(E11:F11)/SUM($M$4:$N$4)","v":{"$error":"#DIV/0!"}},{"$error":"#DIV/0!"},null,null,null,null,{"$f":"((E9+E11)/(M4))-((G9+G11)/(O4))","v":{"$error":"#DIV/0!"}}]
[null,null,"Aldi baterakoa",null,null,null,null,null,null,null,null,"aldi baterakoa",{"$f":"E12/$M$4","v":{"$error":"#DIV/0!"}},{"$f":"F12/$N$4","v":{"$error":"#DIV/0!"}},{"$f":"G12/$O$4","v":{"$error":"#DIV/0!"}},{"$f":"H12/$P$4","v":{"$error":"#DIV/0!"}},{"$f":"SUM(E12:F12)/SUM($M$4:$N$4)","v":{"$error":"#DIV/0!"}},{"$error":"#DIV/0!"}]
[null,"* Ez sartu legezko zaintzagatiko lanaldi-murrizketak eta mendeko senideen zaintzagatikoak",null,null,null,null,null,null,null,null,null,"errore-kontrola",{"$f":"SUM(E9:E12)","v":0},{"$f":"SUM(F9:F12)","v":0},0,0,{"$f":"SUM(Q9:Q12)","v":{"$error":"#DIV/0!"}},{"$f":"SUM(R9:R12)","v":{"$error":"#DIV/0!"}}]
[]
[]
[null,"ERAKUNDE PUBLIKOA"]
[]
[null,null,null,null,"Gaur",null,"Orain 4 urte"]
[null,"Lan-harremana",null,null,"Emakumeak","Gizonak","Emakumeak","Gizonak",null,null,null,null,"emakumeak","gizonak","emakumeak","gizonak","gaur, guztira","orain 4 urte, guztira"]
[null,"Funtzionarioak",null,null,null,null,null,null,null,null,null,"funtzionarioa",{"$f":"E20/$M$4","v":{"$error":"#DIV/0!"}},{"$f":"F20/$N$4","v":{"$error":"#DIV/0!"}},{"$f":"G20/$O$4","v":{"$error":"#DIV/0!"}},{"$f":"H20/$O$4","v":{"$error":"#DIV/0!"}},{"$f":"(SUM(E20:F20)/SUM(M4:N4))","v":{"$error":"#DIV/0!"}},{"$f":"(SUM(G20:H20)/SUM(O4:P4))","v":{"$error":"#DIV/0!"}},null,null,{"$f":"M20/N20","v":{"$error":"#DIV/0!"}}]
[null,"Lan-kontratudunak",null,null,null,null,null,null,null,null,null,"lan-kontratudunak",{"$f":"E21/$M$4","v":{"$error":"#DIV/0!"}},{"$f":"F21/$N$4","v":{"$error":"#DIV/0!"}},{"$f":"G21/$O$4","v":{"$error":"#DIV/0!"}},{"$f":"H21/$P$4","v":{"$error":"#DIV/0!"}},{"$f":"(SUM(E21:F21)/SUM(M4:N4))","v":{"$error":"#DIV/0!"}},{"$f":"(SUM(G21:H21)/SUM(O4:P4))","v":{"$error":"#DIV/0!"}}]
[null,null,null,null,null,null,null,null,null,null,null,"errore-kontrola",{"$f":"SUM(E20:E21)","v":0},{"$f":"SUM(F20:F21)","v":0},0,0,{"$f":"SUM(Q20:Q21)","v":{"$error":"#DIV/0!"}},{"$f":"SUM(R20:R21)","v":{"$error":"#DIV/0!"}}]
[]
[null,null,null,null,"Gaur",null,"Orain 4 urte",null,null,null,null,null,"gaur",null,"orain 4 urte"]
[null,"Lanaldia","Kontratua",null,"Emakumeak","Gizonak","Emakumeak","Gizonak",null,null,null,null,"Emakumeak","Gizonak","Emakumeak","Gizonak","gaur, guztira","orain 4 urte, guztira"]
[null,"Osoa","Mugagabea",null,null,null,null,null,null,null,null,"mugagabea",{"$f":"E26/M$4","v":{"$error":"#DIV/0!"}},{"$f":"F26/N$4","v":{"$error":"#DIV/0!"}},{"$error":"#DIV/0!"},{"$error":"#DIV/0!"},{"$f":"SUM(E26:F26)/SUM(M4:N4)","v":{"$error":"#DIV/0!"}},{"$f":"SUM(G26:H26)/SUM(N4:O4)","v":{"$error":"#DIV/0!"}}]
[null,null,"Aldi baterakoa",null,null,null,null,null,null,null,null,"aldi baterakoa",{"$f":"E27/M$4","v":{"$error":"#DIV/0!"}},{"$error":"#DIV/0!"},{"$error":"#DIV/0!"},{"$error":"#DIV/0!"},{"$f":"SUM(E27:F27)/SUM(M4:N4)","v":{"$error":"#DIV/0!"}},{"$f":"SUM(G27:H27)/SUM(O4:P4)","v":{"$error":"#DIV/0!"}}]
[null,"Partziala*","Mugagabea",null,null,null,null,null,null,null,null,"mugagabea",{"$error":"#DIV/0!"},{"$error":"#DIV/0!"},{"$error":"#DIV/0!"},{"$error":"#DIV/0!"},{"$f":"SUM(E28:F28)/SUM(M4:N4)","v":{"$error":"#DIV/0!"}},{"$f":"SUM(G28:H28)/SUM(O4:P4)","v":{"$error":"#DIV/0!"}}]
[null,null,"Aldi baterakoa",null,null,null,null,null,null,null,null,"aldi baterakoa",{"$error":"#DIV/0!"},{"$error":"#DIV/0!"},{"$error":"#DIV/0!"},{"$error":"#DIV/0!"},{"$f":"SUM(E29:F29)/SUM(M4:N4)","v":{"$error":"#DIV/0!"}},{"$f":"SUM(G29:H29)/SUM(O4:P4)","v":{"$error":"#DIV/0!"}}]
[null,"* Ez sartu legezko zaintzagatiko lanaldi-murrizketak eta mendeko senideen zaintzagatikoak",null,null,null,null,null,null,null,null,null,"errore-kontrola",{"$f":"SUM(E26:E29)","v":0},{"$f":"SUM(F26:F29)","v":0},0,0,{"$f":"SUM(Q26:Q29)","v":{"$error":"#DIV/0!"}},{"$f":"SUM(R26:R29)","v":{"$error":"#DIV/0!"}}]
[]
[null,"KOOPERATIBA"]
[]
[null,null,null,null,"Gaur",null,"Orain 4 urte"]
[null,"Lan-harremana",null,null,"Emakumeak","Gizonak","Emakumeak","Gizonak",null,null,null,null,"emakumeak","gizonak","emakumeak","gizonak","gaur, guztira","orain 4 urte, guztira"]
[null,"Bazkideak",null,null,null,null,null,null,null,null,null,"funtzionarioa",{"$f":"E36/$M$4","v":{"$error":"#DIV/0!"}},{"$f":"F36/$N$4","v":{"$error":"#DIV/0!"}},{"$f":"G36/$O$4","v":{"$error":"#DIV/0!"}},{"$f":"H36/$O$4","v":{"$error":"#DIV/0!"}},{"$f":"(SUM(E36:F36)/SUM($M$4:$N$4))","v":{"$error":"#DIV/0!"}},{"$f":"(SUM(G36:H36)/SUM($O$4:$P$4))","v":{"$error":"#DIV/0!"}},null,null,{"$f":"M36/N36","v":{"$error":"#DIV/0!"}}]
[null,"Lan-kontratudunak",null,null,null,null,null,null,null,null,null,"lan-kontratudunak",{"$f":"E37/$M$4","v":{"$error":"#DIV/0!"}},{"$f":"F37/$N$4","v":{"$error":"#DIV/0!"}},{"$f":"G37/$O$4","v":{"$error":"#DIV/0!"}},{"$f":"H37/$P$4","v":{"$error":"#DIV/0!"}},{"$f":"(SUM(E37:F37)/SUM($M$4:$N$4))","v":{"$error":"#DIV/0!"}},{"$f":"(SUM(G37:H37)/SUM($O$4:$P$4))","v":{"$error":"#DIV/0!"}}]
[null,null,null,null,null,null,null,null,null,null,null,"errore-kontrola",{"$f":"SUM(E36:E37)","v":0},{"$f":"SUM(F36:F37)","v":0},{"$f":"SUM(G36:G37)","v":0},{"$f":"SUM(H36:H37)","v":0},{"$f":"SUM(Q36:Q37)","v":{"$error":"#DIV/0!"}},{"$f":"SUM(R36:R37)","v":{"$error":"#DIV/0!"}}]
[]
[null,null,null,null,"Gaur",null,"Orain 4 urte",null,null,null,null,null,"gaur",null,"orain 4 urte"]
[null,"Lanaldia","Kontratua",null,"Emakumeak","Gizonak","Emakumeak","Gizonak",null,null,null,null,"Emakumeak","Gizonak","Emakumeak","Gizonak","gaur, guztira","orain 4 urte, guztira"]
[null,"Osoa","Mugagabea",null,null,null,null,null,null,null,null,"mugagabea",{"$f":"E42/M$4","v":{"$error":"#DIV/0!"}},{"$f":"F42/N$4","v":{"$error":"#DIV/0!"}},{"$f":"G42/O$4","v":{"$error":"#DIV/0!"}},{"$f":"H42/P$4","v":{"$error":"#DIV/0!"}},{"$f":"SUM(E42:F42)/SUM($M$4:$N$4)","v":{"$error":"#DIV/0!"}},{"$f":"SUM(G42:H42)/SUM($O$4:$P$4)","v":{"$error":"#DIV/0!"}}]
[null,null,"Aldi baterakoa",null,null,null,null,null,null,null,null,"aldi baterakoa",{"$f":"E43/M$4","v":{"$error":"#DIV/0!"}},{"$error":"#DIV/0!"},{"$error":"#DIV/0!"},{"$error":"#DIV/0!"},{"$f":"SUM(E43:F43)/SUM($M$4:$N$4)","v":{"$error":"#DIV/0!"}},{"$f":"SUM(G43:H43)/SUM($O$4:$P$4)","v":{"$error":"#DIV/0!"}}]
[null,"Partziala*","Mugagabea",null,null,null,null,null,null,null,null,"mugagabea",{"$error":"#DIV/0!"},{"$error":"#DIV/0!"},{"$error":"#DIV/0!"},{"$error":"#DIV/0!"},{"$error":"#DIV/0!"},{"$error":"#DIV/0!"}]
[null,null,"Aldi baterakoa",null,null,null,null,null,null,null,null,"aldi baterakoa",{"$error":"#DIV/0!"},{"$error":"#DIV/0!"},{"$error":"#DIV/0!"},{"$error":"#DIV/0!"},{"$error":"#DIV/0!"},{"$error":"#DIV/0!"}]
[null,"* Ez sartu legezko zaintzagatiko lanaldi-murrizketak eta mendeko senideen zaintzagatikoak",null,null,null,null,null,null,null,null,null,"errore-kontrola",{"$f":"SUM(E42:E45)","v":0},{"$f":"SUM(F42:F45)","v":0},{"$f":"SUM(G42:G45)","v":0},{"$f":"SUM(H42:H45)","v":0},{"$f":"SUM(Q42:Q45)","v":{"$error":"#DIV/0!"}},{"$f":"SUM(R42:R45)","v":{"$error":"#DIV/0!"}}]
[]
[]
[null,"ORDUTEGIAK: LANALDI MOTA"]
[]
[null,null,null,null,null,null,"Emakumeak","Gizonak",null,null,null,null,"Emakumeak","Gizonak"]
[null,"Lanaldi zatitua: goiz eta arratsaldez",null,null,null,null,null,null,null,null,null,{"$f":"SUM(M52:M55)","v":{"$error":"#DIV/0!"}},{"$f":"G52/$M$4","v":{"$error":"#DIV/0!"}},{"$f":"H52/$N$4","v":{"$error":"#DIV/0!"}},{"$f":"SUM(N52:N55)","v":{"$error":"#DIV/0!"}}]
[null,"Lanaldi jarraitua: finkoa goizez",null,null,null,null,null,null,null,null,null,null,{"$f":"G53/$M$4","v":{"$error":"#DIV/0!"}},{"$f":"H53/$N$4","v":{"$error":"#DIV/0!"}},null,null,{"$f":"L52/O52","v":{"$error":"#DIV/0!"}}]
[null,"Lanaldi jarraitua: finkoa arratsaldez",null,null,null,null,null,null,null,null,null,null,{"$error":"#DIV/0!"},{"$error":"#DIV/0!"},null,null,{"$f":"L56/O56","v":{"$error":"#DIV/0!"}}]
[null,"Lanaldi jarraitua: finkoa gauez",null,null,null,null,null,null,null,null,null,null,{"$error":"#DIV/0!"},{"$error":"#DIV/0!"}]
[null,"Txandak: goiz/arratsaldez",null,null,null,null,null,null,null,null,null,{"$f":"SUM(M56:M59)","v":{"$error":"#DIV/0!"}},{"$error":"#DIV/0!"},{"$error":"#DIV/0!"},{"$f":"SUM(N56:N59)","v":{"$error":"#DIV/0!"}},null,"gauez"]
[null,"Txandak: goiz/arratsalde/gauez",null,null,null,null,null,null,null,null,null,null,{"$error":"#DIV/0!"},{"$error":"#DIV/0!"},null,null,{"$f":"((G55+G57)/M4)/((H55+H57)/N4)","v":{"$error":"#DIV/0!"}}]
[null,"Txandak: bestelakorik",null,null,null,null,null,null,null,null,null,null,{"$error":"#DIV/0!"},{"$error":"#DIV/0!"}]
[null,"Bestelakoak (zehaztu)",null,null,null,null,null,null,null,null,null,null,null,null,null,null,{"$f":"(L56+L60)/(O56+O60)","v":{"$error":"#DIV/0!"}}]
[null,null,null,null,null,null,null,null,null,null,null,{"$f":"SUM(M60:M62)","v":{"$error":"#DIV/0!"}},{"$f":"G60/$M$4","v":{"$error":"#DIV/0!"}},{"$f":"H60/$N$4","v":{"$error":"#DIV/0!"}},{"$f":"SUM(N60:N62)","v":{"$error":"#DIV/0!"}}]
[null,null,null,null,null,null,null,null,null,null,null,null,{"$error":"#DIV/0!"},{"$error":"#DIV/0!"}]
[null,null,null,null,null,null,null,null,null,null,null,null,{"$error":"#DIV/0!"},{"$error":"#DIV/0!"}]
[null,null,null,null,null,null,null,null,null,null,null,"errore-kontrola",{"$f":"SUM(G52:G62)","v":0},{"$f":"SUM(H52:H62)","v":0}]
[null,null,null,null,null,null,null,null,null,null,null,null,{"$f":"SUM(M52:M62)","v":{"$error":"#DIV/0!"}},{"$f":"SUM(N52:N62)","v":{"$error":"#DIV/0!"}}]
[null,"ORDAINSARIEN GAINEKO POLITIKA"]
[]
[]
[null,"LANPOSTUKO BATEZ BESTEKO SOLDATA"]
[null,"Azken urteko batez besteko soldata *",null,null,null,null,"Emakumeak","Gizonak"]
[null,"MAILA ESTRATEGIKOA",null,null,null,null,null,null,null,null,null,null,"Emakumeak","Gizonak",null,"Aldea"]
[null,{"$f":"Plantilla!B10","v":"Kudeaketa"},null,null,null,null,null,null,null,null,null,null,{"$f":"SUM(G71:G87)/M4","v":{"$error":"#DIV/0!"}},{"$f":"SUM(H71:H87)/N4","v":{"$error":"#DIV/0!"}},null,{"$f":"(G71-H71)/H71","v":{"$error":"#DIV/0!"}}]
[null,{"$f":"Plantilla!B11","v":"Zuzendaritza-postuak"},null,null,null,null,null,null,null,null,null,null,null,null,null,{"$f":"(G72-H72)/H72","v":{"$error":"#DIV/0!"}}]
[null,{"$f":"Plantilla!B13","v":"MAILA TAKTIKOA"},null,null,null,null,null,null,null,null,null,null,null,null,null,{"$f":"(G73-H73)/H73","v":{"$error":"#DIV/0!"}}]
[null,{"$f":"Plantilla!B14","v":"Tarteko arduradunak – 1. maila"},null,null,null,null,null,null,null,null,null,null,null,null,null,{"$error":"#DIV/0!"}]
[null,{"$f":"Plantilla!B15","v":"Tarteko arduradunak – 2. maila"},null,null,null,null,null,null,null,null,null,null,null,null,null,{"$error":"#DIV/0!"}]
[null,{"$f":"Plantilla!B16","v":0},null,null,null,null,null,null,null,null,null,null,null,null,null,{"$error":"#DIV/0!"}]
[null,{"$f":"Plantilla!B17","v":0},null,null,null,null,null,null,null,null,null,null,null,null,null,{"$error":"#DIV/0!"}]
[null,{"$f":"Plantilla!B18","v":0},null,null,null,null,null,null,null,null,null,null,null,null,null,{"$error":"#DIV/0!"}]
[null,{"$f":"Plantilla!B19","v":0},null,null,null,null,null,null,null,null,null,null,null,null,null,{"$error":"#DIV/0!"}]
[null,{"$f":"Plantilla!B21","v":"MAILA OPERATIBOA"},null,null,null,null,null,null,null,null,null,null,null,null,null,{"$error":"#DIV/0!"}]
[null,{"$f":"Plantilla!B22","v":"Teknikariak"},null,null,null,null,null,null,null,null,null,null,null,null,null,{"$error":"#DIV/0!"}]
[null,{"$f":"Plantilla!B23","v":"Administrazioko langileak"},null,null,null,null,null,null,null,null,null,null,null,null,null,{"$error":"#DIV/0!"}]
[null,{"$f":"Plantilla!B24","v":"Langileak"},null,null,null,null,null,null,null,null,null,null,null,null,null,{"$error":"#DIV/0!"}]
[null,{"$f":"Plantilla!B25","v":0}]
[null,{"$f":"Plantilla!B26","v":0}]
[null,{"$f":"Plantilla!B27","v":0}]
[null,{"$f":"Plantilla!B28","v":0},null,null,null,null,null,null,null,null,null,null,null,null,null,{"$error":"#DIV/0!"}]
[null,"* Kalkulatu azken ekitaldiko batez besteko soldata, lanpostuaren eta sexuaren arabera; osagarriak, aldagarriak eta espezietan jasotakoaren balorazioa barne.",null,null,null,null,null,null,null,null,null,null,null,null,null,{"$f":"(SUM(G71:G87)-SUM(H71:H87))/(SUM(H71:H87))","v":{"$error":"#DIV/0!"}}]
[]
[null,"HITZARMENEAN JASOTAKOA BAINO SOLDATA HANDIAGOA DUTEN PERTSONEN KOPURUA, LANPOSTUKO",null,null,null,null,null,null,null,null,null,null,{"$f":"(SUM(G92:G109)/M4)/(SUM(H92:H109)/N4)","v":{"$error":"#DIV/0!"}}]
[null,null,null,null,null,null,"Emakumeak","Gizonak"]
[null,"MAILA ESTRATEGIKOA"]
[null,{"$f":"Plantilla!B10","v":"Kudeaketa"}]
[null,{"$f":"Plantilla!B11","v":"Zuzendaritza-postuak"}]
[null,"MAILA TAKTIKOA"]
[null,{"$f":"Plantilla!B14","v":"Tarteko arduradunak – 1. maila"}]
[null,{"$f":"Plantilla!B15","v":"Tarteko arduradunak – 2. maila"}]
[null,{"$f":"Plantilla!B16","v":0}]
[null,{"$f":"Plantilla!B17","v":0}]
[null,{"$f":"Plantilla!B18","v":0}]
[null,{"$f":"Plantilla!B19","v":0}]
[null,"MAILA OPERATIBOA"]
[null,{"$f":"Plantilla!B22","v":"Teknikariak"}]
[null,{"$f":"Plantilla!B23","v":"Administrazioko langileak"}]
[null,{"$f":"Plantilla!B24","v":"Langileak"}]
[null,{"$f":"Plantilla!B25","v":0}]
[null,{"$f":"Plantilla!B26","v":0}]
[null,{"$f":"Plantilla!B27","v":0}]
[null,{"$f":"Plantilla!B28","v":0}]
[]
[null,"SOLDATA ALDAKORRA DUTEN PERTSONEN KOPURUA, LANPOSTUKO",null,null,null,null,null,null,null,null,null,null,{"$f":"(SUM(G113:G130)/M4)/(SUM(H113:H130)/N4)","v":{"$error":"#DIV/0!"}}]
[null,null,null,null,null,null,"Emakumeak","Gizonak"]
[null,"MAILA ESTRATEGIKOA"]
[null,{"$f":"Plantilla!B10","v":"Kudeaketa"}]
[null,{"$f":"Plantilla!B11","v":"Zuzendaritza-postuak"}]
[null,"MAILA TAKTIKOA"]
[null,{"$f":"Plantilla!B14","v":"Tarteko arduradunak – 1. maila"}]
[null,{"$f":"Plantilla!B15","v":"Tarteko arduradunak – 2. maila"}]
[null,{"$f":"Plantilla!B16","v":0}]
[null,{"$f":"Plantilla!B17","v":0}]
[null,{"$f":"Plantilla!B18","v":0}]
[null,{"$f":"Plantilla!B19","v":0}]
[null,"MAILA OPERATIBOA"]
[null,{"$f":"Plantilla!B22","v":"Teknikariak"}]
[null,{"$f":"Plantilla!B23","v":"Administrazioko langileak"}]
[null,{"$f":"Plantilla!B24","v":"Langileak"}]
[null,{"$f":"B71=Plantilla!B25","v":false}]
[null,{"$f":"Plantilla!B26","v":0}]
[null,{"$f":"Plantilla!B27","v":0}]
[null,{"$f":"Plantilla!B28","v":0}]
[]
[]
[null,"SOLDATA-OSAGARRIAK DITUZTEN PERTSONAK",null,null,null,null,null,null,null,null,null,null,{"$f":"(SUM(G135:G149)/M4)/(SUM(H135:H149)/N4)","v":{"$error":"#DIV/0!"}}]
[null,null,null,null,null,null,"Emakumeak","Gizonak"]
[null,"Antzinatasuna"]
[null,"Aparteko ordainsariak"]
[null,"Mozkinetako partaidetza"]
[null,"Arriskugarritasuna"]
[null,"Toxikotasuna"]
[null,"Txandak"]
[null,"Gaueko lana"]
[null,"Lanaren kalitatearen edo kantitatearen araberako ekoizpenerako primak"]
[null,"Mantenua"]
[null,"Ostatuak"]
[null,"Beste osagarri batzuk"]
[]
[]
[]
[]
[]
[]
[null,"ONURA SOZIALAK",null,null,null,null,null,null,null,null,null,null,{"$f":"(SUM(G155:G164)/M4)/(SUM(H155:H164)/N4)","v":{"$error":"#DIV/0!"}}]
[]
[null,null,null,null,null,null,"Emakumeak","Gizonak"]
[null,"Pentsio plana"]
[null,"Bizitza-asegurua"]
[null,"Mediku-asegurua"]
[null,"Hortzetako asegurua"]
[null,"Janari-bonuak, dieten edo ez-ohiko joan-etorrien ordainketak"]
[null,"Haurtzaindegia"]
[null,"Ordenagailua"]
[null,"Autoa"]
[null,"Telefono mugikorra"]
[null,"Bestelakoak"]
[]
[]
[null,"SEGURTASUNA ETA OSASUNA"]
[]
[null,null,null,null,null,null,"Sexu-jazarpena","Sexu-arrazoiengatik jazarpena"]
[null,"Azken 4 urteetako salaketak"]
[]
[null,"LANA ETA FAMILIA BATERATZEKO ETA LAN-DENBORA ETA -LEKUA MALGUTZEKO NEURRIAK"]
[]
[null,"(Azken ekitaldiko datuak)",null,null,"Neurriez baliatzeko moduan daudenak",null,"Neurriez baliatzen direnak"]
[null,"Lana eta familia uztartzeko neurriak",null,null,"Emakumeak","Gizonak","Emakumeak","Gizonak",null,null,null,null,"Emakumeak","Gizonak","tasa",null,null,null,null,null,"Erreferentzia beste orri batzuei"]
[null,"Aitatasun-baimena","Maila estrategikoa",null,null,null,null,null,null,null,null,null,{"$f":"G176/E176","v":{"$error":"#DIV/0!"}},{"$f":"H176/F176","v":{"$error":"#DIV/0!"}},{"$f":"M176/N176","v":{"$error":"#DIV/0!"}},{"$f":"G176/(G176+H176)","v":{"$error":"#DIV/0!"}},null,null,null,null,{"$f":"G176/(G176+H176)","v":{"$error":"#DIV/0!"}}]
[null,null,"Maila taktikoa",null,null,null,null,null,null,null,null,null,{"$error":"#DIV/0!"},{"$error":"#DIV/0!"},{"$f":"M177/N177","v":{"$error":"#DIV/0!"}},{"$f":"G177/(G177+H177)","v":{"$error":"#DIV/0!"}},null,null,null,null,{"$f":"G177/(G177+H177)","v":{"$error":"#DIV/0!"}}]
[null,null,"Maila operatiboa",null,null,null,null,null,null,null,null,null,{"$error":"#DIV/0!"},{"$error":"#DIV/0!"},{"$error":"#DIV/0!"},{"$error":"#DIV/0!"},null,null,null,null,{"$error":"#DIV/0!"}]
[null,"Amatasun-baimena (6. astetik aurrera)",null,null,null,null,null,null,null,null,null,null,{"$error":"#DIV/0!"},{"$error":"#DIV/0!"},{"$error":"#DIV/0!"},{"$error":"#DIV/0!"}]
[null,"Edoskitze-baimena",null,null,null,null,null,null,null,null,null,null,{"$error":"#DIV/0!"},{"$error":"#DIV/0!"},{"$error":"#DIV/0!"},{"$error":"#DIV/0!"}]
[null,"Legezko zaintzarako lanaldi-murrizketa (12 urtetik beherakoekin)",null,null,{"$f":"Plantilla!O91","v":0},{"$f":"Plantilla!P91","v":0},null,null,null,null,null,null,{"$error":"#DIV/0!"},{"$error":"#DIV/0!"},{"$error":"#DIV/0!"},{"$error":"#DIV/0!"}]
[null,"Adingabeak (3 urtetik beherakoak) zaintzeko eszedentzia",null,null,{"$f":"Plantilla!G92","v":0},{"$f":"Plantilla!H92","v":0},null,null,null,null,null,null,{"$error":"#DIV/0!"},{"$error":"#DIV/0!"},{"$error":"#DIV/0!"},{"$error":"#DIV/0!"}]
[null,"Mendetasuna duen senitartekoa zaintzeko eszedentzia (*)",null,null,{"$f":"M4","v":0},{"$f":"N4","v":0},null,null,null,null,null,null,{"$error":"#DIV/0!"},{"$error":"#DIV/0!"},{"$error":"#DIV/0!"},{"$error":"#DIV/0!"}]
[null,"Norberak erabiltzeko ordu-poltsa",null,null,null,null,null,null,null,null,null,null,{"$error":"#DIV/0!"},{"$error":"#DIV/0!"},{"$error":"#DIV/0!"},{"$error":"#DIV/0!"}]
[null,"Mendeko pertsonak zaintzeko ordu-poltsa",null,null,null,null,null,null,null,null,null,null,{"$error":"#DIV/0!"},{"$error":"#DIV/0!"},{"$error":"#DIV/0!"},{"$error":"#DIV/0!"}]
[null,"Bestelakoak",null,null,null,null,null,null,null,null,null,null,{"$error":"#DIV/0!"},{"$error":"#DIV/0!"},{"$error":"#DIV/0!"},{"$error":"#DIV/0!"}]
[null,"Lana eta familia bateratzen laguntzeko zerbitzuak",null,null,null,null,null,null,null,null,null,null,null,null,null,{"$error":"#DIV/0!"}]
[null,"Haurtzaindegia",null,null,null,null,null,null,null,null,null,null,{"$f":"G188/E188","v":{"$error":"#DIV/0!"}},{"$error":"#DIV/0!"},{"$error":"#DIV/0!"},{"$error":"#DIV/0!"}]
[null,"Jantokia",null,null,null,null,null,null,null,null,null,null,{"$error":"#DIV/0!"},{"$error":"#DIV/0!"},{"$error":"#DIV/0!"},{"$error":"#DIV/0!"}]
[null,"Taldeko garraioa",null,null,null,null,null,null,null,null,null,null,{"$error":"#DIV/0!"},{"$error":"#DIV/0!"},{"$error":"#DIV/0!"},{"$error":"#DIV/0!"}]
[null,"Bestelakoak",null,null,null,null,null,null,null,null,null,null,{"$error":"#DIV/0!"},{"$error":"#DIV/0!"},{"$error":"#DIV/0!"},{"$error":"#DIV/0!"}]
[null,"Lan-denboraren eta -lekuaren malgutasuna",null,null,null,null,null,null,null,null,null,null,null,null,null,{"$error":"#DIV/0!"}]
[null,"Sartzeko eta irteteko malgutasuna",null,null,null,null,null,null,null,null,null,null,{"$f":"G193/E193","v":{"$error":"#DIV/0!"}},{"$f":"H193/F193","v":{"$error":"#DIV/0!"}},{"$error":"#DIV/0!"},{"$error":"#DIV/0!"}]
[null,"Eguerdian gelditzeko malgutasuna",null,null,null,null,null,null,null,null,null,null,{"$error":"#DIV/0!"},{"$error":"#DIV/0!"},{"$error":"#DIV/0!"},{"$error":"#DIV/0!"}]
[null,"Ordutegiaren malgutasun negoziatua",null,null,null,null,null,null,null,null,null,null,{"$error":"#DIV/0!"},{"$error":"#DIV/0!"},{"$error":"#DIV/0!"},{"$error":"#DIV/0!"}]
[null,"Arrazoi pertsonalen ondorioz lanaldia murriztea",null,null,null,null,null,null,null,null,null,null,{"$error":"#DIV/0!"},{"$error":"#DIV/0!"},{"$error":"#DIV/0!"},{"$error":"#DIV/0!"}]
[null,"Arrazoi pertsonalengatiko eszedentzia ordaindua",null,null,null,null,null,null,null,null,null,null,{"$error":"#DIV/0!"},{"$error":"#DIV/0!"},{"$error":"#DIV/0!"},{"$error":"#DIV/0!"}]
[null,"Arrazoi pertsonalengatiko eszedentzia ordaindu gabea",null,null,null,null,null,null,null,null,null,null,{"$error":"#DIV/0!"},{"$error":"#DIV/0!"},{"$error":"#DIV/0!"},{"$error":"#DIV/0!"}]
[null,"Telelana",null,null,null,null,null,null,null,null,null,null,{"$error":"#DIV/0!"},{"$error":"#DIV/0!"},{"$error":"#DIV/0!"},{"$error":"#DIV/0!"}]
[null,"Bizilekura gerturatzea",null,null,null,null,null,null,null,null,null,null,{"$error":"#DIV/0!"},{"$error":"#DIV/0!"},{"$error":"#DIV/0!"},{"$error":"#DIV/0!"}]
[null,"Oporraldia modu zatikatuan hautatzeko aukera",null,null,null,null,null,null,null,null,null,null,{"$error":"#DIV/0!"},{"$error":"#DIV/0!"},{"$error":"#DIV/0!"},{"$error":"#DIV/0!"}]
[null,"Bestelakoak",null,null,null,null,null,null,null,null,null,null,{"$error":"#DIV/0!"},{"$error":"#DIV/0!"},{"$error":"#DIV/0!"},{"$error":"#DIV/0!"}]
[null,"(*) Mendeko familiartekoak zaintzeko eszedentzia: langile guztiak jo dira neurri honen hartzailetzat."]

{"sheet":"GestionPersonas","index":5,"n_rows":56,"n_cols":21,"rows_kept":56,"cut":false,"hidden":true,"merged":[[55,1,55,5],[53,1,53,5],[44,14,45,14],[47,14,52,14],[21,1,21,5],[22,1,22,5],[23,1,23,5],[24,1,24,5],[54,1,54,5],[40,1,40,7],[42,6,42,7],[43,1,43,5],[44,1,44,5],[45,1,45,5],[46,1,46,5],[52,1,52,5],[8,16,9,16],[11,16,16,16],[18,16,24,16],[8,15,9,15],[11,15,16,15],[18,15,24,15],[15,1,15,5],[25,1,25,5],[31,6,31,7],[36,1,36,5],[16,1,16,5],[20,1,20,5],[17,1,17,5],[18,1,18,5],[13,1,13,5],[14,1,14,5],[2,1,2,7],[4,1,4,7],[8,1,8,5],[6,6,6,7],[9,1,9,5],[10,1,10,5],[11,1,11,5],[12,1,12,5],[51,1,51,5],[1,12,1,13],[1,14,1,15],[0,12,0,15],[49,1,49,5],[50,1,50,5],[26,1,26,5],[37,1,37,5],[47,1,47,5],[48,1,48,5],[32,1,32,5],[33,1,33,5],[34,1,34,5],[35,1,35,5],[29,1,29,7],[19,1,19,5]]}
[null,null,null,null,null,null,null,null,null,null,null,null,"Langileak, guztira"]
[null,null,null,null,null,null,null,null,null,null,null,null,"gaur",null,"orain 4 urte"]
[null,"PERTSONEN KUDEAKETA",null,null,null,null,null,null,null,null,null,null,"Emakumeak","Gizonak","Emakumeak","Gizonak"]
[null,null,null,null,null,null,null,null,null,null,null,null,{"$f":"Plantilla!E30","v":0},{"$f":"Plantilla!F30","v":0},{"$f":"Plantilla!G30","v":0},{"$f":"Plantilla!H30","v":0}]
[null,"KONTRATAZIOAK"]
[]
[null,null,null,null,null,null,"Azken 4 urteko zikloa, guztira"]
[null,null,null,null,null,null,"Emakumeak","Gizonak",null,null,null,null,"Emakumeak","Gizonak","Emakumeak",null,"< % 40",null,null,"emakumeak","gizonak"]
[null,{"$f":"Plantilla!B10","v":"Kudeaketa"},null,null,null,null,null,null,null,null,null,null,{"$f":"G9/G$27","v":{"$error":"#DIV/0!"}},{"$f":"H9/H$27","v":{"$error":"#DIV/0!"}},{"$f":"Plantilla!L10","v":{"$error":"#DIV/0!"}},{"$f":"G11/(G11+H11)","v":{"$error":"#DIV/0!"}},{"$f":"SUMIF(O9:O10,\"<40%\",G9:G10)","v":0},{"$f":"IF(O9<40%,G9/$Q$27,\"-\")","v":{"$error":"#DIV/0!"}},null,{"$f":"G27/(G27+H27)","v":{"$error":"#DIV/0!"}},{"$f":"H27/(H27+G27)","v":{"$error":"#DIV/0!"}}]
[null,{"$f":"Plantilla!B11","v":"Zuzendaritza-postuak"},null,null,null,null,null,null,null,null,null,null,{"$error":"#DIV/0!"},{"$error":"#DIV/0!"},{"$f":"Plantilla!L11","v":{"$error":"#DIV/0!"}},null,null,{"$f":"IF(O10<40%,G10/$Q$27,\"-\")","v":{"$error":"#DIV/0!"}}]
[null,"Maila estrategikoaren guztizko partziala",null,null,null,null,{"$f":"SUM(G9:G10)","v":0},{"$f":"SUM(H9:H10)","v":0},null,null,null,null,{"$error":"#DIV/0!"},{"$error":"#DIV/0!"},{"$f":"Plantilla!L12","v":{"$error":"#DIV/0!"}},null,null,{"$error":"#DIV/0!"}]
[null,{"$f":"Plantilla!B14","v":"Tarteko arduradunak – 1. maila"},null,null,null,null,null,null,null,null,null,null,{"$error":"#DIV/0!"},{"$error":"#DIV/0!"},{"$f":"Plantilla!L14","v":{"$error":"#DIV/0!"}},{"$f":"G18/(G18+H18)","v":{"$error":"#DIV/0!"}},{"$f":"SUMIF(O12:O17,\"<40%\",G12:G17)","v":0},{"$error":"#DIV/0!"}]
[null,{"$f":"Plantilla!B15","v":"Tarteko arduradunak – 2. maila"},null,null,null,null,null,null,null,null,null,null,{"$error":"#DIV/0!"},{"$error":"#DIV/0!"},{"$f":"Plantilla!L15","v":{"$error":"#DIV/0!"}},null,null,{"$error":"#DIV/0!"}]
[null,{"$f":"Plantilla!B16","v":0},null,null,null,null,null,null,null,null,null,null,{"$f":"G14/G$27","v":{"$error":"#DIV/0!"}},{"$f":"H14/H$27","v":{"$error":"#DIV/0!"}},{"$f":"Plantilla!L16","v":{"$error":"#DIV/0!"}},null,null,{"$error":"#DIV/0!"}]
[null,{"$f":"Plantilla!B17","v":0},null,null,null,null,null,null,null,null,null,null,{"$error":"#DIV/0!"},{"$error":"#DIV/0!"},{"$f":"Plantilla!L17","v":{"$error":"#DIV/0!"}},null,null,{"$error":"#DIV/0!"}]
[null,{"$f":"Plantilla!B18","v":0},null,null,null,null,null,null,null,null,null,null,{"$error":"#DIV/0!"},{"$error":"#DIV/0!"},{"$f":"Plantilla!L18","v":{"$error":"#DIV/0!"}},null,null,{"$error":"#DIV/0!"}]
[null,{"$f":"Plantilla!B19","v":0},null,null,null,null,null,null,null,null,null,null,{"$error":"#DIV/0!"},{"$error":"#DIV/0!"},{"$f":"Plantilla!L19","v":{"$error":"#DIV/0!"}},null,null,{"$error":"#DIV/0!"}]
[null,"Maila taktikoaren guztizko partziala",null,null,null,null,{"$f":"SUM(G12:G17)","v":0},{"$f":"SUM(H12:H17)","v":0},null,null,null,null,{"$error":"#DIV/0!"},{"$error":"#DIV/0!"},{"$f":"Plantilla!L20","v":{"$error":"#DIV/0!"}},null,null,{"$error":"#DIV/0!"}]
[null,{"$f":"Plantilla!B22","v":"Teknikariak"},null,null,null,null,null,null,null,null,null,null,{"$error":"#DIV/0!"},{"$error":"#DIV/0!"},{"$f":"Plantilla!L22","v":{"$error":"#DIV/0!"}},{"$f":"G26/(G26+H26)","v":{"$error":"#DIV/0!"}},{"$f":"SUMIF(O19:O25,\"<40%\",G19:G25)","v":0},{"$error":"#DIV/0!"}]
[null,{"$f":"Plantilla!B23","v":"Administrazioko langileak"},null,null,null,null,null,null,null,null,null,null,{"$error":"#DIV/0!"},{"$error":"#DIV/0!"},{"$f":"Plantilla!L23","v":{"$error":"#DIV/0!"}},null,null,{"$error":"#DIV/0!"}]
[null,{"$f":"Plantilla!B24","v":"Langileak"},null,null,null,null,null,null,null,null,null,null,{"$error":"#DIV/0!"},{"$error":"#DIV/0!"},{"$f":"Plantilla!L24","v":{"$error":"#DIV/0!"}},null,null,{"$error":"#DIV/0!"}]
[null,{"$f":"Plantilla!B25","v":0},null,null,null,null,null,null,null,null,null,null,{"$f":"G22/G$27","v":{"$error":"#DIV/0!"}},{"$f":"H22/H$27","v":{"$error":"#DIV/0!"}},{"$f":"Plantilla!L25","v":{"$error":"#DIV/0!"}},null,null,{"$error":"#DIV/0!"}]
[null,{"$f":"Plantilla!B26","v":0},null,null,null,null,null,null,null,null,null,null,{"$error":"#DIV/0!"},{"$error":"#DIV/0!"},{"$f":"Plantilla!L26","v":{"$error":"#DIV/0!"}},null,null,{"$error":"#DIV/0!"}]
[null,{"$f":"Plantilla!B27","v":0},null,null,null,null,null,null,null,null,null,null,{"$error":"#DIV/0!"},{"$error":"#DIV/0!"},{"$f":"Plantilla!L27","v":{"$error":"#DIV/0!"}},null,null,{"$error":"#DIV/0!"}]
[null,{"$f":"Plantilla!B28","v":0},null,null,null,null,null,null,null,null,null,null,{"$error":"#DIV/0!"},{"$error":"#DIV/0!"},{"$f":"Plantilla!L28","v":{"$error":"#DIV/0!"}},null,null,{"$error":"#DIV/0!"}]
[null,"Maila operatiboaren guztizko partziala",null,null,null,null,{"$f":"SUM(G19:G25)","v":0},{"$f":"SUM(H19:H25)","v":0},null,null,null,null,{"$error":"#DIV/0!"},{"$error":"#DIV/0!"},{"$f":"Plantilla!L29","v":{"$error":"#DIV/0!"}}]
[null,"Lanean hasitakoak, guztira",null,null,null,null,{"$f":"G11+G18+G26","v":0},{"$f":"H11+H18+H26","v":0},null,null,null,"erroreak",{"$f":"M11+M18+M26","v":{"$error":"#DIV/0!"}},{"$f":"N11+N18+N26","v":{"$error":"#DIV/0!"}},null,null,{"$f":"Q9+Q12+Q19","v":0},{"$f":"SUM(R9:R26)","v":{"$error":"#DIV/0!"}}]
[]
[]
[null,"IRTEERAK"]
[]
[null,null,null,null,null,null,"Azken 4 urteko zikloa, guztira"]
[null,"Arrazoia",null,null,null,null,"Emakumeak","Gizonak",null,null,null,null,"Emakumeak","Gizonak"]
[null,"Kontratuaren amaiera",null,null,null,null,null,null,null,null,null,null,{"$f":"G34/G38","v":{"$error":"#DIV/0!"}},{"$f":"H34/H38","v":{"$error":"#DIV/0!"}},null,null,{"$f":"(G34/O4)/(H34/P4)","v":{"$error":"#DIV/0!"}}]
[null,"Borondatez irtetea",null,null,null,null,null,null,null,null,null,null,{"$f":"G35/G38","v":{"$error":"#DIV/0!"}},{"$f":"H35/H38","v":{"$error":"#DIV/0!"}},null,null,{"$f":"(G35/O4)/(H35/P4)","v":{"$error":"#DIV/0!"}}]
[null,"Kaleratzea",null,null,null,null,null,null,null,null,null,null,{"$f":"G36/G38","v":{"$error":"#DIV/0!"}},{"$f":"H36/H38","v":{"$error":"#DIV/0!"}},null,null,{"$f":"(G36/O4)/(H36/P4)","v":{"$error":"#DIV/0!"}}]
[null,"Erretiroa",null,null,null,null,null,null,null,null,null,null,{"$f":"G37/G38","v":{"$error":"#DIV/0!"}},{"$f":"H37/H39","v":{"$error":"#DIV/0!"}},null,null,{"$f":"(G37/O5)/(H37/P5)","v":{"$error":"#DIV/0!"}}]
[null,"Enpresa utzitakoak, guztira",null,null,null,null,{"$f":"SUM(G34:G37)","v":0},{"$f":"SUM(H34:H37)","v":0},null,null,null,null,null,null,null,null,{"$f":"(G38/O4)/(H38/P4)","v":{"$error":"#DIV/0!"}}]
[]
[]
[null,"BARNE-SUSTAPENA"]
[]
[null,null,null,null,null,null,"Azken 4 urteko zikloa, guztira"]
[null,null,null,null,null,null,"Emakumeak","Gizonak",null,null,null,null,"Emakumeak","Gizonak"]
[null,{"$f":"Plantilla!B10","v":"Kudeaketa"},null,null,null,null,null,null,null,null,null,null,{"$f":"G45/$G$56","v":{"$error":"#DIV/0!"}},{"$f":"H45/$H$56","v":{"$error":"#DIV/0!"}},{"$f":"G47/(G47+H47)","v":{"$error":"#DIV/0!"}}]
[null,{"$f":"Plantilla!B11","v":"Zuzendaritza-postuak"},null,null,null,null,null,null,null,null,null,null,{"$f":"G46/$G$56","v":{"$error":"#DIV/0!"}},{"$f":"H46/$H$56","v":{"$error":"#DIV/0!"}}]
[null,"Maila estrategikoaren guztizko partziala",null,null,null,null,{"$f":"SUM(G45:G46)","v":0},{"$f":"SUM(H45:H46)","v":0},null,null,null,null,{"$error":"#DIV/0!"},{"$error":"#DIV/0!"}]
[null,{"$f":"Plantilla!B14","v":"Tarteko arduradunak – 1. maila"},null,null,null,null,null,null,null,null,null,null,{"$error":"#DIV/0!"},{"$error":"#DIV/0!"},{"$f":"G54/(G54+H54)","v":{"$error":"#DIV/0!"}}]
[null,{"$f":"Plantilla!B15","v":"Tarteko arduradunak – 2. maila"},null,null,null,null,null,null,null,null,null,null,{"$error":"#DIV/0!"},{"$error":"#DIV/0!"}]
[null,{"$f":"Plantilla!B16","v":0},null,null,null,null,null,null,null,null,null,null,{"$error":"#DIV/0!"},{"$error":"#DIV/0!"}]
[null,{"$f":"Plantilla!B17","v":0},null,null,null,null,null,null,null,null,null,null,{"$error":"#DIV/0!"},{"$error":"#DIV/0!"}]
[null,{"$f":"Plantilla!B18","v":0}]
[null,{"$f":"Plantilla!B19","v":0},null,null,null,null,null,null,null,null,null,null,{"$error":"#DIV/0!"},{"$error":"#DIV/0!"}]
[null,"Maila taktikoaren guztizko partziala",null,null,null,null,{"$f":"SUM(G48:G53)","v":0},{"$f":"SUM(H48:H53)","v":0},null,null,null,null,{"$error":"#DIV/0!"},{"$error":"#DIV/0!"}]
[null,"Maila operatiboaren guztizko partziala",null,null,null,null,0,0,null,null,null,null,{"$error":"#DIV/0!"},{"$error":"#DIV/0!"},{"$f":"G55/(G55+H55)","v":{"$error":"#DIV/0!"}}]
[null,"Mailaz igo direnak, guztira",null,null,null,null,{"$f":"G55+G47+G54","v":0},{"$f":"H55+H47+H54","v":0},null,null,null,null,{"$error":"#DIV/0!"},{"$error":"#DIV/0!"}]

{"sheet":"ActividadDimension","index":6,"n_rows":56,"n_cols":19,"rows_kept":56,"cut":false,"hidden":true,"merged":[[32,6,33,7],[39,1,39,3],[39,6,39,7],[38,1,38,3],[38,6,38,7],[34,1,34,3],[34,6,34,7],[35,1,35,3],[35,6,35,7],[36,1,36,3],[36,6,36,7],[37,1,37,3],[37,6,37,7],[32,4,32,5],[32,1,33,3],[8,18,9,18],[6,12,6,13],[6,14,6,15],[9,1,9,3],[2,1,2,7],[4,1,4,7],[6,4,6,5],[6,6,6,7],[8,1,8,3],[12,1,12,7],[14,4,14,5],[14,6,14,7],[16,1,16,3],[19,1,19,7],[30,1,30,7],[21,6,21,7],[23,1,23,5],[24,1,24,5],[25,1,25,5],[53,4,53,5],[53,6,53,7],[55,1,55,3],[44,1,44,7],[46,4,46,5],[46,6,46,7],[48,1,48,3],[51,1,51,7],[14,12,14,13],[14,14,14,15],[53,12,53,13],[53,14,53,15],[46,12,46,13],[46,14,46,15]]}
[]
[]
[null,"ENPRESAREN JARDUERA"]
[]
[null,"ERABILTZAILEAK"]
[]
[null,null,null,null,"Azken ekitaldiko datuak",null,"Orain 4 urte",null,null,null,null,null,"Gaur",null,"Orain 4 urte"]
[null,null,null,null,"Emakumeak","Gizonak","Emakumeak","Gizonak",null,null,null,null,"Emakumeak","Gizonak","Emakumeak","Gizonak"]
[null,"Erabiltzaile ez-atzerritarrak",null,null,null,null,null,null,null,null,null,null,{"$f":"E9/(SUM(E$9:F$9))","v":{"$error":"#DIV/0!"}},{"$f":"F9/(SUM(E$9:F$9))","v":{"$error":"#DIV/0!"}},{"$f":"G9/(SUM(G$9:H$9))","v":{"$error":"#DIV/0!"}},{"$f":"H9/(SUM(G$9:H$9))","v":{"$error":"#DIV/0!"}},null,{"$f":"(M9-O9)*100","v":{"$error":"#DIV/0!"}},{"$f":"(M11-O11)*100","v":{"$error":"#DIV/0!"}}]
[null,"Erabiltzaile atzerritarrak",null,null,null,null,null,null,null,null,null,null,{"$f":"E10/(SUM(E$10:F$10))","v":{"$error":"#DIV/0!"}},{"$f":"F10/(SUM(E$10:F$10))","v":{"$error":"#DIV/0!"}},{"$f":"G10/(SUM(G$10:H$10))","v":{"$error":"#DIV/0!"}},{"$f":"H10/(SUM(G$10:H$10))","v":{"$error":"#DIV/0!"}},null,{"$f":"(M10-O10)*100","v":{"$error":"#DIV/0!"}}]
[null,null,null,null,null,null,null,null,null,null,null,null,{"$f":"SUM(E9:E10)/SUM(E9:F10)","v":{"$error":"#DIV/0!"}},{"$f":"SUM(F9:F10)/SUM(E9:F10)","v":{"$error":"#DIV/0!"}},{"$f":"SUM(G9:G10)/SUM(G9:H10)","v":{"$error":"#DIV/0!"}},{"$f":"SUM(H9:H10)/SUM(G9:H10)","v":{"$error":"#DIV/0!"}}]
[]
[null,"BEZEROAK"]
[]
[null,null,null,null,"Azken ekitaldiko datuak",null,"Orain 4 urte",null,null,null,null,null,"Gaur",null,"Orain 4 urte"]
[null,null,null,null,"Emakumeak","Gizonak","Emakumeak","Gizonak",null,null,null,null,"Emakumeak","Gizonak","Emakumeak","Gizonak"]
[null,"Bezeroak (fidelizatuta, harpidetzak, online salmentak)",null,null,null,null,null,null,null,null,null,null,{"$f":"E17/(SUM(E$17:F$17))","v":{"$error":"#DIV/0!"}},{"$f":"F17/(SUM(E$17:F$17))","v":{"$error":"#DIV/0!"}},{"$f":"G17/(SUM(G$17:H$17))","v":{"$error":"#DIV/0!"}},{"$f":"H17/(SUM(G$17:H$17))","v":{"$error":"#DIV/0!"}},null,{"$f":"(M17-O17)*100","v":{"$error":"#DIV/0!"}}]
[]
[]
[null,"PRODUKTUAK ETA ZERBITZUAK GARATZEA"]
[]
[null,null,null,null,null,null,"Azken ekitaldiko datuak"]
[null,null,null,null,null,null,"Emakumeak","Gizonak",null,null,null,null,"Emakumeak","Gizonak"]
[null,"Produktuen eta zerbitzuen garapenean dauden langileak",null,null,null,null,null,null,null,null,null,null,{"$f":"G24/SUM(G24:H24)","v":{"$error":"#DIV/0!"}},{"$f":"H24/SUM(G24:H24)","v":{"$error":"#DIV/0!"}}]
[null,"Merkataritza-estrategiaren definizioan dauden langileak",null,null,null,null,null,null,null,null,null,null,{"$f":"G25/SUM(G25:H25)","v":{"$error":"#DIV/0!"}},{"$f":"H25/SUM(G25:H25)","v":{"$error":"#DIV/0!"}}]
[null,"Bezeroarenganako arretaren arloan dauden langileak",null,null,null,null,null,null,null,null,null,null,{"$error":"#DIV/0!"},{"$error":"#DIV/0!"}]
[]
[]
[null,"ERAKUNDEAREN KANPO-DIMENTSIOA"]
[]
[null,"AZPIKONTRATAZIOAK"]
[]
[null,"Azpikontratatutako enpresa",null,null,"Azpikontratatutako langileak",null,"Azpikontratatutako jarduerak"]
[null,null,null,null,"Emakumeak","Gizonak"]
[null,null,null,null,null,null,null,null,null,null,null,{"$f":"E41/(E41+F41)","v":{"$error":"#DIV/0!"}}]
[]
[]
[]
[]
[]
[null,null,null,null,{"$f":"SUM(E35:E40)","v":0},{"$f":"SUM(F35:F40)","v":0}]
[]
[]
[]
[null,"BOLUNTARIOAK"]
[]
[null,null,null,null,"Azken ekitaldiko datuak",null,"Orain 4 urte",null,null,null,null,null,"Gaur",null,"Orain 4 urte"]
[null,null,null,null,"Emakumeak","Gizonak","Emakumeak","Gizonak",null,null,null,null,"Emakumeak","Gizonak","Emakumeak","Gizonak"]
[null,"Boluntarioak",null,null,null,null,null,null,null,null,null,null,{"$f":"E49/SUM(E49:F49)","v":{"$error":"#DIV/0!"}},{"$f":"F49/SUM(E49:F49)","v":{"$error":"#DIV/0!"}},{"$f":"G49/SUM(G49:H49)","v":{"$error":"#DIV/0!"}},{"$f":"H49/SUM(G49:H49)","v":{"$error":"#DIV/0!"}}]
[]
[]
[null,"SARE SOZIALAK"]
[]
[null,null,null,null,"Azken ekitaldiko datuak",null,"Orain 4 urte",null,null,null,null,null,"Gaur",null,"Orain 4 urte"]
[null,null,null,null,"Emakumeak","Gizonak","Emakumeak","Gizonak",null,null,null,null,"Emakumeak","Gizonak","Emakumeak","Gizonak"]
[null,"Jarraipenak sare sozialetan",null,null,null,null,null,null,null,null,null,null,{"$f":"E56/SUM(E56:F56)","v":{"$error":"#DIV/0!"}},{"$f":"F56/SUM(E56:F56)","v":{"$error":"#DIV/0!"}},{"$f":"G56/SUM(G56:H56)","v":{"$error":"#DIV/0!"}},{"$f":"H56/SUM(G56:H56)","v":{"$error":"#DIV/0!"}}]

{"sheet":"Opinion","index":7,"n_rows":31,"n_cols":30,"rows_kept":31,"cut":false,"hidden":true,"merged":[[9,16,9,18],[9,19,9,21],[9,23,9,25],[9,27,9,29],[11,2,11,5],[2,2,2,11],[4,2,4,11],[10,2,10,5],[9,6,9,8],[9,9,9,11],[6,2,6,4],[7,2,7,4],[30,2,30,5],[24,2,24,5],[25,2,25,5],[26,2,26,5],[27,2,27,5],[28,2,28,5],[29,2,29,5],[23,2,23,5],[12,2,12,5],[18,2,18,5],[19,2,19,5],[20,2,20,5],[21,2,21,5],[22,2,22,5],[14,2,14,5],[15,2,15,5],[16,2,16,5],[17,2,17,5],[13,2,13,5],[28,6,28,8],[29,6,29,8],[28,9,28,11],[29,9,29,11],[30,6,30,8],[30,9,30,11]]}
[]
[]
[null,null,"IRITZIARI BURUZKO INKESTAREN EMAITZAK"]
[]
[null,null,"IRITZIA"]
[]
[null,null,"Erantzun duten emakumeen kopurua"]
[null,null,"Erantzun duten gizonen kopurua"]
[]
[null,null,null,null,null,null,"Emakumeak",null,null,"Gizonak",null,null,null,null,null,null,"Emakumeak",null,null,"Gizonak",null,null,null,"emakumeak gizonen gainean",null,null,null,"guztira"]
[null,null,null,null,null,null,"Bai","Ez","Ez du erantzun.","Bai","Ez","Ez du erantzun.",null,null,null,null,"Bai","Ez","Ez du erantzun.","Bai","Ez","Ez du erantzun.",null,"bai","ez","Ez du erantzun.",null,"bai","ez","Ez du erantzun."]
[1,1,"Erakunde honetan sexua dela-eta baztertuta sentitu zara inoiz?",null,null,null,null,null,null,null,null,null,null,null,null,null,{"$f":"G12/(SUM(G12:I12))","v":{"$error":"#DIV/0!"}},{"$f":"H12/(SUM(G12:I12))","v":{"$error":"#DIV/0!"}},{"$f":"I12/(SUM(G12:I12))","v":{"$error":"#DIV/0!"}},{"$f":"J12/(SUM(J12:L12))","v":{"$error":"#DIV/0!"}},{"$f":"K12/(SUM(J12:L12))","v":{"$error":"#DIV/0!"}},{"$f":"L12/(SUM(J12:L12))","v":{"$error":"#DIV/0!"}},null,{"$f":"Q12-T12","v":{"$error":"#DIV/0!"}},{"$f":"R12-U12","v":{"$error":"#DIV/0!"}},{"$error":"#DIV/0!"},null,{"$f":"(G12+J12)/SUM(G12:L12)","v":{"$error":"#DIV/0!"}},{"$f":"(H12+K12)/SUM(G12:L12)","v":{"$error":"#DIV/0!"}},{"$f":"(I12+L12)/SUM(G12:L12)","v":{"$error":"#DIV/0!"}}]
[2,2,"Uste al duzu langileen aukeraketak emakumeen eta gizonen arteko tratu- eta aukera-berdintasuna bermatzen duela?",null,null,null,null,null,null,null,null,null,null,null,null,null,{"$f":"G13/(SUM(G13:I13))","v":{"$error":"#DIV/0!"}},{"$f":"H13/(SUM(G13:I13))","v":{"$error":"#DIV/0!"}},{"$f":"I13/(SUM(G13:I13))","v":{"$error":"#DIV/0!"}},{"$f":"J13/(SUM(J13:L13))","v":{"$error":"#DIV/0!"}},{"$f":"K13/(SUM(J13:L13))","v":{"$error":"#DIV/0!"}},{"$f":"L13/(SUM(J13:L13))","v":{"$error":"#DIV/0!"}},null,{"$f":"Q13-T13","v":{"$error":"#DIV/0!"}},{"$f":"R13-U13","v":{"$error":"#DIV/0!"}},{"$f":"S13-V13","v":{"$error":"#DIV/0!"}},null,{"$f":"(G13+J13)/SUM(G13:L13)","v":{"$error":"#DIV/0!"}},{"$f":"(H13+K13)/SUM(G13:L13)","v":{"$error":"#DIV/0!"}},{"$f":"(I13+L13)/SUM(G13:L13)","v":{"$error":"#DIV/0!"}}]
[3,3,"Uste al duzu barne-sustapenak emakumeen eta gizonen arteko tratu- eta aukera-berdintasuna bermatzen duela?",null,null,null,null,null,null,null,null,null,null,null,null,null,{"$error":"#DIV/0!"},{"$error":"#DIV/0!"},{"$error":"#DIV/0!"},{"$error":"#DIV/0!"},{"$error":"#DIV/0!"},{"$error":"#DIV/0!"},null,{"$error":"#DIV/0!"},{"$error":"#DIV/0!"},{"$error":"#DIV/0!"},null,{"$error":"#DIV/0!"},{"$error":"#DIV/0!"},{"$error":"#DIV/0!"}]
[4,4,"Uste al duzu ordainsariak emakumeen eta gizonen arteko tratu- eta aukera-berdintasuna bermatzen duela?",null,null,null,null,null,null,null,null,null,null,null,null,null,{"$error":"#DIV/0!"},{"$error":"#DIV/0!"},{"$error":"#DIV/0!"},{"$error":"#DIV/0!"},{"$error":"#DIV/0!"},{"$error":"#DIV/0!"},null,{"$error":"#DIV/0!"},{"$error":"#DIV/0!"},{"$error":"#DIV/0!"},null,{"$error":"#DIV/0!"},{"$error":"#DIV/0!"},{"$error":"#DIV/0!"}]
[5,5,"Inoiz pairatu al duzu sexu-jazarpenik erakundean?",null,null,null,null,null,null,null,null,null,null,null,null,null,{"$error":"#DIV/0!"},{"$error":"#DIV/0!"},{"$error":"#DIV/0!"},{"$error":"#DIV/0!"},{"$error":"#DIV/0!"},{"$error":"#DIV/0!"},null,{"$error":"#DIV/0!"},{"$error":"#DIV/0!"},{"$error":"#DIV/0!"},null,{"$error":"#DIV/0!"},{"$error":"#DIV/0!"},{"$error":"#DIV/0!"}]
[6,6,"Ezagutzen duzu hemen lanean ari zenean sexu-jazarpenik pairatu duen pertsonaren bat?",null,null,null,null,null,null,null,null,null,null,null,null,null,{"$error":"#DIV/0!"},{"$error":"#DIV/0!"},{"$error":"#DIV/0!"},{"$error":"#DIV/0!"},{"$error":"#DIV/0!"},{"$error":"#DIV/0!"},null,{"$error":"#DIV/0!"},{"$error":"#DIV/0!"},{"$error":"#DIV/0!"},null,{"$error":"#DIV/0!"},{"$error":"#DIV/0!"},{"$error":"#DIV/0!"}]
[7,7,"Inoiz pairatu al duzu sexu-arrazoiengatik jazarpenik erakundean?",null,null,null,null,null,null,null,null,null,null,null,null,null,{"$error":"#DIV/0!"},{"$error":"#DIV/0!"},{"$error":"#DIV/0!"},{"$error":"#DIV/0!"},{"$error":"#DIV/0!"},{"$error":"#DIV/0!"},null,{"$error":"#DIV/0!"},{"$error":"#DIV/0!"},{"$error":"#DIV/0!"},null,{"$error":"#DIV/0!"},{"$error":"#DIV/0!"},{"$error":"#DIV/0!"}]
[8,8,"Ezagutzen duzu hemen lanean ari zenean sexu-arrazoigatik jazarpenik pairatu duen pertsonaren bat?",null,null,null,null,null,null,null,null,null,null,null,null,null,{"$error":"#DIV/0!"},{"$error":"#DIV/0!"},{"$error":"#DIV/0!"},{"$error":"#DIV/0!"},{"$error":"#DIV/0!"},{"$error":"#DIV/0!"},null,{"$error":"#DIV/0!"},{"$error":"#DIV/0!"},{"$error":"#DIV/0!"},null,{"$error":"#DIV/0!"},{"$error":"#DIV/0!"},{"$error":"#DIV/0!"}]
[9,9,"Ohikoak al dira erakundean txiste eta iruzkin matxistak?",null,null,null,null,null,null,null,null,null,null,null,null,null,{"$error":"#DIV/0!"},{"$error":"#DIV/0!"},{"$error":"#DIV/0!"},{"$error":"#DIV/0!"},{"$error":"#DIV/0!"},{"$error":"#DIV/0!"},null,{"$error":"#DIV/0!"},{"$error":"#DIV/0!"},{"$error":"#DIV/0!"},null,{"$error":"#DIV/0!"},{"$error":"#DIV/0!"},{"$error":"#DIV/0!"}]
[10,10,"Exijitzen al da prestasunik lan-ordutegitik kanpo?",null,null,null,null,null,null,null,null,null,null,null,null,null,{"$error":"#DIV/0!"},{"$error":"#DIV/0!"},{"$error":"#DIV/0!"},{"$error":"#DIV/0!"},{"$error":"#DIV/0!"},{"$error":"#DIV/0!"},null,{"$error":"#DIV/0!"},{"$error":"#DIV/0!"},{"$error":"#DIV/0!"},null,{"$error":"#DIV/0!"},{"$error":"#DIV/0!"},{"$error":"#DIV/0!"}]
[11,11,"Usten al duzu baloratzen dela lan-ordutegitik kanpo bezero, enpresa laguntzaile eta abarrekin harremana izatea?",null,null,null,null,null,null,null,null,null,null,null,null,null,{"$error":"#DIV/0!"},{"$error":"#DIV/0!"},{"$error":"#DIV/0!"},{"$error":"#DIV/0!"},{"$error":"#DIV/0!"},{"$error":"#DIV/0!"},null,{"$error":"#DIV/0!"},{"$error":"#DIV/0!"},{"$error":"#DIV/0!"},null,{"$error":"#DIV/0!"},{"$error":"#DIV/0!"},{"$error":"#DIV/0!"}]
[12,12,"Uste al duzu zure lan-karga bat datorrela zure lan-baldintzekin?",null,null,null,null,null,null,null,null,null,null,null,null,null,{"$error":"#DIV/0!"},{"$error":"#DIV/0!"},{"$error":"#DIV/0!"},{"$error":"#DIV/0!"},{"$error":"#DIV/0!"},{"$error":"#DIV/0!"},null,{"$error":"#DIV/0!"},{"$error":"#DIV/0!"},{"$error":"#DIV/0!"},null,{"$error":"#DIV/0!"},{"$error":"#DIV/0!"},{"$error":"#DIV/0!"}]
[13,13,"Uste al duzu egonkortasuna duzula zure lanpostuan?",null,null,null,null,null,null,null,null,null,null,null,null,null,{"$error":"#DIV/0!"},{"$error":"#DIV/0!"},{"$error":"#DIV/0!"},{"$error":"#DIV/0!"},{"$error":"#DIV/0!"},{"$error":"#DIV/0!"},null,{"$error":"#DIV/0!"},{"$error":"#DIV/0!"},{"$error":"#DIV/0!"},null,{"$error":"#DIV/0!"},{"$error":"#DIV/0!"},{"$error":"#DIV/0!"}]
[14,14,"Uste al duzu genero-estereotipoek eragin dutela erakunde honetan emakumeek dituzten lan-baldintza eta aukeretan?",null,null,null,null,null,null,null,null,null,null,null,null,null,{"$error":"#DIV/0!"},{"$error":"#DIV/0!"},{"$error":"#DIV/0!"},{"$error":"#DIV/0!"},{"$error":"#DIV/0!"},{"$error":"#DIV/0!"},null,{"$error":"#DIV/0!"},{"$error":"#DIV/0!"},{"$error":"#DIV/0!"},null,{"$error":"#DIV/0!"},{"$error":"#DIV/0!"},{"$error":"#DIV/0!"}]
[15,15,"Ados al zaude gizonen eta emakumeen berdintasunerako plana abian jartzearekin?",null,null,null,null,null,null,null,null,null,null,null,null,null,{"$error":"#DIV/0!"},{"$error":"#DIV/0!"},{"$error":"#DIV/0!"},{"$error":"#DIV/0!"},{"$error":"#DIV/0!"},{"$error":"#DIV/0!"},null,{"$error":"#DIV/0!"},{"$error":"#DIV/0!"},{"$error":"#DIV/0!"},null,{"$error":"#DIV/0!"},{"$error":"#DIV/0!"},{"$error":"#DIV/0!"}]
[16,16,"Lanaren barneko antolaketak laguntzen al du enplegua eta bizitza pertsonala bateratzen?",null,null,null,null,null,null,null,null,null,null,null,null,null,{"$error":"#DIV/0!"},{"$error":"#DIV/0!"},{"$error":"#DIV/0!"},{"$error":"#DIV/0!"},{"$error":"#DIV/0!"},{"$error":"#DIV/0!"},null,{"$error":"#DIV/0!"},{"$error":"#DIV/0!"},{"$error":"#DIV/0!"},null,{"$error":"#DIV/0!"},{"$error":"#DIV/0!"},{"$error":"#DIV/0!"}]
[17,17,"Uste al duzu bateratzeko neurriez baliatzeak aukera profesionalak galtzea dakarrela?",null,null,null,null,null,null,null,null,null,null,null,null,null,{"$error":"#DIV/0!"},{"$error":"#DIV/0!"},{"$error":"#DIV/0!"},{"$error":"#DIV/0!"},{"$error":"#DIV/0!"},{"$error":"#DIV/0!"},null,{"$error":"#DIV/0!"},{"$error":"#DIV/0!"},{"$error":"#DIV/0!"},null,{"$error":"#DIV/0!"},{"$error":"#DIV/0!"},{"$error":"#DIV/0!"}]
[18,18,"Zerotik hamarrera, zenbateraino zaude gogobeteta bateratzearen eta malgutasunaren arloan dauden neurriekin?"]
[19,19,"Zerotik hamarrera, zer-nolako motibazioa duzu zure lanarekin?"]
[20,20,"Zerotik hamarrera, zenbateraino zaude gogobeteta erakundearekin emakumeen eta gizonen arteko berdintasunaren arloan?"]

{"sheet":"OpinionImprimir","index":8,"n_rows":28,"n_cols":12,"rows_kept":28,"cut":false,"hidden":true,"merged":[[2,2,2,11],[7,2,7,5],[22,2,22,8],[23,2,23,8],[24,2,24,8],[17,2,17,8],[18,2,18,8],[19,2,19,8],[20,2,20,8],[13,2,13,8],[14,2,14,8],[15,2,15,8],[16,2,16,8],[21,2,21,8],[8,2,8,8],[9,2,9,8],[10,2,10,8],[11,2,11,8],[12,2,12,8],[27,9,27,11],[26,9,26,11],[25,9,25,11],[25,2,25,8],[26,2,26,8],[27,2,27,8]]}
[]
[]
[null,null,"IRITZI-INKESTA"]
[]
[null,null,"Emakumea"]
[null,null,"Gizonezkoak"]
[]
[null,null,null,null,null,null,null,null,null,"Bai","Ez","Ez du erantzun."]
[null,1,"Erakunde honetan sexua dela-eta baztertuta sentitu zara inoiz?"]
[null,2,"Uste al duzu langileen aukeraketak emakumeen eta gizonen arteko tratu- eta aukera-berdintasuna bermatzen duela?"]
[null,3,"Uste al duzu barne-sustapenak emakumeen eta gizonen arteko tratu- eta aukera-berdintasuna bermatzen duela?"]
[null,4,"Uste al duzu ordainsariak emakumeen eta gizonen arteko tratu- eta aukera-berdintasuna bermatzen duela?"]
[null,5,"Inoiz pairatu al duzu sexu-jazarpenik erakundean?"]
[null,6,"Ezagutzen duzu hemen lanean ari zenean sexu-jazarpenik pairatu duen pertsonaren bat?"]
[null,7,"Inoiz pairatu al duzu sexu-arrazoiengatik jazarpenik erakundean?"]
[null,8,"Ezagutzen duzu hemen lanean ari zenean sexu-arrazoigatik jazarpenik pairatu duen pertsonaren bat?"]
[null,9,"Ohikoak al dira erakundean txiste eta iruzkin matxistak?"]
[null,10,"Exijitzen al da prestasunik lan-ordutegitik kanpo?"]
[null,11,"Usten al duzu baloratzen dela lan-ordutegitik kanpo bezero, enpresa laguntzaile eta abarrekin harremana izatea?"]
[null,12,"Uste al duzu zure lan-karga bat datorrela zure lan-baldintzekin?"]
[null,13,"Uste al duzu egonkortasuna duzula zure lanpostuan?"]
[null,14,"Uste al duzu genero-estereotipoek eragin dutela erakunde honetan emakumeek dituzten lan-baldintza eta aukeretan?"]
[null,15,"Ados al zaude gizonen eta emakumeen berdintasunerako plana abian jartzearekin?"]
[null,16,"Lanaren barneko antolaketak laguntzen al du enplegua eta bizitza pertsonala bateratzen?"]
[null,17,"Uste al duzu bateratzeko neurriez baliatzeak aukera profesionalak galtzea dakarrela?"]
[null,18,"Zerotik hamarrera, zenbateraino zaude gogobeteta bateratzearen eta malgutasunaren arloan dauden neurriekin?"]
[null,19,"Zerotik hamarrera, zer-nolako motibazioa duzu zure lanarekin?"]
[null,20,"Zerotik hamarrera, zenbateraino zaude gogobeteta erakundearekin emakumeen eta gizonen arteko berdintasunaren arloan?"]

{"sheet":"Indicadores","index":9,"n_rows":321,"n_cols":12,"rows_kept":321,"cut":false,"hidden":true,"merged":[[298,0,314,0],[309,5,314,5],[279,1,279,2],[260,1,260,5],[270,1,270,2],[271,1,271,2],[272,1,272,2],[278,3,278,4],[281,1,281,2],[281,3,281,4],[280,1,280,2],[270,3,270,4],[271,3,271,4],[272,3,272,4],[278,1,278,2],[265,1,265,2],[266,1,266,2],[267,1,267,2],[277,1,277,2],[277,3,277,4],[276,1,276,2],[276,3,276,4],[280,3,280,4],[291,3,291,4],[12,3,12,5],[13,3,13,5],[14,3,14,5],[257,1,257,2],[292,1,292,2],[315,0,315,2],[316,5,320,5],[211,1,211,2],[221,1,221,2],[135,1,135,2],[136,1,136,2],[137,1,137,2],[125,1,125,2],[126,1,126,2],[127,1,127,2],[128,1,128,2],[129,1,129,2],[152,1,152,2],[153,1,153,2],[154,1,154,2],[155,1,155,2],[111,1,111,2],[235,3,235,5],[235,0,258,0],[2,3,2,5],[3,3,3,5],[4,3,4,5],[8,3,8,5],[9,3,9,5],[10,3,10,5],[11,3,11,5],[109,0,155,0],[110,1,110,5],[122,1,122,5],[114,1,114,5],[142,1,142,2],[143,1,143,2],[144,1,144,2],[145,1,145,2],[146,1,146,2],[147,1,147,2],[150,1,150,2],[151,1,151,2],[138,1,138,2],[139,1,139,2],[132,1,132,2],[133,1,133,2],[134,1,134,2],[157,8,164,8],[157,7,164,7],[175,8,180,8],[175,7,180,7],[166,8,169,8],[166,7,169,7],[161,3,161,5],[162,3,162,5],[163,3,163,5],[170,0,170,5],[174,0,174,5],[158,1,158,2],[176,1,176,2],[177,1,177,2],[178,1,178,2],[179,1,179,2],[180,1,180,2],[159,1,159,2],[160,1,160,2],[161,1,161,2],[162,1,162,2],[163,1,163,2],[164,1,164,2],[166,1,166,2],[175,0,180,0],[171,0,173,0],[172,1,172,2],[173,1,173,2],[189,8,191,8],[190,1,190,2],[190,3,190,5],[191,1,191,2],[191,3,191,5],[171,8,173,8],[171,7,173,7],[171,1,171,2],[181,0,181,5],[185,0,185,5],[189,0,191,0],[189,1,189,2],[189,3,189,5],[236,1,236,5],[192,8,195,8],[192,7,195,7],[242,3,242,5],[237,1,237,2],[225,0,225,5],[213,0,213,5],[288,1,288,2],[289,1,289,2],[288,3,288,4],[289,3,289,4],[235,8,258,8],[235,7,258,7],[260,8,296,8],[244,1,244,2],[244,3,244,5],[247,3,247,5],[252,3,252,5],[247,1,247,2],[248,1,248,2],[254,1,254,2],[268,1,268,2],[258,1,258,2],[249,1,249,2],[250,1,250,2],[251,1,251,2],[293,1,293,2],[294,1,294,2],[295,1,295,2],[296,1,296,2],[255,3,255,5],[256,3,256,5],[290,1,290,2],[290,3,290,4],[274,1,274,2],[275,1,275,2],[112,1,112,2],[113,1,113,2],[115,1,115,2],[116,1,116,2],[117,1,117,2],[118,1,118,2],[119,1,119,2],[141,1,141,2],[120,1,120,2],[121,1,121,2],[123,1,123,2],[130,1,130,2],[124,1,124,2],[297,0,297,5],[237,3,237,5],[238,3,238,5],[265,3,265,5],[266,3,266,5],[267,3,267,5],[268,3,268,4],[269,3,269,4],[240,1,240,2],[242,1,242,2],[243,1,243,2],[245,1,245,2],[279,3,279,4],[273,3,273,4],[269,1,269,2],[240,3,240,5],[241,3,241,5],[274,3,274,4],[275,3,275,4],[264,1,264,2],[264,3,264,4],[261,3,261,5],[260,0,296,0],[293,5,296,5],[34,1,34,5],[82,1,82,5],[291,1,291,2],[282,3,282,4],[283,3,283,4],[284,3,284,4],[285,3,285,4],[286,3,286,4],[287,3,287,4],[192,3,192,5],[193,3,193,5],[194,3,194,5],[201,0,201,2],[262,3,262,5],[263,3,263,5],[273,1,273,2],[261,1,261,2],[262,1,262,2],[263,1,263,2],[208,0,208,5],[223,3,223,5],[245,3,245,5],[166,0,169,0],[157,0,164,0],[5,3,5,5],[157,3,157,5],[158,3,158,5],[159,3,159,5],[160,3,160,5],[186,3,186,5],[187,3,187,5],[188,3,188,5],[216,0,216,5],[109,1,109,2],[131,1,131,2],[140,1,140,2],[148,1,148,2],[149,1,149,2],[28,3,28,5],[29,3,29,5],[30,3,30,5],[31,3,31,5],[32,3,32,5],[33,3,33,5],[200,3,200,5],[196,3,196,5],[93,5,99,5],[83,1,107,1],[84,5,91,5],[48,5,55,5],[40,5,46,5],[255,1,255,2],[256,1,256,2],[253,1,253,2],[35,1,55,1],[167,1,167,2],[168,1,168,2],[169,1,169,2],[238,1,238,2],[241,1,241,2],[239,1,239,5],[246,1,246,5],[243,3,243,5],[175,1,175,2],[252,1,252,2],[248,3,248,5],[249,3,249,5],[250,3,250,5],[251,3,251,5],[235,1,235,2],[253,3,253,5],[254,3,254,5],[321,0,321,5],[316,0,320,0],[156,0,156,5],[165,0,165,5],[175,3,175,5],[176,3,176,5],[177,3,177,5],[178,3,178,5],[227,1,227,2],[228,1,228,2],[229,1,229,2],[230,1,230,2],[231,1,231,2],[232,1,232,2],[233,1,233,2],[300,1,300,2],[299,3,299,5],[299,1,299,2],[282,1,282,2],[283,1,283,2],[284,1,284,2],[285,1,285,2],[286,1,286,2],[287,1,287,2],[17,1,24,1],[26,1,33,1],[226,3,226,5],[226,1,226,2],[179,3,179,5],[180,3,180,5],[171,3,171,5],[172,3,172,5],[173,3,173,5],[166,3,166,5],[167,3,167,5],[168,3,168,5],[169,3,169,5],[224,3,224,5],[214,3,214,5],[215,3,215,5],[17,5,24,5],[27,3,27,5],[56,1,56,2],[57,1,81,1],[101,5,107,5],[157,1,157,2],[36,5,38,5],[26,3,26,5],[316,8,320,8],[316,7,320,7],[298,8,309,8],[298,7,309,7],[310,8,314,8],[310,7,314,7],[307,1,307,2],[309,1,309,2],[310,1,310,2],[312,1,312,2],[313,1,313,2],[317,1,317,2],[318,1,318,2],[314,1,314,2],[320,1,320,2],[319,1,319,2],[316,1,316,2],[298,1,298,2],[301,1,301,2],[303,1,303,2],[305,1,305,2],[301,5,307,5],[298,3,298,5],[217,8,224,8],[217,7,224,7],[226,0,233,0],[226,8,233,8],[226,7,233,7],[217,1,217,2],[218,1,218,2],[219,1,219,2],[220,1,220,2],[222,1,222,2],[223,1,223,2],[224,1,224,2],[217,3,217,5],[218,3,218,5],[219,3,219,5],[220,3,220,5],[227,3,227,5],[228,3,228,5],[229,3,229,5],[230,3,230,5],[231,3,231,5],[217,0,224,0],[232,3,232,5],[233,3,233,5],[209,8,212,8],[209,7,212,7],[214,0,215,0],[214,8,215,8],[214,7,215,7],[209,1,209,2],[210,1,210,2],[212,1,212,2],[214,1,214,2],[215,1,215,2],[209,3,209,5],[210,3,210,5],[209,0,212,0],[198,8,200,8],[198,7,200,7],[202,0,207,0],[202,8,207,8],[202,7,207,7],[198,1,198,2],[200,1,200,2],[202,1,202,2],[204,1,204,2],[206,1,206,2],[202,5,206,5],[203,1,203,2],[198,0,200,0],[198,3,198,5],[196,8,197,8],[196,7,197,7],[192,1,192,2],[193,1,193,2],[194,1,194,2],[196,1,196,2],[182,0,184,0],[182,8,184,8],[182,7,184,7],[186,0,188,0],[186,8,188,8],[186,7,188,7],[182,1,182,2],[183,1,183,2],[184,1,184,2],[186,1,186,2],[187,1,187,2],[188,1,188,2],[182,3,182,5],[183,3,183,5],[184,3,184,5],[192,0,195,0],[196,0,197,0],[189,7,191,7],[2,9,2,11],[3,0,15,0],[3,8,15,8],[3,7,15,7],[16,0,108,0],[16,8,82,8],[16,7,82,7],[39,2,39,5],[35,2,35,5],[47,2,47,5],[57,2,57,5],[74,2,74,5],[66,2,66,5],[92,2,92,5],[100,2,100,5],[8,1,14,1],[2,1,2,2],[3,1,3,2],[4,1,4,2],[5,1,5,2],[7,1,7,5],[83,2,83,5],[16,1,16,5],[25,1,25,5]]}
[]
[]
["EGOERA","ADIERAZLEAK",null,"BALIOAK",null,null,null,"DATUAK (sexuaren arabera sailkatuta)","ANALISIAREN ESPARRUA","Formulak"]
["LANGILEAK, SEXUAREN ARABERA","Langileetan egun dauden emakumeen %-a",null,{"$f":"Plantilla!L30","v":{"$error":"#DIV/0!"}},null,null,null,"Egungo langileak, guztira. Orain 4 urteko langileak, guztira. Oraingo langileak bulego/egoitzen arabera. Orain 4 urteko langileak, guztira, bulego/egoitzen arabera","Langileak","(Langile emakumeak, guztira / langile guztiak)*100"]
[null,"Orain 4 urte langileetan zeuden emakumeen %-a.",null,{"$f":"Plantilla!N30","v":{"$error":"#DIV/0!"}}]
[null,"Azken 4 urteotan % horrek izandako bilakaera",null,{"$f":"Plantilla!R30","v":{"$error":"#DIV/0!"}},null,null,null,null,null,"((X-n guztira dauden emakumeak / X-n guztira dauden langileak)-(X-3-n guztira dauden emakumeak / X-3-n guztira dauden langileak))*100"]
[null,null,null,null,null,null,null,null,null,"(Langile gizonak, guztira/langile guztiak)*100"]
[]
[null,null,null,null,null,null,null,null,null,"(Langile emakumeak 1. bulegoan, guztira / 1. bulegoan dauden langile guztiak)*100","(Langile emakumeak 2. bulegoan, guztira / 2. bulegoan dauden langile guztiak)*100","……"]
[]
[]
[]
[]
[]
[]
[null,null,null,null,null,null,null,null,null,"(Langile gizonak 1. bulegoan, guztira / 1. bulegoan dauden langile guztiak)*100","(Langile gizonak 2. bulegoan, guztira / 2. bulegoan dauden langile guztiak)*100","……"]
["BEREIZKETA HORIZONTALA",null,null,null,null,null,null,"Langileak mailen eta lanpostuen arabera.\nOrain 4 urteko langileak mailen eta lanpostuen arabera.\nLangileak sail bakoitzeko.\nLangileak negozio-unitateko.\nLangileak proiektuko.\n","Langileak","(1. postuan dauden emakumeak, guztira / 1. lanpostuan dauden langileak, guztira)*100","(2. postuan dauden emakumeak, guztira / 2. lanpostuan dauden langileak, guztira)*100","…...."]
[]
[]
[]
[]
[]
[]
[]
[]
[null,null,null,null,null,null,null,null,null,"((X-n 1. lanpostuan guztira dauden emakumeak / X-n 1. lanpostuan guztira dauden langileak)-(X-3-n 1. lanpostuan guztira dauden emakumeak / X-3-n 1. lanpostuan guztira dauden langileak))*100","2. lanpostua, 3. lanpostua..."]
[]
[]
[]
[]
[]
[]
[]
[]
[null,null,null,null,null,null,null,null,null,"(1. postuan dauden emakumeak, guztira / Lanpostu operatiboetan dauden emakumeak, guztira)*100","2. lanpostua, 3. lanpostua..."]
[]
[]
[]
[]
[]
[]
[]
[]
[]
[]
[]
[]
[]
[]
[]
[]
[]
[]
[]
[]
[]
[]
[]
[]
[]
[]
[]
[]
[]
[]
[]
[]
[]
[]
[]
[]
[]
[]
[]
[]
[]
[]
[]
[]
[]
[]
[]
[null,null,null,null,null,null,null,null,null,"(1. sailean dauden emakumeak, guztira / Langileetan dauden emakumeak, guztira)*100","2. lanpostua, 3. lanpostua..."]
[]
[]
[]
[]
[]
[]
[]
[]
[]
[]
[]
[]
[]
[]
[]
[]
[]
[]
[]
[]
[]
[]
[]
[]
[]
[]
["BEREIZKETA HORIZONTALA","Presentzia-oreka, maila eta lanpostuka",null,"Emakumeen oraingo %-a, maila/lanpostuaren arabera","% horren bilakaera azken 4 urteetan","Erakundean maila/postu honetan dauden emakumeen %-a"]
[null,"MAILA ESTRATEGIKOA"]
[null,{"$f":"Plantilla!B10","v":"Kudeaketa"},null,{"$f":"Plantilla!L10","v":{"$error":"#DIV/0!"}},{"$f":"Plantilla!R10","v":{"$error":"#DIV/0!"}},{"$f":"Plantilla!P10","v":""}]
[null,{"$f":"Plantilla!B11","v":"Zuzendaritza-postuak"},null,{"$f":"Plantilla!L11","v":{"$error":"#DIV/0!"}},{"$f":"Plantilla!R11","v":{"$error":"#DIV/0!"}},{"$f":"Plantilla!P11","v":""}]
[null,{"$f":"Plantilla!B12","v":"Maila estrategikoaren guztizko partziala"},null,{"$f":"Plantilla!L12","v":{"$error":"#DIV/0!"}},{"$f":"Plantilla!R12","v":{"$error":"#DIV/0!"}},{"$f":"Plantilla!P12","v":""}]
[null,{"$f":"Plantilla!B13","v":"MAILA TAKTIKOA"}]
[null,{"$f":"Plantilla!B14","v":"Tarteko arduradunak – 1. maila"},null,{"$f":"Plantilla!L14","v":{"$error":"#DIV/0!"}},{"$f":"Plantilla!R14","v":{"$error":"#DIV/0!"}},{"$f":"Plantilla!P14","v":""}]
[null,{"$f":"Plantilla!B15","v":"Tarteko arduradunak – 2. maila"},null,{"$f":"Plantilla!L15","v":{"$error":"#DIV/0!"}},{"$f":"Plantilla!R15","v":{"$error":"#DIV/0!"}},{"$f":"Plantilla!P15","v":""}]
[null,{"$f":"Plantilla!B16","v":0},null,{"$f":"Plantilla!L16","v":{"$error":"#DIV/0!"}},{"$f":"Plantilla!R16","v":{"$error":"#DIV/0!"}},{"$f":"Plantilla!P16","v":""}]
[null,{"$f":"Plantilla!B17","v":0},null,{"$f":"Plantilla!L17","v":{"$error":"#DIV/0!"}},{"$f":"Plantilla!R17","v":{"$error":"#DIV/0!"}},{"$f":"Plantilla!P17","v":""}]
[null,{"$f":"Plantilla!B18","v":0},null,{"$f":"Plantilla!L18","v":{"$error":"#DIV/0!"}},{"$f":"Plantilla!R18","v":{"$error":"#DIV/0!"}},{"$f":"Plantilla!P18","v":""}]
[null,{"$f":"Plantilla!B19","v":0},null,{"$f":"Plantilla!L19","v":{"$error":"#DIV/0!"}},{"$f":"Plantilla!R19","v":{"$error":"#DIV/0!"}},{"$f":"Plantilla!P19","v":""}]
[null,{"$f":"Plantilla!B20","v":"Maila taktikoaren guztizko partziala"},null,{"$f":"Plantilla!L20","v":{"$error":"#DIV/0!"}},{"$f":"Plantilla!R20","v":{"$error":"#DIV/0!"}},{"$f":"Plantilla!P20","v":""}]
[null,{"$f":"Plantilla!B21","v":"MAILA OPERATIBOA"}]
[null,{"$f":"Plantilla!B22","v":"Teknikariak"},null,{"$f":"Plantilla!L22","v":{"$error":"#DIV/0!"}},{"$f":"Plantilla!R22","v":{"$error":"#DIV/0!"}},{"$f":"Plantilla!P22","v":""}]
[null,{"$f":"Plantilla!B23","v":"Administrazioko langileak"},null,{"$f":"Plantilla!L23","v":{"$error":"#DIV/0!"}},{"$f":"Plantilla!R23","v":{"$error":"#DIV/0!"}},{"$f":"Plantilla!P23","v":""}]
[null,{"$f":"Plantilla!B24","v":"Langileak"},null,{"$f":"Plantilla!L24","v":{"$error":"#DIV/0!"}},{"$f":"Plantilla!R24","v":{"$error":"#DIV/0!"}},{"$f":"Plantilla!P24","v":""}]
[null,{"$f":"Plantilla!B25","v":0},null,{"$f":"Plantilla!L25","v":{"$error":"#DIV/0!"}},{"$f":"Plantilla!R25","v":{"$error":"#DIV/0!"}},{"$f":"Plantilla!P25","v":""}]
[null,{"$f":"Plantilla!B26","v":0},null,{"$f":"Plantilla!L26","v":{"$error":"#DIV/0!"}},{"$f":"Plantilla!R26","v":{"$error":"#DIV/0!"}},{"$f":"Plantilla!P26","v":""}]
[null,{"$f":"Plantilla!B27","v":0},null,{"$f":"Plantilla!L27","v":{"$error":"#DIV/0!"}},{"$f":"Plantilla!R27","v":{"$error":"#DIV/0!"}},{"$f":"Plantilla!P27","v":""}]
[null,{"$f":"Plantilla!B28","v":0},null,{"$f":"Plantilla!L28","v":{"$error":"#DIV/0!"}},{"$f":"Plantilla!R28","v":{"$error":"#DIV/0!"}},{"$f":"Plantilla!P28","v":""}]
[null,{"$f":"Plantilla!B29","v":"Maila operatiboaren guztizko partziala"},null,{"$f":"Plantilla!L29","v":{"$error":"#DIV/0!"}},{"$f":"Plantilla!R29","v":{"$error":"#DIV/0!"}},{"$f":"Plantilla!P29","v":""}]
[null,"Presentzia-oreka, sailka",null,"Emakumeen egungo %-a, sailaren arabera","% horren bilakaera azken 4 urteetan","Erakundean sail honetan dauden emakumeen %-a"]
[null,{"$f":"Plantilla!B46","v":"Zuzendaritza/Kudeatzailetza"},null,{"$f":"Plantilla!L46","v":{"$error":"#DIV/0!"}},{"$f":"Plantilla!R46","v":{"$error":"#DIV/0!"}},{"$f":"Plantilla!P46","v":{"$error":"#DIV/0!"}}]
[null,{"$f":"Plantilla!B47","v":"Pertsonen kudeaketa"},null,{"$f":"Plantilla!L47","v":{"$error":"#DIV/0!"}},{"$f":"Plantilla!R47","v":{"$error":"#DIV/0!"}},{"$f":"Plantilla!P47","v":{"$error":"#DIV/0!"}}]
[null,{"$f":"Plantilla!B48","v":"Administrazioa/Finantzak"},null,{"$f":"Plantilla!L48","v":{"$error":"#DIV/0!"}},{"$f":"Plantilla!R48","v":{"$error":"#DIV/0!"}},{"$f":"Plantilla!P48","v":{"$error":"#DIV/0!"}}]
[null,{"$f":"Plantilla!B49","v":"Erosketak"},null,{"$f":"Plantilla!L49","v":{"$error":"#DIV/0!"}},{"$f":"Plantilla!R49","v":{"$error":"#DIV/0!"}},{"$f":"Plantilla!P49","v":{"$error":"#DIV/0!"}}]
[null,{"$f":"Plantilla!B50","v":"Merkataritza/Salmentak"},null,{"$f":"Plantilla!L50","v":{"$error":"#DIV/0!"}},{"$f":"Plantilla!R50","v":{"$error":"#DIV/0!"}},{"$f":"Plantilla!P50","v":{"$error":"#DIV/0!"}}]
[null,{"$f":"Plantilla!B51","v":"Ekoizpena"},null,{"$f":"Plantilla!L51","v":{"$error":"#DIV/0!"}},{"$f":"Plantilla!R51","v":{"$error":"#DIV/0!"}},{"$f":"Plantilla!P51","v":{"$error":"#DIV/0!"}}]
[null,{"$f":"Plantilla!B52","v":"Marketina"},null,{"$f":"Plantilla!L52","v":{"$error":"#DIV/0!"}},{"$f":"Plantilla!R52","v":{"$error":"#DIV/0!"}},{"$f":"Plantilla!P52","v":{"$error":"#DIV/0!"}}]
[null,{"$f":"Plantilla!B53","v":"Bezeroei arreta egitea"},null,{"$f":"Plantilla!L53","v":{"$error":"#DIV/0!"}},{"$f":"Plantilla!R53","v":{"$error":"#DIV/0!"}},{"$f":"Plantilla!P53","v":{"$error":"#DIV/0!"}}]
[null,"Presentzia-oreka, proiektuka",null,"Emakumeen oraingo %-a, proiektuaren arabera","% horren bilakaera azken 4 urteetan","Erakundean proiektuko dauden emakumeen %-a"]
[null,{"$f":"Plantilla!B55","v":"Zuzendaritza/Kudeatzailetza"},null,{"$f":"Plantilla!L55","v":{"$error":"#DIV/0!"}},{"$f":"Plantilla!R55","v":{"$error":"#DIV/0!"}},{"$f":"Plantilla!P55","v":{"$error":"#DIV/0!"}}]
[null,{"$f":"Plantilla!B56","v":"Zerbitzu orokorrak"},null,{"$f":"Plantilla!L56","v":{"$error":"#DIV/0!"}},{"$f":"Plantilla!R56","v":{"$error":"#DIV/0!"}},{"$f":"Plantilla!P56","v":{"$error":"#DIV/0!"}}]
[null,{"$f":"Plantilla!B57","v":"A proiektua"},null,{"$f":"Plantilla!L57","v":{"$error":"#DIV/0!"}},{"$f":"Plantilla!R57","v":{"$error":"#DIV/0!"}},{"$f":"Plantilla!P57","v":{"$error":"#DIV/0!"}}]
[null,{"$f":"Plantilla!B58","v":"B proiektua"},null,{"$f":"Plantilla!L58","v":{"$error":"#DIV/0!"}},{"$f":"Plantilla!R58","v":{"$error":"#DIV/0!"}},{"$f":"Plantilla!P58","v":{"$error":"#DIV/0!"}}]
[null,{"$f":"Plantilla!B59","v":"C proiektua"},null,{"$f":"Plantilla!L59","v":{"$error":"#DIV/0!"}},{"$f":"Plantilla!R59","v":{"$error":"#DIV/0!"}},{"$f":"Plantilla!P59","v":{"$error":"#DIV/0!"}}]
[null,{"$f":"Plantilla!B60","v":0},null,{"$f":"Plantilla!L60","v":{"$error":"#DIV/0!"}},{"$f":"Plantilla!R60","v":{"$error":"#DIV/0!"}},{"$f":"Plantilla!P60","v":{"$error":"#DIV/0!"}}]
[null,{"$f":"Plantilla!B61","v":0},null,{"$f":"Plantilla!L61","v":{"$error":"#DIV/0!"}},{"$f":"Plantilla!R61","v":{"$error":"#DIV/0!"}},{"$f":"Plantilla!P61","v":{"$error":"#DIV/0!"}}]
[null,"Presentzia-oreka, negozio-unitateka",null,"Emakumeen oraingo %-a, negozio-unitatearen arabera","% horren bilakaera azken 4 urteetan","Erakundean negozio-unitate honetan dauden emakumeen %-a"]
[null,{"$f":"Plantilla!B63","v":"Zuzendaritza/Kudeatzailetza"},null,{"$f":"Plantilla!L63","v":{"$error":"#DIV/0!"}},{"$f":"Plantilla!R63","v":{"$error":"#DIV/0!"}},{"$f":"Plantilla!P63","v":{"$error":"#DIV/0!"}}]
[null,{"$f":"Plantilla!B64","v":"Zerbitzu orokorrak"},null,{"$f":"Plantilla!L64","v":{"$error":"#DIV/0!"}},{"$f":"Plantilla!R64","v":{"$error":"#DIV/0!"}},{"$f":"Plantilla!P64","v":{"$error":"#DIV/0!"}}]
[null,{"$f":"Plantilla!B65","v":"A negozio-unitatea"},null,{"$f":"Plantilla!L65","v":{"$error":"#DIV/0!"}},{"$f":"Plantilla!R65","v":{"$error":"#DIV/0!"}},{"$f":"Plantilla!P65","v":{"$error":"#DIV/0!"}}]
[null,{"$f":"Plantilla!B66","v":"B negozio-unitatea"},null,{"$f":"Plantilla!L66","v":{"$error":"#DIV/0!"}},{"$f":"Plantilla!R66","v":{"$error":"#DIV/0!"}},{"$f":"Plantilla!P66","v":{"$error":"#DIV/0!"}}]
[null,{"$f":"Plantilla!B67","v":"C negozio-unitatea"},null,{"$f":"Plantilla!L67","v":{"$error":"#DIV/0!"}},{"$f":"Plantilla!R67","v":{"$error":"#DIV/0!"}},{"$f":"Plantilla!P67","v":{"$error":"#DIV/0!"}}]
[null,{"$f":"Plantilla!B68","v":0},null,{"$f":"Plantilla!L68","v":{"$error":"#DIV/0!"}},{"$f":"Plantilla!R68","v":{"$error":"#DIV/0!"}},{"$f":"Plantilla!P68","v":{"$error":"#DIV/0!"}}]
[null,{"$f":"Plantilla!B69","v":0},null,{"$f":"Plantilla!L69","v":{"$error":"#DIV/0!"}},{"$f":"Plantilla!R69","v":{"$error":"#DIV/0!"}},{"$f":"Plantilla!P69","v":{"$error":"#DIV/0!"}}]
[]
["BEREIZKETA BERTIKALA","Emakumeek betetako maila estrategikoko lanpostuen %-a",null,{"$f":"Plantilla!L12","v":{"$error":"#DIV/0!"}},null,null,null,"Langileak mailen eta lanpostuen arabera. Orain 4 urteko langileak mailen eta lanpostuen arabera. Langileen ordezkaritza-organoak. Administrazio-organoak. Izendapen askeko lanpostuak.","Langileak","(Maila estrategikoan dauden emakumeak / Maila estrategikoan dauden pertsonak, guztira)*100"]
[null,"Azken 4 urteotan % horrek izandako bilakaera",null,{"$f":"Plantilla!S12*100","v":{"$error":"#DIV/0!"}},null,null,null,null,null,"((X-n maila estrategikoan guztira dauden emakumeak / X-n maila estrategikoan guztira dauden langileak)-(X-3-n maila estrategikoan guztira dauden emakumeak / X-3-n maila estrategikoan guztira dauden langileak))*100",null,"…........."]
[null,"Emakumeek betetako maila taktikoko lanpostuen %-a",null,{"$f":"Plantilla!L20","v":{"$error":"#DIV/0!"}},null,null,null,null,null,"(Maila taktikoan dauden emakumeak / Maila taktikoan dauden pertsonak, guztira)*100"]
[null,"Azken 4 urteotan % horrek izandako bilakaera",null,{"$f":"Plantilla!S20*100","v":{"$error":"#DIV/0!"}},null,null,null,null,null,"((X-n 1. maila taktikoan guztira dauden emakumeak / X-n maila estrategikoan guztira dauden langileak)-(X-3-n maila taktikoan guztira dauden emakumeak / X-3-n maila taktikoan guztira dauden langileak))*100",null,"…........."]
[null,"Langileen ordezkaritza sindikaleko organoetako emakumeen %-a",null,{"$f":"IdentificacionOrganizacion!K64","v":{"$error":"#DIV/0!"}},null,null,null,null,null,"(Ordezkaritza-organoetan dauden emakumeak / Ordezkaritza-organoetan dauden pertsonak, guztira)*100"]
[null,"Administrazio-organoetako emakumeen %-a",null,{"$f":"IdentificacionOrganizacion!K86","v":{"$error":"#DIV/0!"}},null,null,null,null,null,"(Administrazio-organoetan dauden emakumeak / Administrazio-organoetan dauden pertsonak, guztira)*100"]
[null,"Izendapen askeko lanpostuetako emakumeen %-a",null,{"$f":"IdentificacionOrganizacion!K89","v":{"$error":"#DIV/0!"}},null,null,null,null,null,"(Izendapen askeko lanpostuetan dauden emakumeak / Izendapen askeko lanpostuetan dauden pertsonak, guztira)*100"]
[null,"Gizonak?"]
[]
["ADINAREN ARABERAKO OREKA","25 urtetik beherako emakume/gizonen presentzia-tasa erlatiboa",null,{"$f":"Plantilla!O76","v":{"$error":"#DIV/0!"}},null,null,null,"Tarteen araberako adina","Langileak","(25 urtetik beherako emakumeak, guztira / Langileetan guztira dauden emakumeak) / (25 urtetik beherako gizonak, guztira / Langileetan guztira dauden gizonak)"]
[null,"25 eta 34 urte arteko emakume/gizonen presentzia-tasa erlatiboa",null,{"$f":"Plantilla!O77","v":{"$error":"#DIV/0!"}},null,null,null,null,null,"(25 eta 34 urte arteko emakumeak, guztira / Langileetan guztira dauden emakumeak) / (25 eta 34 urte arteko gizonak, guztira / Langileetan guztira dauden gizonak)"]
[null,"35 eta 50 urte arteko emakume/gizonen presentzia-tasa erlatiboa",null,{"$f":"Plantilla!O79","v":{"$error":"#DIV/0!"}},null,null,null,null,null,"(35 eta 50 urte arteko emakumeak, guztira / Langileetan guztira dauden emakumeak) / (35 eta 50 urte arteko gizonak, guztira / Langileetan guztira dauden gizonak)"]
[null,"50 urtetik gorako emakume/gizonen presentzia-tasa erlatiboa",null,{"$f":"Plantilla!O82","v":{"$error":"#DIV/0!"}},null,null,null,null,null,"(50 urtetik gorako emakumeak, guztira / Langileetan guztira dauden emakumeak) / (50 urtetik gorako gizonak, guztira / Langileetan guztira dauden gizonak)"]
[]
["ZAINTZA-ARDURAK","Seme-alabak beren kontura dituzten emakume/gizonen presentzia-tasa erlatiboa",null,{"$f":"Plantilla!M92","v":{"$error":"#DIV/0!"}},null,null,null,"Zaintza-ardurak","Langileak","(Ardurapeko seme-alabak dituzten emakumeak, guztira / Langileetan guztira dauden emakumeak) / (Ardurapeko seme-alabak dituzten gizonak, guztira / Langileetan guztira dauden gizonak)"]
[null,"Seme-alaben ardura duten emakume/gizonen presentzia-tasa erlatiboa (guraso bakarreko familiak)",null,{"$f":"Plantilla!L91","v":{"$error":"#DIV/0!"}},null,null,null,null,null,"(Ardurapeko seme-alabak guraso bakarreko egoeran dituzten emakumeak, guztira / Langileetan guztira dauden emakumeak) / (Ardurapeko seme-alabak guraso bakarreko egoeran dituzten gizonak, guztira / Langileetan guztira dauden gizonak)"]
[null,"Mendetasunen bat duten adindunekin batera bizi diren emakume/gizonen presentzia-tasa erlatiboa",null,{"$f":"Plantilla!L96","v":{"$error":"#DIV/0!"}},null,null,null,null,null,"(Mendekotasunen bat duten adindunekin batera bizi diren emakumeak, guztira / Langileetan guztira dauden emakumeak) / (Mendekotasunen bat duten adindunekin batera bizi diren gizonak, guztira / Langileetan guztira dauden gizonak)"]
[]
["ANIZTASUNA","Maila estrategiko eta taktikoan dauden emakume/gizon atzerritarren presentzia-tasa erlatiboa",null,{"$f":"Plantilla!P103","v":{"$error":"#DIV/0!"}},null,null,null,"Langileak ikasketen eta mailen arabera","Langileak","(Maila estrategiko eta taktikoan guztira dauden emakume atzerritarrak / Maila estrategiko eta taktikoan guztira dauden emakumeak) / (Maila estrategiko eta taktikoan guztira dauden gizon atzerritarrak / Maila estrategiko eta taktikoan guztira dauden gizonak)"]
[null,"Maila operatiboan dauden emakume/gizon atzerritarren presentzia-tasa erlatiboa",null,{"$f":"Plantilla!P105","v":{"$error":"#DIV/0!"}},null,null,null,null,null,"(Maila operatiboan guztira dauden emakume atzerritarrak / Maila operatiboan guztira dauden emakumeak) / (Maila operatiboan guztira dauden gizon atzerritarrak / Maila operatiboan guztira dauden gizonak)"]
[null,"Maila estrategiko eta taktikoan dauden emakume/gizon desgaituen presentzia-tasa erlatiboa",null,{"$f":"Plantilla!Q103","v":{"$error":"#DIV/0!"}},null,null,null,null,null,"(Maila estrategiko eta taktikoan guztira dauden emakume desgaituak / Maila estrategiko eta taktikoan guztira dauden emakumeak) / (Maila estrategiko eta taktikoan guztira dauden gizon desgaituak / Maila estrategiko eta taktikoan guztira dauden gizonak)"]
[null,"Maila operatiboan dauden emakume/gizon desgaituen presentzia-tasa erlatiboa",null,{"$f":"Plantilla!Q105","v":{"$error":"#DIV/0!"}},null,null,null,null,null,"(Maila operatiboan guztira dauden emakume desgaituak / Maila operatiboan guztira dauden emakumeak) / (Maila operatiboan guztira dauden gizon desgaituak / Maila operatiboan guztira dauden gizonak)"]
[null,"Emakume atzerritarren %-a",null,{"$f":"Plantilla!L107","v":""},null,null,null,null,null,"(Emakume atzerritarrak, guztira / Langileetan dauden emakumeak, guztira)*100"]
[null,"Desgaitasuna duten emakumeen %-a",null,{"$f":"Plantilla!N107","v":""},null,null,null,null,null,"(Desgaitasuna duten emakumeak, guztira / Langileetan dauden emakumeak, guztira)*100"]
[]
["IKASKETAK","Maila estrategikoan dauden unibertsitate-ikasketadun emakume/gizonen presentzia-tasa erlatiboa",null,{"$f":"Plantilla!R112","v":{"$error":"#DIV/0!"}},null,null,null,"Langileak ikasketen eta mailen arabera","Langileak","(Maila estrategikoan unibertsitate-ikasketak dituzten emakumeak, guztira / Maila estrategikoan guztira dauden emakumeak) / (Maila estrategikoan unibertsitate-ikasketak dituzten gizonak, guztira / Maila estrategikoan guztira dauden gizonak)"]
[null,"Maila taktikoan dauden unibertsitate-ikasketadun emakume/gizonen presentzia-tasa erlatiboa",null,{"$f":"Plantilla!R113","v":{"$error":"#DIV/0!"}},null,null,null,null,null,"(Maila taktikoan unibertsitate-ikasketak dituzten emakumeak, guztira / Maila taktikoan guztira dauden emakumeak) / (Maila taktikoan unibertsitate-ikasketak dituzten gizonak, guztira / Maila taktikoan guztira dauden gizonak)"]
[null,"Maila operatiboan dauden unibertsitate-ikasketadun emakume/gizonen presentzia-tasa erlatiboa",null,{"$f":"Plantilla!R121","v":{"$error":"#DIV/0!"}},null,null,null,null,null,"(Maila operatiboan unibertsitate-ikasketak dituzten emakumeak, guztira / Maila operatiboan guztira dauden emakumeak) / (Maila operatiboan unibertsitate-ikasketak dituzten gizonak, guztira / Maila operatiboan guztira dauden gizonak)"]
[]
["ERABILTZAILEAK","Erabiltzaileen arteko emakumeen %-a",null,{"$f":"ActividadDimension!M11","v":{"$error":"#DIV/0!"}},null,null,null,"Erabiltzaileak. Orain 4 urteko erabiltzaileak. Bezeroak (fidelizatuta, online salmentak).","Jarduera","(Erabiltzaile-bezero emakumeak, guztira / Erabiltzaileak-bezeroak, guztira)*100"]
[null,"Azken 4 urteotako erabiltzaileen bilakaera",null,{"$f":"ActividadDimension!S9","v":{"$error":"#DIV/0!"}},null,null,null,null,null,"((X-n guztira dauden erabiltzaile-bezero emakumeak / X-n guztira dauden erabiltzaileak-bezeroak)-(X-3-n guztira dauden erabiltzaile-bezero gizonak / X-3-n guztira dauden erabiltzaileak-bezeroak))*100"]
[null,"Erabiltzaileen arteko %-a",null,{"$f":"ActividadDimension!M11","v":{"$error":"#DIV/0!"}},null,null,null,null,null,"(Erabiltzaile-bezero gizonak, guztira / Erabiltzaileak-bezeroak, guztira)*100"]
["BEZEROAK","Bezeroen arteko emakumeen %-a",null,{"$f":"ActividadDimension!M17","v":{"$error":"#DIV/0!"}},null,null,null,"Erabiltzaileak. Orain 4 urteko erabiltzaileak. Bezeroak (fidelizatuta, online salmentak).","Jarduera","(Erabiltzaile-bezero emakumeak, guztira / Erabiltzaileak-bezeroak, guztira)*100"]
[null,"Azken 4 urteotan ehuneko horrek izandako bilakaera",null,{"$f":"ActividadDimension!R17","v":{"$error":"#DIV/0!"}},null,null,null,null,null,"((X-n guztira dauden erabiltzaile-bezero emakumeak / X-n guztira dauden erabiltzaileak-bezeroak)-(X-3-n guztira dauden erabiltzaile-bezero gizonak / X-3-n guztira dauden erabiltzaileak-bezeroak))*100"]
[null,"Bezeroen arteko gizonen %-a.",null,{"$f":"ActividadDimension!N17","v":{"$error":"#DIV/0!"}},null,null,null,null,null,"(Erabiltzaile-bezero gizonak, guztira / Erabiltzaileak-bezeroak, guztira)*100"]
["PRODUKTUA GARATZEA ETA ZERBITZUAK EMATEA","Produktuen eta zerbitzuen garapenean dauden emakumeen %-a",null,{"$f":"ActividadDimension!M24","v":{"$error":"#DIV/0!"}},null,null,null,"Produktuen eta zerbitzuen garapenean dauden langileak. Merkataritza-estrategiaren definizioan dauden langileak. Bezeroarenganako arretaren arloan dauden langileak.","Jarduera","(Produktuen eta zerbitzuen garapenean dauden emakumeak, guztira / Produktuen eta zerbitzuen garapenean dauden langileak, guztira)*100"]
[null,"Merkataritza-estrategiaren definizioan dauden emakumeen %-a",null,{"$f":"ActividadDimension!M25","v":{"$error":"#DIV/0!"}},null,null,null,null,null,"(Merkataritza-estrategiaren definizioan dauden emakumeak, guztira / Merkataritza-estrategiaren definizioan dauden langileak, guztira)*100"]
[null,"Bezeroarenganako arretaren arloan dauden emakumeen %-a",null,{"$f":"ActividadDimension!M26","v":{"$error":"#DIV/0!"}},null,null,null,null,null,"(Bezeroarenganako arretaren arloan dauden emakumeak, guztira / Bezeroarenganako arretaren arloan dauden langileak, guztira)*100"]
[null,null,"Bezeroarenganako arretaren arloan dauden gizonen %-a.",{"$f":"ActividadDimension!N26","v":{"$error":"#DIV/0!"}},null,null,null,null,null,"(Bezeroarenganako arretaren arloan dauden gizonak, guztira / Bezeroarenganako arretaren arloan dauden langileak, guztira)*100"]
["AZPIKONTRATAZIOAK","Azpikontratazioen arteko emakumeen %-a",null,{"$f":"ActividadDimension!L35","v":{"$error":"#DIV/0!"}},null,null,null,"Lankidetzak/lanean aritzen diren autonomoak.","Kanpokoa","(Azpikontratatu-laguntzaile diren emakumeak, guztira / Azpikontratazioak-lankidetzak, guztira)*100"]
[null,null,"Azpikontratazioen/lankidetzen arteko gizonen %-a.",{"$f":"ActividadDimension!#REF!","v":{"$error":"#REF!"}},null,null,null,null,null,"(Azpikontratatu-laguntzaile diren gizonak, guztira / Azpikontratazioak-lankidetzak, guztira)*100"]
["KANPO-HARREMANAK","Emakumeen %-a sare sozialetako jarraitzaileen artean",null,{"$f":"ActividadDimension!M56","v":{"$error":"#DIV/0!"}},null,null,null,"Jarraipena sare sozialetan. Boluntarioak.","Kanpokoa","(Emakume jarraitzaileak, guztira / Sare sozialetan dauden jarraitzaileak, guztira)*100"]
[null,null,"Gizonen %-a sare sozialetako jarraitzaileen artean.",{"$f":"Plantilla!O143","v":{"$error":"#DIV/0!"}},null,null,null,null,null,"(Gizon jarraitzaileak, guztira / Sare sozialetan dauden jarraitzaileak, guztira)*100"]
[null,"Boluntarioen arteko emakumeen %-a",null,{"$f":"ActividadDimension!M49","v":{"$error":"#DIV/0!"}},null,null,null,null,null,"(Boluntario emakumeak, guztira / boluntarioak, guztira)*100"]
[null,null,null,"EMAKUMEAK","GIZONEZKOAK"]
["LANGILEEN PRESTAKUNTZA BERDINTASUNARI BURUZ","Maila estrategikoan berdintasunari buruzko prestakuntza duten pertsonen %-a",null,{"$f":"Plantilla!L143","v":{"$error":"#DIV/0!"}},{"$f":"Plantilla!M143","v":{"$error":"#DIV/0!"}},null,null,"Berdintasunari buruzko prestakuntza duten langileak, mailen arabera.","Langileak","(Maila estrategikoan eta taktikoan berdintasunari buruzko prestakuntza duten emakumeak, guztira / Maila estrategiko eta taktikoan dauden emakumeak, guztira)*100"]
[null,"Maila taktikoan berdintasunari buruzko prestakuntza duten pertsonen %-a",null,{"$f":"Plantilla!L144","v":{"$error":"#DIV/0!"}},{"$f":"Plantilla!M144","v":{"$error":"#DIV/0!"}},null,null,null,null,"(Maila estrategikoan eta taktikoan berdintasunari buruzko prestakuntza duten gizonak, guztira / Maila estrategiko eta taktikoan dauden gizonak, guztira)*100"]
[null,"Maila operatiboan berdintasunari buruzko prestakuntza duten pertsonen %-a",null,{"$f":"Plantilla!L145","v":{"$error":"#DIV/0!"}},{"$f":"Plantilla!M145","v":{"$error":"#DIV/0!"}},null,null,null,null,"(Maila operatiboan berdintasunari buruzko prestakuntza duten emakumeak, guztira / Maila operatiboan dauden emakumeak, guztira)*100"]
[null,null,"Maila operatiboan berdintasunari buruzko prestakuntza duten gizonen %-a.",{"$f":"Plantilla!M145","v":{"$error":"#DIV/0!"}},null,null,null,null,null,"(Maila operatiboan berdintasunari buruzko prestakuntza duten gizonak, guztira / Maila operatiboan dauden gizonak, guztira)*100"]
[null,"Legezko ordezkaritzan berdintasunari buruzko prestakuntza duten pertsonen %-a",null,{"$f":"Plantilla!L149","v":{"$error":"#DIV/0!"}},{"$f":"Plantilla!M149","v":{"$error":"#DIV/0!"}},null,null,null,null,"(Legezko ordezkaritzan berdintasunari buruzko prestakuntza duten emakumeak, guztira / Legezko ordezkaritzako emakumeak, guztira)*100"]
[null,null,"Legezko ordezkaritzan berdintasunari buruzko prestakuntza duten gizonen %-a",{"$f":"Plantilla!M149","v":{"$error":"#DIV/0!"}},null,null,null,null,null,"(Legezko ordezkaritzan berdintasunari buruzko prestakuntza duten gizonak, guztira / Legezko ordezkaritzako gizonak, guztira)*100"]
[]
["ENPLEGURAKO SARBIDEA","Azken 4 urteetan lanera sartutakoen emakumeen %-a",null,{"$f":"GestionPersonas!T9","v":{"$error":"#DIV/0!"}},null,null,null,"Langileak lanpostuen eta/edo mailen arabera.\nAzken 4 urtean lanean sartutakoak lanpostuaren eta/edo mailaren arabera.\nInkesta: 2. galdera «Bereizkeriaren pertzepzioa hautaketan».\n","Langile-kudeaketa","(Azken 4 urteetan lanera sartutako emakumeak guztira / Azken 4 urteetan lanera sartutako pertsonak guztira)*100"]
[null,"Emakumeek gehiegizko ordezkaritza duten lanpostuetan azken 4 urteetan lanera sartutakoen arteko emakumeen %-a.",null,null,null,null,null,null,null,"(Emakumeak % 40 baino gutxiago diren lanpostuetan azken 4 urteetan sartu diren emakumeak, guztira / Emakumeak % 40 baino gutxiago diren lanpostuetan azken 4 urteetan sartu diren pertsonak, guztira)*100"]
[null,null,null,"EMAKUMEAK","GIZONEZKOAK"]
[null,"Langileen aukeraketak emakumeen eta gizonen arteko tratu- eta aukera-berdintasuna bermatzen duela uste dutenen %-a",null,{"$f":"Opinion!Q13","v":{"$error":"#DIV/0!"}},{"$f":"Opinion!T13","v":{"$error":"#DIV/0!"}},null,null,null,null,"(Inkestaren 2. galderari BAI erantzun dioten pertsonak, guztira / Inkestari emandako erantzunak, guztira)*100"]
[]
["ENPLEGUA UZTEA","Azken 4 urteetan irtendakoen tasa erlatiboa",null,{"$f":"GestionPersonas!Q38","v":{"$error":"#DIV/0!"}},null,null,null,"Enplegua uzteko arrazoi nagusiak. Emakumeen eta gizonen artean izan litezkeen aldeei buruzko pertzepzioa. Jazarpen sexistaren balizko intzidentzia, postuz igotzeko aukerarik eza, lana eta familia bateratzeko arazoak...","Langile-kudeaketa","(Azken 4 urteetan enpresatik atera diren emakumeak, guztira / Orain 4 urte langileetan zeuden emakumeak, guztira) / (Azken 4 urteetan enpresatik atera diren gizonak, guztira / Orain 4 urte langileetan zeuden gizonak, guztira)"]
[null,"Azken 4 urteetan kaleratutakoen tasa erlatiboa",null,{"$f":"GestionPersonas!Q36","v":{"$error":"#DIV/0!"}},null,null,null,null,null,"(Azken 4 urteetan kaleratu dituzten emakumeak, guztira / Orain 4 urte langileetan zeuden emakumeak, guztira) / (Azken 4 urteetan kaleratu dituzten gizonak, guztira / Orain 4 urte langileetan zeuden gizonak, guztira)"]
[]
["MAILA ESTRATEGIKO ETA TAKTIKOKO LANPOSTUAK ESKURATZEA","Maila estrategikoko lanpostuetara azken 4 urteetan sartutakoen emakumeen %-a",null,{"$f":"GestionPersonas!P9","v":{"$error":"#DIV/0!"}},null,null,null,"Azken 4 urteetan maila estrategikoko lanpostuetan sartutakoak. Maila estrategikoko lanpostuetarako barne-sustapenak azken 4 urteetan. Langileak mailaren arabera. Inkesta: Bereizkeriaren pertzepzioa sustapenean.","Langile-kudeaketa","(Azken 4 urteetan maila estrategikoko lanpostuetan sartutako emakumeak guztira / Azken 4 urteetan maila estrategikoko lanpostuetan sartutako pertsonak guztira)*100"]
[null,"Maila estrategikoko lanpostuetarako barne-sustapenetan azken 4 urteetan egondako emakumeen %-a",null,{"$f":"GestionPersonas!O45","v":{"$error":"#DIV/0!"}},null,null,null,null,null,"(Azken 4 urteetan maila estrategikoko lanpostuetan barne-sustapen bidez sartutako emakumeak guztira / Azken 4 urteetan maila estrategikoko lanpostuetan barne-sustapen bidez sartutako pertsonak guztira)*100"]
[null,"Maila taktikoko lanpostuetara azken 4 urteetan sartutakoen emakumeen %-a",null,{"$f":"GestionPersonas!P12","v":{"$error":"#DIV/0!"}},null,null,null,null,null,"(Azken 4 urteetan maila taktikoko lanpostuetan sartutako emakumeak guztira / Azken 4 urteetan maila taktikoko lanpostuetan sartutako pertsonak guztira)*100"]
[null,"Maila taktikoko lanpostuetarako barne-sustapenetan azken 4 urteetan egondako emakumeen %-a",null,{"$f":"GestionPersonas!O48","v":{"$error":"#DIV/0!"}},null,null,null,null,null,"(Azken 4 urteetan maila taktikoko lanpostuetan barne-sustapen bidez sartutako emakumeak guztira / Azken 4 urteetan maila taktikoko lanpostuetan barne-sustapen bidez sartutako pertsonak guztira)*100"]
[null,null,null,"EMAKUMEAK","GIZONEZKOAK"]
[null,"Barne-sustapenak emakumeen eta gizonen arteko tratu- eta aukera-berdintasuna bermatzen duela uste dutenen %-a",null,{"$f":"Opinion!Q14","v":{"$error":"#DIV/0!"}},{"$f":"Opinion!T14","v":{"$error":"#DIV/0!"}},null,null,null,null,"(Inkestaren 3. galderari BAI erantzun dioten pertsonak, guztira / Inkestari emandako erantzunak, guztira)*100"]
[null,"Emakumeen/gizonen arrakasta-tasa erlatiboa, maila estrategiko eta taktikoa langile guztiekin alderatuta",null,{"$f":"Plantilla!T10","v":{"$error":"#DIV/0!"}},null,null,null,null,null,"(Maila estrategiko eta taktikoan dauden emakumeak, guztira / Langileetan dauden emakumeak, guztira) / (Maila estrategiko eta taktikoan dauden gizonak, guztira / Langileetan dauden gizonak, guztira)"]
[null,"Azken 4 urteotan tasa horrek izandako bilakaera",null,{"$f":"Plantilla!V10","v":{"$error":"#DIV/0!"}},null,null,null,null,null,"((X-n maila estrategiko eta taktikoan dauden emakumeak, guztira / X-n langileetan dauden emakumeak, guztira) / (X-n maila estrategiko eta taktikoan dauden gizonak, guztira / X-n langileetan dauden gizonak, guztira) - (X-3-n maila estrategiko eta taktikoan dauden emakumeak, guztira / X-3-n langileetan dauden emakumeak, guztira / (X-3-n maila estrategiko eta taktikoan dauden gizonak, guztira / X-3-n langileetan dauden gizonak, guztira))*100"]
[]
["KONTRATAZIO-POLITIKA","Aldi baterako kontratua duten emakumeen/gizonen presentzia-tasa erlatiboa",null,{"$f":"CondicionesLaborales!W8","v":{"$error":"#DIV/0!"}},null,null,null,"Oraingo eta duela 4 urteko kontratu mota. Oraingo eta duela 4 urteko lanaldi mota. Lanaldi mota. (Enpresa publikoak). Oraingo eta duela 4 urteko lan-harreman mota (funtzionarioak/lan-kontratuduna). (Kooperatibak). Oraingo eta duela 4 urteko lan-harreman mota (bazkide emakumeak/lan-kontratudunak).","Lan-baldintzak","(Aldi baterako kontratua duten emakumeak, guztira / Langileetan guztira dauden emakumeak) / (Aldi baterako kontratua duten gizonak, guztira / Langileetan guztira dauden gizonak)"]
[null,"Lanaldi partziala duten emakumeen/gizonen presentzia-tasa erlatiboa",null,{"$f":"CondicionesLaborales!W9","v":{"$error":"#DIV/0!"}},null,null,null,null,null,"(Lanaldi partziala duten emakumeak, guztira / Langileetan guztira dauden emakumeak) / (Lanaldi partziala duten gizonak, guztira / Langileetan guztira dauden gizonak)"]
[null,"Azken 4 urteetako langileen kontratazio mugagabearen bilakaera",null,{"$f":"CondicionesLaborales!W10*100","v":{"$error":"#DIV/0!"}},null,null,null,null,null,"((X-n guztira kontratu mugagabea duten pertsonak / X-n guztira dauden pertsonak)-(X-3-n guztira kontratu mugagabea duten pertsonak / X-3-n guztira dauden pertsonak))*100"]
[null,"Azken 4 urteetako emakumeen kontratazio mugagabearen bilakaera",null,{"$f":"CondicionesLaborales!W11*100","v":{"$error":"#DIV/0!"}},null,null,null,null,null,"((X-n guztira kontratu mugagabea duten emakumeak / X-n guztira dauden emakumeak)-(X-3-n guztira kontratu mugagabea duten emakumeak / X-3-n guztira dauden emakumeak))*100"]
[null,"Lanaldi aldakorra duten emakumeen/gizonen tasa erlatiboa.",null,{"$f":"CondicionesLaborales!Q54","v":{"$error":"#DIV/0!"}},null,null,null,null,null,"(Lanaldi aldakorra duten emakumeak, guztira / Langileetan guztira dauden emakumeak) / (Lanaldi aldakorra duten gizonak, guztira / Langileetan guztira dauden gizonak)"]
[null,"Lanaldi aldakorra duten emakumeen/gizonen tasa erlatiboa",null,{"$f":"CondicionesLaborales!Q59","v":{"$error":"#DIV/0!"}},null,null,null,null,null,"(Gaueko txandan dauden emakumeak, guztira / Langileetan guztira dauden emakumeak) / (Gaueko txandan dauden gizonak, guztira / Langileetan guztira dauden gizonak)"]
[null,"Funtzionarioaren lan-harremana duten emakume/gizonen presentzia-tasa erlatiboa",null,{"$f":"CondicionesLaborales!U20","v":{"$error":"#DIV/0!"}},null,null,null,null,null,"(Emakume funtzionarioak, guztira / Langileetan guztira dauden emakumeak) / (Gizon funtzionarioak, guztira / Langileetan guztira dauden gizonak)"]
[null,"Bazkide langileetan dagoen emakumeen/gizonen presentzia-tasa erlatiboa",null,{"$f":"CondicionesLaborales!U36","v":{"$error":"#DIV/0!"}},null,null,null,null,null,"(Emakume bazkide langileak, guztira / Langileetan guztira dauden emakumeak) / (Gizon bazkide langileak, guztira / Langileetan guztira dauden gizonak)"]
[]
["ORDAINSARIEN GAINEKO POLITIKA","Soldaten arteko alde orokorra",null,{"$f":"CondicionesLaborales!P88","v":{"$error":"#DIV/0!"}},null,null,null,"Batez besteko soldatak lanpostuaren arabera.\nOrdainsari aldakorra duten langileak.\nSoldata-osagarriak dituzten langileak.\nOnura sozialak dituzten langileak.\nSektoreko hitzarmenarena baino soldata handiagoa duten langileak, lanpostuaren arabera.\nInkesta: Soldata-bereizkeriaren pertzepzioa.\n","Lan-baldintzak","Emakumeen batez besteko soldata guztira ­ Gizonen batez besteko soldata"]
[null,"Soldata-aldea ehunekoetan lanpostuen arabera",null,null,null,null,null,null,null,"1. lanpostuan dauden emakumeen batez besteko soldata ­ 1. lanpostuan dauden gizonen batez besteko soldata","2. lanpostua, 3. lanpostua..."]
[null,{"$f":"CondicionesLaborales!B71","v":"Kudeaketa"},null,{"$f":"CondicionesLaborales!P71","v":{"$error":"#DIV/0!"}}]
[null,{"$f":"CondicionesLaborales!B72","v":"Zuzendaritza-postuak"},null,{"$f":"CondicionesLaborales!P72","v":{"$error":"#DIV/0!"}}]
[null,{"$f":"CondicionesLaborales!B73","v":"MAILA TAKTIKOA"}]
[null,{"$f":"CondicionesLaborales!B74","v":"Tarteko arduradunak – 1. maila"},null,{"$f":"CondicionesLaborales!P74","v":{"$error":"#DIV/0!"}}]
[null,{"$f":"CondicionesLaborales!B75","v":"Tarteko arduradunak – 2. maila"},null,{"$f":"CondicionesLaborales!P75","v":{"$error":"#DIV/0!"}}]
[null,{"$f":"CondicionesLaborales!B76","v":0},null,{"$f":"CondicionesLaborales!P76","v":{"$error":"#DIV/0!"}}]
[null,{"$f":"CondicionesLaborales!B77","v":0},null,{"$f":"CondicionesLaborales!P77","v":{"$error":"#DIV/0!"}}]
[null,{"$f":"CondicionesLaborales!B78","v":0},null,{"$f":"CondicionesLaborales!P78","v":{"$error":"#DIV/0!"}}]
[null,{"$f":"CondicionesLaborales!B79","v":0},null,{"$f":"CondicionesLaborales!P79","v":{"$error":"#DIV/0!"}}]
[null,{"$f":"CondicionesLaborales!B80","v":"MAILA OPERATIBOA"}]
[null,{"$f":"CondicionesLaborales!B81","v":"Teknikariak"},null,{"$f":"CondicionesLaborales!P81","v":{"$error":"#DIV/0!"}}]
[null,{"$f":"CondicionesLaborales!B82","v":"Administrazioko langileak"},null,{"$f":"CondicionesLaborales!P82","v":{"$error":"#DIV/0!"}}]
[null,{"$f":"CondicionesLaborales!B83","v":"Langileak"},null,{"$f":"CondicionesLaborales!P83","v":{"$error":"#DIV/0!"}}]
[null,{"$f":"CondicionesLaborales!B84","v":0},null,{"$f":"CondicionesLaborales!P84","v":0}]
[null,{"$f":"CondicionesLaborales!B85","v":0},null,{"$f":"CondicionesLaborales!P85","v":0}]
[null,{"$f":"CondicionesLaborales!B86","v":0},null,{"$f":"CondicionesLaborales!P86","v":0}]
[null,{"$f":"CondicionesLaborales!B87","v":0},null,{"$f":"CondicionesLaborales!P87","v":{"$error":"#DIV/0!"}}]
[null,"Ordainsari aldakorra duten emakumeen/gizonen tasa erlatiboa",null,{"$f":"CondicionesLaborales!M111","v":{"$error":"#DIV/0!"}},null,null,null,null,null,"((Ordainsari aldakorra duten emakumeak, guztira / Langileetan guztira dauden emakumeak) / (Ordainsari aldakorra duten gizonak, guztira / Langileetan guztira dauden gizonak)) *100"]
[null,"Soldata-osagarriak dituzten emakumeen/gizonen tasa erlatiboa",null,{"$f":"CondicionesLaborales!M133","v":{"$error":"#DIV/0!"}},null,null,null,null,null,"((Soldata-osagarriak dituzten emakumeak, guztira / Langileetan guztira dauden emakumeak) / (Soldata-osagarriak dituzten gizonak, guztira / Langileetan guztira dauden gizonak)) *100"]
[null,"Sektoreko hitzarmenarena baino soldata handiagoa duten emakume/gizonen tasa erlatiboa",null,{"$f":"CondicionesLaborales!M90","v":{"$error":"#DIV/0!"}},null,null,null,null,null,"((Sektoreko hitzarmenarena baino soldata handiagoak dituzten emakumeak, guztira / Langileetan guztira dauden emakumeak) / (Sektoreko hitzarmenarena baino soldata handiagoak dituzten gizonak, guztira / Langileetan guztira dauden gizonak)) *100"]
[null,null,null,"EMAKUMEAK","GIZONEZKOAK"]
[null,"Ordainsariak emakumeen eta gizonen arteko tratu- eta aukera-berdintasuna bermatzen duela uste dutenen %-a",null,{"$f":"Opinion!Q15","v":{"$error":"#DIV/0!"}},{"$f":"Opinion!T15","v":{"$error":"#DIV/0!"}},null,null,null,null,"(Inkestaren 4. galderari BAI erantzun dioten pertsonak, guztira / Inkestari emandako erantzunak, guztira)*100"]
[]
["KONTZILIAZIO ERANTZUNKIDEA ","Mailaren arabera aitatasun baimenaz baliatzen diren gizonen %-a",null,null,null,null,null,"Zaintza-ardurak dituzten pertsonak.\nAita izan diren gizonak mailaren arabera.\nAma izan diren emakumeak.\nNeurriak motaren arabera.\nNeurriez baliatzen diren pertsonak motaren arabera.\nInkesta: Neurriekiko gogobetetasuna. (1etik 10era)\nInkesta: Lana eta norberaren bizitza bateratzeko aukerak. \nInkesta: Bateratze-neurriez baliatzeagatik aukerak galdu duelako pertzepzioa. (Bai/Ez)\n","Lan-baldintzak","(Maila estrategikoan aitatasun-baimenaz baliatzen diren gizonak, guztira / Maila estrategikoan aitatasun-baimenaz baliatzeko egoeran dauden gizonak, guztira)*100","(Maila taktikoan aitatasun-baimenaz baliatzen diren gizonak, guztira / Maila taktikoan aitatasun-baimenaz baliatzeko egoeran dauden gizonak, guztira)*100","(Maila operatiboan aitatasun-baimenaz baliatzen diren gizonak, guztira / Maila operatiboan aitatasun-baimenaz baliatzeko egoeran dauden gizonak, guztira)*100"]
[null,"Maila estrategikoa",null,{"$f":"CondicionesLaborales!N176","v":{"$error":"#DIV/0!"}}]
[null,"Maila taktikoa",null,{"$f":"CondicionesLaborales!N177","v":{"$error":"#DIV/0!"}}]
[null,"Maila operatiboa",null,{"$f":"CondicionesLaborales!N178","v":{"$error":"#DIV/0!"}}]
[null,"Lana eta familia uztartzeko neurriak",null,"Neurriez baliatzen direnen tasa erlatiboa",null,"Emakumeen %-a neurriez baliatzen direnetan",null,null,null,"((Amatasun-baimenaz 6. astetik aurrera baliatzen diren emakumeak, guztira / Amatasun-baimenaz 6. astetik aurrera baliatzeko egoeran dauden emakumeak, guztira) / (Amatasun-baimenaz 6. astetik aurrera baliatzen diren gizonak, guztira / Amatasun-baimenaz 6. astetik aurrera baliatzeko egoeran dauden gizonak, guztira)) *100","Lana eta norberaren bizitza bateratzeko 2. neurria, 3. neurria..."]
[null,{"$f":"CondicionesLaborales!C176","v":"Maila estrategikoa"},null,{"$f":"CondicionesLaborales!O176","v":{"$error":"#DIV/0!"}}]
[null,{"$f":"CondicionesLaborales!C177","v":"Maila taktikoa"},null,{"$f":"CondicionesLaborales!O177","v":{"$error":"#DIV/0!"}}]
[null,{"$f":"CondicionesLaborales!C178","v":"Maila operatiboa"},null,{"$f":"CondicionesLaborales!O178","v":{"$error":"#DIV/0!"}}]
[null,{"$f":"CondicionesLaborales!B179","v":"Amatasun-baimena (6. astetik aurrera)"},null,{"$f":"CondicionesLaborales!O179","v":{"$error":"#DIV/0!"}},null,{"$f":"CondicionesLaborales!P179","v":{"$error":"#DIV/0!"}}]
[null,{"$f":"CondicionesLaborales!B180","v":"Edoskitze-baimena"},null,{"$f":"CondicionesLaborales!O180","v":{"$error":"#DIV/0!"}},null,{"$f":"CondicionesLaborales!P180","v":{"$error":"#DIV/0!"}}]
[null,{"$f":"CondicionesLaborales!B181","v":"Legezko zaintzarako lanaldi-murrizketa (12 urtetik beherakoekin)"},null,{"$f":"CondicionesLaborales!O181","v":{"$error":"#DIV/0!"}},null,{"$f":"CondicionesLaborales!P181","v":{"$error":"#DIV/0!"}}]
[null,{"$f":"CondicionesLaborales!B182","v":"Adingabeak (3 urtetik beherakoak) zaintzeko eszedentzia"},null,{"$f":"CondicionesLaborales!O182","v":{"$error":"#DIV/0!"}},null,{"$f":"CondicionesLaborales!P182","v":{"$error":"#DIV/0!"}}]
[null,{"$f":"CondicionesLaborales!B183","v":"Mendetasuna duen senitartekoa zaintzeko eszedentzia (*)"},null,{"$f":"CondicionesLaborales!O183","v":{"$error":"#DIV/0!"}},null,{"$f":"CondicionesLaborales!P183","v":{"$error":"#DIV/0!"}}]
[null,{"$f":"CondicionesLaborales!B184","v":"Norberak erabiltzeko ordu-poltsa"},null,{"$f":"CondicionesLaborales!O184","v":{"$error":"#DIV/0!"}},null,{"$f":"CondicionesLaborales!P184","v":{"$error":"#DIV/0!"}}]
[null,{"$f":"CondicionesLaborales!B185","v":"Mendeko pertsonak zaintzeko ordu-poltsa"},null,{"$f":"CondicionesLaborales!O185","v":{"$error":"#DIV/0!"}},null,{"$f":"CondicionesLaborales!P185","v":{"$error":"#DIV/0!"}}]
[null,{"$f":"CondicionesLaborales!B186","v":"Bestelakoak"},null,{"$f":"CondicionesLaborales!O186","v":{"$error":"#DIV/0!"}},null,{"$f":"CondicionesLaborales!P186","v":{"$error":"#DIV/0!"}}]
[null,"Lana eta familia bateratzen laguntzeko zerbitzuak",null,"Neurriez baliatzen direnen tasa erlatiboa",null,"Emakumeen %-a neurriez baliatzen direnetan",null,null,null,"((Haurtzaindegiaz baliatzen diren emakumeak, guztira / Haurtzaindegiaz baliatzeko egoeran dauden emakumeak, guztira) / (Haurtzaindegiaz baliatzen diren gizonak, guztira / Haurtzaindegiaz baliatzeko egoeran dauden gizonak, guztira)) *100","2. laguntza-zerbitzua, 3. laguntza-zerbitzua..."]
[null,{"$f":"CondicionesLaborales!B188","v":"Haurtzaindegia"},null,{"$f":"CondicionesLaborales!O188","v":{"$error":"#DIV/0!"}},null,{"$f":"CondicionesLaborales!P188","v":{"$error":"#DIV/0!"}}]
[null,{"$f":"CondicionesLaborales!B189","v":"Jantokia"},null,{"$f":"CondicionesLaborales!O189","v":{"$error":"#DIV/0!"}},null,{"$f":"CondicionesLaborales!P189","v":{"$error":"#DIV/0!"}}]
[null,{"$f":"CondicionesLaborales!B190","v":"Taldeko garraioa"},null,{"$f":"CondicionesLaborales!O190","v":{"$error":"#DIV/0!"}},null,{"$f":"CondicionesLaborales!P190","v":{"$error":"#DIV/0!"}}]
[null,{"$f":"CondicionesLaborales!B191","v":"Bestelakoak"},null,{"$f":"CondicionesLaborales!O191","v":{"$error":"#DIV/0!"}},null,{"$f":"CondicionesLaborales!P191","v":{"$error":"#DIV/0!"}}]
[null,"Lan-denboraren eta -lekuaren malgutasuna",null,"Neurriez baliatzen direnen tasa erlatiboa",null,"Emakumeen %-a neurriez baliatzen direnetan",null,null,null,"((Sartu eta irteteko malgutasunaz baliatzen diren emakumeak, guztira / Sartu eta irteteko malgutasunaz baliatzeko egoeran dauden emakumeak, guztira) / (Sartu eta irteteko malgutasunaz baliatzen diren gizonak, guztira / Sartu eta irteteko malgutasunaz baliatzeko egoeran dauden gizonak, guztira)) *100","2. malgutasun-neurria, 3. malgutasun-neurria..."]
[null,{"$f":"CondicionesLaborales!B193","v":"Sartzeko eta irteteko malgutasuna"},null,{"$f":"CondicionesLaborales!O193","v":{"$error":"#DIV/0!"}},null,{"$f":"CondicionesLaborales!P193","v":{"$error":"#DIV/0!"}}]
[null,{"$f":"CondicionesLaborales!B194","v":"Eguerdian gelditzeko malgutasuna"},null,{"$f":"CondicionesLaborales!O194","v":{"$error":"#DIV/0!"}},null,{"$f":"CondicionesLaborales!P194","v":{"$error":"#DIV/0!"}}]
[null,{"$f":"CondicionesLaborales!B195","v":"Ordutegiaren malgutasun negoziatua"},null,{"$f":"CondicionesLaborales!O195","v":{"$error":"#DIV/0!"}},null,{"$f":"CondicionesLaborales!P195","v":{"$error":"#DIV/0!"}}]
[null,{"$f":"CondicionesLaborales!B196","v":"Arrazoi pertsonalen ondorioz lanaldia murriztea"},null,{"$f":"CondicionesLaborales!O196","v":{"$error":"#DIV/0!"}},null,{"$f":"CondicionesLaborales!P196","v":{"$error":"#DIV/0!"}}]
[null,{"$f":"CondicionesLaborales!B197","v":"Arrazoi pertsonalengatiko eszedentzia ordaindua"},null,{"$f":"CondicionesLaborales!O197","v":{"$error":"#DIV/0!"}},null,{"$f":"CondicionesLaborales!P197","v":{"$error":"#DIV/0!"}}]
[null,{"$f":"CondicionesLaborales!B198","v":"Arrazoi pertsonalengatiko eszedentzia ordaindu gabea"},null,{"$f":"CondicionesLaborales!O198","v":{"$error":"#DIV/0!"}},null,{"$f":"CondicionesLaborales!P198","v":{"$error":"#DIV/0!"}}]
[null,{"$f":"CondicionesLaborales!B199","v":"Telelana"},null,{"$f":"CondicionesLaborales!O199","v":{"$error":"#DIV/0!"}},null,{"$f":"CondicionesLaborales!P199","v":{"$error":"#DIV/0!"}}]
[null,{"$f":"CondicionesLaborales!B200","v":"Bizilekura gerturatzea"},null,{"$f":"CondicionesLaborales!O200","v":{"$error":"#DIV/0!"}},null,{"$f":"CondicionesLaborales!P200","v":{"$error":"#DIV/0!"}}]
[null,{"$f":"CondicionesLaborales!B201","v":"Oporraldia modu zatikatuan hautatzeko aukera"},null,{"$f":"CondicionesLaborales!O201","v":{"$error":"#DIV/0!"}},null,{"$f":"CondicionesLaborales!P201","v":{"$error":"#DIV/0!"}}]
[null,{"$f":"CondicionesLaborales!B202","v":"Bestelakoak"},null,{"$f":"CondicionesLaborales!O202","v":{"$error":"#DIV/0!"}},null,{"$f":"CondicionesLaborales!P202","v":{"$error":"#DIV/0!"}}]
[null,"Iritzia",null,"EMAKUMEAK","GIZONEZKOAK"]
[null,"Lanaren barneko antolaketak enplegua eta bizitza pertsonala bateratzen laguntzen duela uste dutenen %-a",null,{"$f":"Opinion!Q27","v":{"$error":"#DIV/0!"}},{"$f":"Opinion!T27","v":{"$error":"#DIV/0!"}},null,null,null,null,"(Inkestaren 16. galderari BAI erantzun dioten pertsonak, guztira / Inkestari emandako erantzunak, guztira)*100"]
[null,"Bateratzeko neurriez baliatzeak aukera profesionalak galtzea dakarrela jotzen dutenen %-a",null,{"$f":"Opinion!Q28","v":{"$error":"#DIV/0!"}},{"$f":"Opinion!T28","v":{"$error":"#DIV/0!"}},null,null,null,null,"(Inkestaren 17. galderari BAI erantzun dioten pertsonak, guztira / Inkestari emandako erantzunak, guztira)*100"]
[null,"Bateratzeko neurriez baliatzeak aukera profesionalak galtzea dakarrela jotzen duten gizonen %-a.",null,null,null,null,null,null,null,"((Inkestaren 17. galderari BAI erantzun dioten emakumeak, guztira / Inkestari erantzundako emakumeak, guztira) - (Inkestaren 17. galderari BAI erantzun dioten gizonak, guztira / Inkestari erantzundako gizonak, guztira)) *100"]
[null,"Bateratzeari eta malgutasunari buruzko neurriei batez beste emandako puntuazioa",null,{"$f":"Opinion!G29","v":0},{"$f":"Opinion!J29","v":0},null,null,null,null,"Emakumeek 18. galderari emandako erantzunen batezbestekoa"]
[]
["ARRISKU PSIKOSOZIALAK","Azken 4 urteotan salatutako sexu-jazarpen kasuen kopurua",null,{"$f":"CondicionesLaborales!G170","v":0},null,null,null,"Azken 4 urteotan salatutako sexu-jazarpen kasuen kopurua (protokoloaren erabilera). Azken 4 urteotan salatutako jazarpen sexistako kasuen kopurua (protokoloaren erabilera). Inkesta: Sexu-jazarpena jasan duten pertsonak. Inkesta: Jazarpen sexista jasan duten pertsonak. Inkesta: Sexu-jazarpenen kasuak ezagutzen dituzten pertsonak. Inkesta: Jazarpen sexisten kasuak ezagutzen dituzten pertsonak. Inkesta: Txiste eta iruzkin matxistak ohikoak dira.","Lan-baldintzak","Datua (ez dago kalkulurik)"]
[null,"Azken 4 urteotan salatutako sexu-arrazoiagatik jazarpen kasuen kopurua",null,{"$f":"CondicionesLaborales!H170","v":0}]
[null,"Iritzia",null,"EMAKUMEAK","GIZONEZKOAK"]
[null,"Inkestan sexu-jazarpena jaso dutela esan duten pertsonak.",null,{"$f":"Opinion!G16","v":0},{"$f":"Opinion!J16","v":0},null,null,null,null,"5. galderari BAI erantzun dioten emakumeak, guztira"]
[null,null,"Inkestan sexu-jazarpena jaso dutela esan duten gizonak.",{"$f":"Opinion!J16","v":0},null,null,null,null,null,"5. galderari BAI erantzun dioten gizonak, guztira"]
[null,"Inkestan jazarpen sexista jaso dutela esan duten pertsonak. ",null,{"$f":"Opinion!G18","v":0},{"$f":"Opinion!J18","v":0},null,null,null,null,"7. galderari BAI erantzun dioten emakumeak, guztira"]
[null,null,"Inkestan jazarpen sexista jaso dutela esan duten gizonak. ",{"$f":"Opinion!J18","v":0},null,null,null,null,null,"7. galderari BAI erantzun dioten gizonak, guztira "]
[null,"Inkestan sexu-jazarpen kasuak ezagutzen dituztela esan duten pertsonak.",null,{"$f":"Opinion!G17","v":0},{"$f":"Opinion!J17","v":0},null,null,null,null,"6. galderari BAI erantzun dioten emakumeak, guztira"]
[null,null,"Inkestan sexu-jazarpen kasuak ezagutzen dituztela esan duten gizonak.",{"$f":"Opinion!J17","v":0},null,null,null,null,null,"6. galderari BAI erantzun dioten gizonak, guztira"]
[null,"Inkestan jazarpen sexistako kasuak ezagutzen dituztela esan duten pertsonak",null,{"$f":"Opinion!G19","v":0},{"$f":"Opinion!J19","v":0},null,null,null,null,"8. galderari BAI erantzun dioten emakumeak, guztira"]
[null,null,"Inkestan jazarpen sexistako kasuak ezagutzen dituztela esan duten gizonak. ",{"$f":"Opinion!J19","v":0},null,null,null,null,null,"8. galderari BAI erantzun dioten gizonak, guztira"]
[null,"Txiste eta iruzkin matxistak ohikoak direla uste dutenen %-a",null,{"$f":"Opinion!Q20","v":{"$error":"#DIV/0!"}},{"$f":"Opinion!T20","v":{"$error":"#DIV/0!"}},null,null,null,null,"(Inkestaren 9. galderari BAI erantzun dioten pertsonak, guztira / Inkestari emandako erantzunak, guztira)*100"]
[null,"Erakundean sexu-bereizkeria sentitu duten pertsonen %-a",null,{"$f":"Opinion!Q12","v":{"$error":"#DIV/0!"}},{"$f":"Opinion!T12","v":{"$error":"#DIV/0!"}},null,null,null,"Pertsonen kudeaketa","(Inkestaren 1. galderari BAI erantzun dioten emakumeak, guztira / Inkestari emakumeek emandako erantzunak, guztira)*100"]
[null,null,"Erakundean sexu-bereizkeria sentitu duten gizonen %-a.",null,null,null,null,null,null,"1. galderari BAI erantzun dioten gizonak, guztira / Inkestari gizonek emandako erantzunak, guztira)*100"]
[null,"Lan-karga beren lan-baldintzekin bat datorrela uste dutenen %-a",null,{"$f":"Opinion!Q23","v":{"$error":"#DIV/0!"}},{"$f":"Opinion!T23","v":{"$error":"#DIV/0!"}},null,null,null,null,"(Inkestaren 12. galderari EZ erantzun dioten pertsonak, guztira / Inkestari emandako erantzunak, guztira)*100"]
[null,"Lanpostuan egonkortasuna dutela uste dutenen %-a",null,{"$f":"Opinion!Q24","v":{"$error":"#DIV/0!"}},{"$f":"Opinion!T24","v":{"$error":"#DIV/0!"}},null,null,null,null,"(Inkestaren 13. galderari EZ erantzun dioten pertsonak, guztira / Inkestari emandako erantzunak, guztira)*100"]
[null,"Motibazioa lanarekin. Emandako batez besteko puntuazioa",null,{"$f":"Opinion!G30","v":0},{"$f":"Opinion!J30","v":0},null,null,null,null,"Emakumeek 19. galderari emandako erantzunen batezbestekoa"]
[null,null,null,"EMAKUMEAK","GIZONEZKOAK"]
["ANTOLAKETA-KULTURA ","Berdintasunaren arloan enpresarekin gogobeteta egotea. Emandako batez besteko puntuazioa",null,{"$f":"Opinion!G31","v":0},{"$f":"Opinion!J31","v":0},null,null,"Inkesta: Berdintasunaren arloan enpresarekin gogobeteta egotea. (1etik 10era)\nInkesta: Lan-ordutegitik kanpo lanerako prest egotea eskatzen dela hautematea. (Bai/ez)\nInkesta: Lan-ordutegitik kanpo aisia-esparruetan bezero eta funtsezko eragileekin harremanetan egotea garrantzitsua dela hautematea. (Bai/ez)\nInkesta: Genero-estereotipoek emakumeen lan-baldintzetan eta aukeretan eragiten dutela hautematea. (Bai/Ez)\nInkesta: Gizonen eta emakumeen berdintasunerako plana abian jartzeari buruzko iritzia (Bai/Ez)\n","Antolaketa-kultura","Emakumeek 20. galderari emandako erantzunen batezbestekoa"]
[null,"Enpresan lan-ordutegitik kanpo prestasuna eskatzen dela uste dutenen %-a",null,{"$f":"Opinion!Q21","v":{"$error":"#DIV/0!"}},{"$f":"Opinion!T21","v":{"$error":"#DIV/0!"}},null,null,null,null,"(Inkestaren 10. galderari BAI erantzun dioten pertsonak, guztira / Inkestari emandako erantzunak, guztira)*100"]
[null,"Lan-ordutegitik kanpo aisia-esparruetan bezero eta funtsezko eragileekin harremanetan egotea garrantzitsua dela uste dutenen %-a",null,{"$f":"Opinion!Q22","v":{"$error":"#DIV/0!"}},{"$f":"Opinion!T22","v":{"$error":"#DIV/0!"}},null,null,null,null,"(Inkestaren 11. galderari BAI erantzun dioten pertsonak, guztira / Inkestari emandako erantzunak, guztira)*100"]
[null,"Genero-estereotipoek erakunde honetan emakumeek dituzten lan-baldintza eta aukeretan eragiten dutela uste dutenen %-a",null,{"$f":"Opinion!Q25","v":{"$error":"#DIV/0!"}},{"$f":"Opinion!T25","v":{"$error":"#DIV/0!"}},null,null,null,null,"(Inkestaren 14. galderari BAI erantzun dioten pertsonak, guztira / Inkestari emandako erantzunak, guztira)*100"]
[null,"Gizonen eta emakumeen berdintasunerako plana abian jartzearekin ados daudenen %-a",null,{"$f":"Opinion!Q26","v":{"$error":"#DIV/0!"}},{"$f":"Opinion!T26","v":{"$error":"#DIV/0!"}},null,null,null,null,"(Inkestaren 15. galderari BAI erantzun dioten pertsonak, guztira / Inkestari emandako erantzunak, guztira)*100"]

{"sheet":"Graficos","index":10,"n_rows":129,"n_cols":16,"rows_kept":129,"cut":false,"hidden":true,"merged":[[125,10,125,11],[124,10,124,11]]}
[]
[]
[]
[]
[]
[]
[]
[]
[]
[]
[]
[]
[]
[]
[]
[]
[]
[]
[]
[]
[]
[]
[]
[]
[]
[]
[]
[]
[]
[]
[]
[]
[]
[]
[]
[]
[]
[]
[]
[]
[]
[]
[]
[]
[]
[]
[]
[]
[]
[]
[]
[]
[]
[]
[]
[]
[]
[]
[]
[]
[]
[]
[]
[]
[]
[]
[]
[]
[]
[]
[]
[]
[]
[]
[]
[]
[]
[]
[]
[]
[]
[]
[]
[]
[]
[]
[]
[]
[]
[]
[]
[]
[]
[]
[]
[]
[]
[]
[]
[]
[]
[]
[null,null,null,null,null,null,null,null,null,null,null,"Emakumeak","Gizonak"]
[null,null,null,null,null,null,null,null,null,null,"24 urtetik beherakoak",{"$f":"Plantilla!G76","v":0},{"$f":"Plantilla!H76","v":0}]
[null,null,null,null,null,null,null,null,null,null,"25-29 urte",{"$f":"Plantilla!G77","v":0},{"$f":"Plantilla!H77","v":0}]
[null,null,null,null,null,null,null,null,null,null,"30-34 urte",{"$f":"Plantilla!G78","v":0},{"$f":"Plantilla!H78","v":0}]
[null,null,null,null,null,null,null,null,null,null,"35-39 urte",{"$f":"Plantilla!G79","v":0},{"$f":"Plantilla!H79","v":0}]
[null,null,null,null,null,null,null,null,null,null,"40-44 urte",{"$f":"Plantilla!G80","v":0},{"$f":"Plantilla!H80","v":0}]
[null,null,null,null,null,null,null,null,null,null,"45-49 urte",{"$f":"Plantilla!G81","v":0},{"$f":"Plantilla!H81","v":0}]
[null,null,null,null,null,null,null,null,null,null,"50-54 urte",{"$f":"Plantilla!G82","v":0},{"$f":"Plantilla!H82","v":0}]
[null,null,null,null,null,null,null,null,null,null,"55-59 urte",{"$f":"Plantilla!G83","v":0},{"$f":"Plantilla!H83","v":0}]
[null,null,null,null,null,null,null,null,null,null,"60-64 urte",{"$f":"Plantilla!G84","v":0},{"$f":"Plantilla!H84","v":0}]
[null,null,null,null,null,null,null,null,null,null,"65 baino gehiago",{"$f":"Plantilla!G85","v":0},{"$f":"Plantilla!H85","v":0}]
[]
[]
[]
[]
[]
[]
[]
[]
[]
[]
[null,null,null,null,null,null,null,null,null,null,null,null,"Emakumeak","Gizonak","Emakumeak","Gizonak"]
[null,null,null,null,null,null,null,null,null,null,"Seme-alaben ardura daukaten pertsonak",null,{"$f":"Plantilla!G90+Plantilla!G96","v":0},{"$f":"Plantilla!H90+Plantilla!H96","v":0},{"$f":"M125/Plantilla!E30","v":{"$error":"#DIV/0!"}},{"$f":"N125/Plantilla!F30","v":{"$error":"#DIV/0!"}}]
[null,null,null,null,null,null,null,null,null,null,"Seme-alaben ardurarik ez duten pertsonak",null,{"$f":"Plantilla!E30-Graficos!M125","v":0},{"$f":"Plantilla!F30-Graficos!N125","v":0},{"$f":"M126/Plantilla!E30","v":{"$error":"#DIV/0!"}},{"$f":"N126/Plantilla!F30","v":{"$error":"#DIV/0!"}}]
[]
[null,null,null,null,null,null,null,null,null,null,null,null,null,null,null," "]
[null,null,null,null,null,null,null,null,null,null," "]

{"sheet":"datos","index":11,"n_rows":22,"n_cols":8,"rows_kept":22,"cut":false,"hidden":true,"merged":[]}
[]
[]
[null,null,null,"MOTA","MOTAK","MERKATUAK","DIMENTSIOA ","FAKTURAZIOA"]
[null,null,1,"Kooperatiba-sozietatea","Nekazaritza/Abeltzaintza/Arrantza","Tokikoa","1 eta 10 bitartean","100.000 arte"]
[null,null,2,"Gainerako merkataritza-sozietateak","Industria","Autonomia Erkidegoa","11 eta 50 bitartean","100.000 eta 500.000 bitartean"]
[null,null,3,"Irabazi-asmorik gabeko erakundea","Zerbitzuak","Estatua","51 eta 250 bitartean","500.000 eta 1.000.000 bitartean"]
[null,null,4,"Erakunde publikoa","Eraikuntza","Europa","250 baino gehiago","1 eta 10 milioi artean"]
[null,null,5,null,null,"Nazioartekoa",null,"10 milioitik gora"]
[null,null,6]
[null,null,7]
[null,null,8]
[null,null,9]
[null,null,10]
[null,null,11]
[null,null,12]
[null,null,13]
[null,null,14]
[null,null,15]
[null,null,16]
[null,null,17]
[null,null,18]
[null,null,19]